{"text_format":"1","workbook":"xlsx","n_sheets":21,"sheets":["Liste choix","Accueil articles","BD articles","Saisie article 1","Accueil dépenses","BD dépenses","Saisie dépense 1","Saisie dépense 2","Exemple dépenses","Accueil articles budgétaires","Saisie PA","BD articles budgétaires","Articles alimentaires","Articles bancaires","Articles horticoles","Articles médicaux","Articles non alimentaires","Articles recettes bancaires","Articles recettes médicales","Articles recettes numéraires","Soldes numéraires"],"not_rendered":{"charts":0,"images":0,"macros":1,"external_links":0,"defined_names":66,"comments":0,"pivot_tables":0},"unopened":[],"bounds":{"document_bytes":16777216,"sheet_cells":100000,"rows_first":2000,"rows_last":500,"rows_between":2000,"halvings":0,"cell_chars":16384,"cell_head_chars":4096},"cells_cut":0,"cells_raw":0,"read":"whole","date_system":"1900"}

{"sheet":"Liste choix","index":0,"n_rows":204,"n_cols":53,"rows_kept":204,"cut":false,"hidden":false,"merged":[]}
["Code nature opérations","Nature opérations",null,"Codes catégories opérations budgétaires","Catégories opérations budgétaires",null,"Codes catégories dépenses","Catégories dépenses",null,"Codes catégories recettes","Catégories recettes",null,"Codes Fournisseurs","Fournisseurs",null,"Code période opérations","Période opérations",null,"Code années","Années",null,"Code articles budgétaires alimentaires","Articles budgétaires alimentaires",null,"Code articles budgétaires bancaires","Articles budgétaires bancaires",null,"Code articles budgétaires horticoles","Articles budgétaires horticoles",null,"Code articles budgétaires médicaux","Articles budgétaires médicaux",null,"Code articles budgétaires non alimentaires","Articles budgétaires non alimentaires",null,"Code articles budgétaires recettes bancaires","Articles budgétaires recettes bancaires",null,"Code articles budgétaires recettes médicales","Articles budgétaires recettes médicales",null,"Code articles budgétaires recettes numéraires","Articles budgétaires recettes numéraires",null,"Code période budgétaire","Période budgétaire",null,"Code conditionnement articles budgétaires","Conditionnement articles budgétaires",null,"Code à modifier","À modifier"]
["CNO01","Budget mensuel des",null,"CCOB01","Dépenses alimentaires",null,"CCOB01","Dépenses alimentaires",null,"CCOB06","Recettes bancaires",null,"CF01","Carrefour",null,"CPO01","janvier",null,"CA01","2010",null,"DA01","Agneau",null,"DB01","Abonnement Canal Plus",null,"DH01","Autres dépenses horticoles",null,"DM01","Autres dépenses médicales",null,"DNA01","Ajax",null,"RB01","Autres recettes bancaires",null,"RM01","Mutuelle autres recettes médicales",null,"RN01","Argent emprunté à autres prêteurs",null,"CPB01","Annuelle",null,"CCAB01","1 aller et retour (billets de train)",null,"CAM01","Non"]
["CNO02","Budget primitif des",null,"CCOB02","Dépenses bancaires",null,"CCOB02","Dépenses bancaires",null,"CCOB07","Recettes médicales",null,"CF02","Géant Casino",null,"CPO02","février",null,"CA02","2011",null,"DA02","Ananas",null,"DB02","Abonnement Canal Satellite",null,"DH02","Cache-pots",null,"DM02","Dentiste",null,"DNA02","Allume-gaz",null,"RB02","Mutuelle",null,"RM02","Mutuelle dentiste",null,"RN02","Argent emprunté à Bot Novacovici",null,"CPB02","Bimensuelle",null,"CCAB02","1 baguette pour 4 jours (pain)",null,"CAM02","Oui"]
["CNO03","Création articles budgétaires",null,"CCOB03","Dépenses horticoles",null,"CCOB03","Dépenses horticoles",null,"CCOB08","Recettes numéraires",null,"CF03","Leclerc",null,"CPO03","mars",null,"CA03","2012",null,"DA03","Apéritif",null,"DB03","Abonnement Coopanet(Banque française de crédit coopératif)",null,"DH03","Engrais",null,"DM03","Docteur dermatologue",null,"DNA03","Allumettes",null,"RB03","Pension caisse nationale d'assurance vieillesse",null,"RM03","Mutuelle docteur dermatologue",null,"RN03","Argent emprunté à Fafa",null,"CPB03","Bimestrielle",null,"CCAB03","1 bloc de 100 feuilles (papier à lettres)"]
["CNO04","Décision modificative des",null,"CCOB04","Dépenses médicales",null,"CCOB04","Dépenses médicales",null,null,null,null,"CF04","Pharmacie",null,"CPO04","avril",null,"CA04","2013",null,"DA04","Asperges",null,"DB04","Actions caisse épargne",null,"DH04","Fleurs",null,"DM04","Docteur généraliste",null,"DNA04","Ampoules électriques",null,"RB04","Pension caisse nationale des retraites des agents des collectivités locales",null,"RM04","Mutuelle docteur généraliste",null,"RN04","Argent emprunté à Joly Marc",null,"CPB04","Du 01 au 16 inclus de chaque mois",null,"CCAB04","1 boîte de ? (élastiques)"]
[null,null,null,"CCOB05","Dépenses non alimentaires",null,"CCOB05","Dépenses non alimentaires",null,null,null,null,"CF05","Sylvie coiffure",null,"CPO05","mai",null,"CA05","2014",null,"DA05","Autres dépenses alimentaires",null,"DB05","Aspirateur",null,"DH05","Muguet",null,"DM05","Docteur ophtalmologiste",null,"DNA05","Ampoules halogène",null,"RB05","Sécurité sociale",null,"RM05","Mutuelle docteur ophtalmologiste",null,"RN05","Argent emprunté à Ray Claude",null,"CPB05","Du 17 au 24 inclus de chaque mois",null,"CCAB05","1 boîte de ? (trombones)"]
[null,null,null,"CCOB06","Recettes bancaires",null,null,null,null,null,null,null,"CF06","Tabac de la poste",null,"CPO06","juin",null,"CA06","2015",null,"DA06","Autres fruits",null,"DB06","Assurance accidents de la vie (Caisse épargne)",null,"DH06","Plantes",null,"DM06","Monture des lunettes",null,"DNA06","Antimites",null,null,null,null,"RM06","Mutuelle forfait monture des lunettes",null,"RN06","Argent emprunté à Sylvie coiffure",null,"CPB06","Du 25 au 31 inclus de chaque mois",null,"CCAB06","1 boîte de six œufs. 3 œufs pour 1 repas"]
[null,null,null,"CCOB07","Recettes médicales",null,null,null,null,null,null,null,null,null,null,"CPO07","juillet",null,"CA07","2016",null,"DA07","Avocats desserts",null,"DB07","Assurance incendie (Caisse épargne)",null,"DH07","Pots à fleurs",null,"DM07","Pharmacie vignette blanche",null,"DNA07","Antitaches chaussures",null,null,null,null,"RM07","Mutuelle forfait verres des lunettes",null,"RN07","Argent emprunté à Vendrisse Jacques",null,"CPB07","Hebdomadaire",null,"CCAB07","1 boîte ou 1 flacon pour 1 repas"]
[null,null,null,"CCOB08","Recettes numéraires",null,null,null,null,null,null,null,null,null,null,"CPO08","août",null,"CA08","2017",null,"DA08","Avocat légume",null,"DB08","Assurance protection juridique (Caisse épargne)",null,"DH08","Pots à plantes",null,"DM08","Pharmacie vignette bleue",null,"DNA08","Argent perdu",null,null,null,null,"RM08","Mutuelle monture des lunettes",null,"RN08","Argent trouvé",null,"CPB08","Journalière",null,"CCAB08","1 boîte pour 1 repas"]
[null,null,null,null,null,null,null,null,null,null,null,null,null,null,null,"CPO09","septembre",null,"CA09","2018",null,"DA09","Bananes desserts",null,"DB09","Autre matériel informatique",null,"DH09","Soucoupes",null,"DM09","Pharmacie vignette orange",null,"DNA09","Argent perdu sur monnaie rendue",null,null,null,null,"RM09","Mutuelle pharmacie vignette blanche",null,"RN09","Autres recettes numéraires",null,"CPB09","Mensuelle",null,"CCAB09","1 boîte pour 2 repas"]
[null,null,null,null,null,null,null,null,null,null,null,null,null,null,null,"CPO10","octobre",null,"CA10","2019",null,"DA10","Bananes matin",null,"DB10","Autres dépenses bancaires",null,"DH10","Terre",null,"DM10","Prélèvements",null,"DNA10","Aspirateur",null,null,null,null,"RM10","Mutuelle pharmacie vignette bleue",null,"RN10","Fidélité Carrefour",null,"CPB10","Selon les besoins",null,"CCAB10","1 bouquet"]
[null,null,null,null,null,null,null,null,null,null,null,null,null,null,null,"CPO11","novembre",null,"CA11","2020",null,"DA11","Betterave rouge",null,"DB11","Cadeaux",null,"DH11","Tuteurs",null,"DM11","Radiographies",null,"DNA11","Assouplissant pour le linge",null,null,null,null,"RM11","Mutuelle pharmacie vignette orange",null,"RN11","Fidélité FNAC",null,"CPB11","Selon menu",null,"CCAB11","1 bouteille de 100 millilitres"]
[null,null,null,null,null,null,null,null,null,null,null,null,null,null,null,"CPO12","décembre",null,"CA12","2021",null,"DA12","Beurre",null,"DB12","Carte amicale des locataires (Confédération nationale du logement)",null,null,null,null,"DM12","Verres des lunettes",null,"DNA12","Autre matériel informatique",null,null,null,null,"RM12","Mutuelle prélèvements",null,"RN12","Fidélité Géant Casino",null,"CPB12","Semestrielle",null,"CCAB12","1 bouteille de 150 centilitres pour 6 mois maximum (vinaigre anticalcaire)"]
[null,null,null,null,null,null,null,null,null,null,null,null,null,null,null,"CPO13","année",null,"CA13","2022",null,"DA13","Bifteck haché de bœuf",null,"DB13","Cocotte minute",null,null,null,null,null,null,null,"DNA13","Autres dépenses non alimentaires",null,null,null,null,"RM13","Mutuelle radiographies",null,"RN13","Fidélité Gémo",null,"CPB13","Tous les 4 jours",null,"CCAB13","1 bouteille de 75 centilitres (apéritif)"]
[null,null,null,null,null,null,null,null,null,null,null,null,null,null,null,null,null,null,"CA14","2023",null,"DA14","Bifteck haché de cheval",null,"DB14","Congélateur",null,null,null,null,null,null,null,"DNA14","Autres étrennes à répartir",null,null,null,null,"RM14","Mutuelle verres des lunettes",null,"RN14","Fidélité Leclerc",null,"CPB14","Trimestrielle",null,"CCAB14","1 branche pour 1 repas (céleri)"]
[null,null,null,null,null,null,null,null,null,null,null,null,null,null,null,null,null,null,"CA15","2024",null,"DA15","Bifteck haché de veau",null,"DB15","Cuisinière",null,null,null,null,null,null,null,"DNA15","Billets de tombola",null,null,null,null,"RM15","Sécurité sociale autres recettes médicales",null,"RN15","Remboursement argent prêté à des tiers",null,null,null,null,"CCAB15","1 cahier de 100 feuilles (cigarettes)"]
[null,null,null,null,null,null,null,null,null,null,null,null,null,null,null,null,null,null,"CA16","2025",null,"DA16","Bœuf",null,"DB16","Électricité",null,null,null,null,null,null,null,"DNA16","Billets de train",null,null,null,null,"RM16","Sécurité sociale dentiste",null,"RN16","Trop-perçu sur monnaie rendue",null,null,null,null,"CCAB16","1 carnet de 10 billets (billets de tombola)"]
[null,null,null,null,null,null,null,null,null,null,null,null,null,null,null,null,null,null,"CA17","2026",null,"DA17","Bonbons",null,"DB17","Four à micro-ondes",null,null,null,null,null,null,null,"DNA17","Bougies",null,null,null,null,"RM17","Sécurité sociale docteur dermatologue",null,"RN17","Virements de fonds",null,null,null,null,"CCAB17","1 carnet de 10 tickets (Tickets de bus, de métro, de R.E.R., tous transports)"]
[null,null,null,null,null,null,null,null,null,null,null,null,null,null,null,null,null,null,"CA18","2027",null,"DA18","Bouchée à la reine",null,"DB18","Friteuse électrique",null,null,null,null,null,null,null,"DNA18","Bouteilles thermos",null,null,null,null,"RM18","Sécurité sociale docteur généraliste",null,null,null,null,null,null,null,"CCAB18","1 cartouche de 10 paquets (maximum mensuel; tabac)"]
[null,null,null,null,null,null,null,null,null,null,null,null,null,null,null,null,null,null,"CA19","2028",null,"DA19","Boudin",null,"DB19","Friteuse gaz",null,null,null,null,null,null,null,"DNA19","Boutons",null,null,null,null,"RM19","Sécurité sociale docteur ophtalmologiste",null,null,null,null,null,null,null,"CCAB19","1 flacon de ? (vitres)"]
[null,null,null,null,null,null,null,null,null,null,null,null,null,null,null,null,null,null,"CA20","2029",null,"DA20","Café",null,"DB20","Gaz",null,null,null,null,null,null,null,"DNA20","Briquets",null,null,null,null,"RM20","Sécurité sociale monture des lunettes",null,null,null,null,null,null,null,"CCAB20","1 flacon de 10 millilitres (vernis à ongles)"]
[null,null,null,null,null,null,null,null,null,null,null,null,null,null,null,null,null,null,"CA21","2030",null,"DA21","Carottes",null,"DB21","Graveur compact disc informatique",null,null,null,null,null,null,null,"DNA21","Brise-jets",null,null,null,null,"RM21","Sécurité sociale pharmacie vignette blanche",null,null,null,null,null,null,null,"CCAB21","1 flacon de 100 centilitres"]
[null,null,null,null,null,null,null,null,null,null,null,null,null,null,null,null,null,null,null,null,null,"DA22","Cassoulet",null,"DB22","Graveur compact disc vidéo",null,null,null,null,null,null,null,"DNA22","Brosses à dents",null,null,null,null,"RM22","Sécurité sociale pharmacie vignette bleue",null,null,null,null,null,null,null,"CCAB22","1 flacon de 125 millilitres (essence briquets Zippo)"]
[null,null,null,null,null,null,null,null,null,null,null,null,null,null,null,null,null,null,null,null,null,"DA23","Céleri",null,"DB23","Impôts locaux",null,null,null,null,null,null,null,"DNA23","Câbles imprimante",null,null,null,null,"RM23","Sécurité sociale pharmacie vignette orange",null,null,null,null,null,null,null,"CCAB23","1 flacon de 1980 millilitres (lessive pour le linge)"]
[null,null,null,null,null,null,null,null,null,null,null,null,null,null,null,null,null,null,null,null,null,"DA24","Cervelas",null,"DB24","Impôts sur le revenu des personnes physiques",null,null,null,null,null,null,null,"DNA24","Câbles réseau",null,null,null,null,"RM24","Sécurité sociale prélèvements",null,null,null,null,null,null,null,"CCAB24","1 flacon de 200 centilitres"]
[null,null,null,null,null,null,null,null,null,null,null,null,null,null,null,null,null,null,null,null,null,"DA25","Champignons",null,"DB25","Imprimantes",null,null,null,null,null,null,null,"DNA25","Cadeaux",null,null,null,null,"RM25","Sécurité sociale radiographies",null,null,null,null,null,null,null,"CCAB25","1 flacon de 200 millilitres"]
[null,null,null,null,null,null,null,null,null,null,null,null,null,null,null,null,null,null,null,null,null,"DA26","Cheval",null,"DB26","Livres bibliophiles",null,null,null,null,null,null,null,"DNA26","Cahiers",null,null,null,null,"RM26","Sécurité sociale verres des lunettes",null,null,null,null,null,null,null,"CCAB26","1 flacon de 250 millilitres (Gaz briquets Laguiole et Dupont)"]
[null,null,null,null,null,null,null,null,null,null,null,null,null,null,null,null,null,null,null,null,null,"DA27","Chips",null,"DB27","Livres informatiques",null,null,null,null,null,null,null,"DNA27","Cantine",null,null,null,null,null,null,null,null,null,null,null,null,null,"CCAB27","1 flacon de 3 litres"]
[null,null,null,null,null,null,null,null,null,null,null,null,null,null,null,null,null,null,null,null,null,"DA28","Chocolat",null,"DB28","Logiciels informatiques",null,null,null,null,null,null,null,"DNA28","Carte amicale des locataires (Confédération nationale du logement)",null,null,null,null,null,null,null,null,null,null,null,null,null,"CCAB28","1 flacon de 300 millilitres"]
[null,null,null,null,null,null,null,null,null,null,null,null,null,null,null,null,null,null,null,null,null,"DA29","Choucroute",null,"DB29","Loyer et charges",null,null,null,null,null,null,null,"DNA29","Cartes d'anniversaire",null,null,null,null,null,null,null,null,null,null,null,null,null,"CCAB29","1 flacon de 400 millilitres"]
[null,null,null,null,null,null,null,null,null,null,null,null,null,null,null,null,null,null,null,null,null,"DA30","Chou-fleur",null,"DB30","Machine à laver",null,null,null,null,null,null,null,"DNA30","Cartes de fêtes",null,null,null,null,null,null,null,null,null,null,null,null,null,"CCAB30","1 flacon de 6 pierres (briquets Zippo)"]
[null,null,null,null,null,null,null,null,null,null,null,null,null,null,null,null,null,null,null,null,null,"DA31","Choux de Bruxelles",null,"DB31","Magnétoscope",null,null,null,null,null,null,null,"DNA31","Cartes de vacances",null,null,null,null,null,null,null,null,null,null,null,null,null,"CCAB31","1 flacon de 750 grammes (Ajax)"]
[null,null,null,null,null,null,null,null,null,null,null,null,null,null,null,null,null,null,null,null,null,"DA32","Clémentine",null,"DB32","Mutuelle",null,null,null,null,null,null,null,"DNA32","Cartes de vœux",null,null,null,null,null,null,null,null,null,null,null,null,null,"CCAB32","1 flacon de 750 millilitres"]
[null,null,null,null,null,null,null,null,null,null,null,null,null,null,null,null,null,null,null,null,null,"DA33","Coca cola",null,"DB33","Ordinateurs de bureau",null,null,null,null,null,null,null,"DNA33","Cartouches imprimantes",null,null,null,null,null,null,null,null,null,null,null,null,null,"CCAB33","1 flacon engrais universel KB d'1 litre"]
[null,null,null,null,null,null,null,null,null,null,null,null,null,null,null,null,null,null,null,null,null,"DA34","Cœur",null,"DB34","Ordinateurs portables",null,null,null,null,null,null,null,"DNA34","Cartouches stylos-plume",null,null,null,null,null,null,null,null,null,null,null,null,null,"CCAB34","1 morceau de 400 grammes ou 300 grammes pour 3 repas (Saucisson Leclerc)"]
[null,null,null,null,null,null,null,null,null,null,null,null,null,null,null,null,null,null,null,null,null,"DA35","Concombre",null,"DB35","Protection de la maison (Protection 24)",null,null,null,null,null,null,null,"DNA35","Cassettes dictaphone",null,null,null,null,null,null,null,null,null,null,null,null,null,"CCAB35","1 morceau pour 5 repas (les cinq rôtis)"]
[null,null,null,null,null,null,null,null,null,null,null,null,null,null,null,null,null,null,null,null,null,"DA36","Confiture",null,"DB36","Rasoir électrique",null,null,null,null,null,null,null,"DNA36","Chaussures",null,null,null,null,null,null,null,null,null,null,null,null,null,"CCAB36","1 pack de 10 enveloppes déjà timbrées ou de 100 enveloppes non timbrées"]
[null,null,null,null,null,null,null,null,null,null,null,null,null,null,null,null,null,null,null,null,null,"DA37","Couscous",null,"DB37","Redevance télévision",null,null,null,null,null,null,null,"DNA37","Cigarettes déjà roulées",null,null,null,null,null,null,null,null,null,null,null,null,null,"CCAB37","1 pack de 10 stylos à bille (encres noire et rouge; en plus ou en moins)"]
[null,null,null,null,null,null,null,null,null,null,null,null,null,null,null,null,null,null,null,null,null,"DA38","Crème",null,"DB38","Réfrigérateur",null,null,null,null,null,null,null,"DNA38","Cinéma",null,null,null,null,null,null,null,null,null,null,null,null,null,"CCAB38","1 pack de 100 cure-dents"]
[null,null,null,null,null,null,null,null,null,null,null,null,null,null,null,null,null,null,null,null,null,"DA39","Croque-monsieur",null,"DB39","Réparations",null,null,null,null,null,null,null,"DNA39","Cirage",null,null,null,null,null,null,null,null,null,null,null,null,null,"CCAB39","1 pack de 100 étiquettes"]
[null,null,null,null,null,null,null,null,null,null,null,null,null,null,null,null,null,null,null,null,null,"DA40","Dattes",null,"DB40","Restaurant",null,null,null,null,null,null,null,"DNA40","Cirque",null,null,null,null,null,null,null,null,null,null,null,null,null,"CCAB40","1 pack de 100 sacs (aspirateur et poubelle)"]
[null,null,null,null,null,null,null,null,null,null,null,null,null,null,null,null,null,null,null,null,null,"DA41","Dinde",null,"DB41","Téléphone fixe et Internet",null,null,null,null,null,null,null,"DNA41","Ciseaux",null,null,null,null,null,null,null,null,null,null,null,null,null,"CCAB41","1 pack de 12 cartouches stylos-plume (en plus ou en moins)"]
[null,null,null,null,null,null,null,null,null,null,null,null,null,null,null,null,null,null,null,null,null,"DA42","Eau",null,"DB42","Téléphone Orange",null,null,null,null,null,null,null,"DNA42","Clenches",null,null,null,null,null,null,null,null,null,null,null,null,null,"CCAB42","1 pack de 12 pots. 1 pot par matin (yaourts matin)"]
[null,null,null,null,null,null,null,null,null,null,null,null,null,null,null,null,null,null,null,null,null,"DA43","Endives",null,"DB43","Téléphone portable",null,null,null,null,null,null,null,"DNA43","Cocotte minute",null,null,null,null,null,null,null,null,null,null,null,null,null,"CCAB43","1 pack de 12 rouleaux (papier hygiénique. En plus ou en moins)"]
[null,null,null,null,null,null,null,null,null,null,null,null,null,null,null,null,null,null,null,null,null,"DA44","Figues",null,"DB44","Télévision",null,null,null,null,null,null,null,"DNA44","Coiffeur",null,null,null,null,null,null,null,null,null,null,null,null,null,"CCAB44","1 pack de 2 crochets"]
[null,null,null,null,null,null,null,null,null,null,null,null,null,null,null,null,null,null,null,null,null,"DA45","Foie",null,"DB45","Vacances",null,null,null,null,null,null,null,"DNA45","Colle super glu",null,null,null,null,null,null,null,null,null,null,null,null,null,"CCAB45","1 pack de 2 éponges"]
[null,null,null,null,null,null,null,null,null,null,null,null,null,null,null,null,null,null,null,null,null,"DA46","Frites",null,"DB46","Virements de fonds",null,null,null,null,null,null,null,"DNA46","Collectes",null,null,null,null,null,null,null,null,null,null,null,null,null,"CCAB46","1 pack de 2 loqueteaux"]
[null,null,null,null,null,null,null,null,null,null,null,null,null,null,null,null,null,null,null,null,null,"DA47","Fromage blanc dessert",null,null,null,null,null,null,null,null,null,null,"DNA47","Compact disc rom informatique",null,null,null,null,null,null,null,null,null,null,null,null,null,"CCAB47","1 pack de 2 paires (lacets)"]
[null,null,null,null,null,null,null,null,null,null,null,null,null,null,null,null,null,null,null,null,null,"DA48","Fromage blanc matin",null,null,null,null,null,null,null,null,null,null,"DNA48","Compact disc rom vidéo",null,null,null,null,null,null,null,null,null,null,null,null,null,"CCAB48","1 pack de 2 savons de 400 grammes chacun (bas, cuisine et linge)"]
[null,null,null,null,null,null,null,null,null,null,null,null,null,null,null,null,null,null,null,null,null,"DA49","Fromage de tête",null,null,null,null,null,null,null,null,null,null,"DNA49","Congélateur",null,null,null,null,null,null,null,null,null,null,null,null,null,"CCAB49","1 pack de 2, 4, 8 piles (en plus ou en moins)"]
[null,null,null,null,null,null,null,null,null,null,null,null,null,null,null,null,null,null,null,null,null,"DA50","Fromage râpé",null,null,null,null,null,null,null,null,null,null,"DNA50","Corrector liquide",null,null,null,null,null,null,null,null,null,null,null,null,null,"CCAB50","1 pack de 3 berlingots (eau de Javel)"]
[null,null,null,null,null,null,null,null,null,null,null,null,null,null,null,null,null,null,null,null,null,"DA51","Fromage soir",null,null,null,null,null,null,null,null,null,null,"DNA51","Couteau électrique",null,null,null,null,null,null,null,null,null,null,null,null,null,"CCAB51","1 pack de 3 boîtes (allumettes)"]
[null,null,null,null,null,null,null,null,null,null,null,null,null,null,null,null,null,null,null,null,null,"DA52","Fruits au sirop",null,null,null,null,null,null,null,null,null,null,"DNA52","Crochets tringles",null,null,null,null,null,null,null,null,null,null,null,null,null,"CCAB52","1 pack de 3 cassettes"]
[null,null,null,null,null,null,null,null,null,null,null,null,null,null,null,null,null,null,null,null,null,"DA53","Fruits de saison",null,null,null,null,null,null,null,null,null,null,"DNA53","Cuisinière",null,null,null,null,null,null,null,null,null,null,null,null,null,"CCAB53","1 pack de 3 savonnettes de 125 grammes chacune (figure; en plus ou en moins)"]
[null,null,null,null,null,null,null,null,null,null,null,null,null,null,null,null,null,null,null,null,null,"DA54","Gâteau de riz",null,null,null,null,null,null,null,null,null,null,"DNA54","Cure-dents",null,null,null,null,null,null,null,null,null,null,null,null,null,"CCAB54","1 pack de 3 scotch brite (en plus ou en moins)"]
[null,null,null,null,null,null,null,null,null,null,null,null,null,null,null,null,null,null,null,null,null,"DA55","Gâteau de semoule",null,null,null,null,null,null,null,null,null,null,"DNA55","Décap'four",null,null,null,null,null,null,null,null,null,null,null,null,null,"CCAB55","1 pack de 4 brosses à dents"]
[null,null,null,null,null,null,null,null,null,null,null,null,null,null,null,null,null,null,null,null,null,"DA56","Gâteaux apéritif",null,null,null,null,null,null,null,null,null,null,"DNA56","Dentifrice",null,null,null,null,null,null,null,null,null,null,null,null,null,"CCAB56","1 pack de 4 pots pour le weekend end. 1 pot pour 1 repas"]
[null,null,null,null,null,null,null,null,null,null,null,null,null,null,null,null,null,null,null,null,null,"DA57","Gâteaux samedi et dimanche",null,null,null,null,null,null,null,null,null,null,"DNA57","Déodorant corporel",null,null,null,null,null,null,null,null,null,null,null,null,null,"CCAB57","1 pack de 4 pots. 1 pot par matin (yaourts matin)"]
[null,null,null,null,null,null,null,null,null,null,null,null,null,null,null,null,null,null,null,null,null,"DA58","Glaces",null,null,null,null,null,null,null,null,null,null,"DNA58","Déodorant maison",null,null,null,null,null,null,null,null,null,null,null,null,null,"CCAB58","1 pack de 4 savons de 200 grammes chacun (bas, cuisine et linge)"]
[null,null,null,null,null,null,null,null,null,null,null,null,null,null,null,null,null,null,null,null,null,"DA59","Gros sel",null,null,null,null,null,null,null,null,null,null,"DNA59","Dessous de plats",null,null,null,null,null,null,null,null,null,null,null,null,null,"CCAB59","1 pack de 4 stylos à bille (encres bleue et verte; en plus ou en moins)"]
[null,null,null,null,null,null,null,null,null,null,null,null,null,null,null,null,null,null,null,null,null,"DA60","Haricots verts",null,null,null,null,null,null,null,null,null,null,"DNA60","Destop",null,null,null,null,null,null,null,null,null,null,null,null,null,"CCAB60","1 pack de 6 pots. 3 pots par repas (petits suisses)"]
[null,null,null,null,null,null,null,null,null,null,null,null,null,null,null,null,null,null,null,null,null,"DA61","Huile",null,null,null,null,null,null,null,null,null,null,"DNA61","Détartrant water-closets",null,null,null,null,null,null,null,null,null,null,null,null,null,"CCAB61","1 pack de 8 paquets (papier hygiénique; en plus en en moins)"]
[null,null,null,null,null,null,null,null,null,null,null,null,null,null,null,null,null,null,null,null,null,"DA62","Jambon",null,null,null,null,null,null,null,null,null,null,"DNA62","Dévidoir scotch",null,null,null,null,null,null,null,null,null,null,null,null,null,"CCAB62","1 pack de 8 rouleaux (papier hygiénique; en plus ou en moins)"]
[null,null,null,null,null,null,null,null,null,null,null,null,null,null,null,null,null,null,null,null,null,"DA63","Jambonneau",null,null,null,null,null,null,null,null,null,null,"DNA63","Eau de Javel",null,null,null,null,null,null,null,null,null,null,null,null,null,"CCAB63","1 paquet de ? (épingles à linge)"]
[null,null,null,null,null,null,null,null,null,null,null,null,null,null,null,null,null,null,null,null,null,"DA64","Lait",null,null,null,null,null,null,null,null,null,null,"DNA64","Eau de toilette",null,null,null,null,null,null,null,null,null,null,null,null,null,"CCAB64","1 paquet de 20 cigarettes"]
[null,null,null,null,null,null,null,null,null,null,null,null,null,null,null,null,null,null,null,null,null,"DA65","Légumes de couscous",null,null,null,null,null,null,null,null,null,null,"DNA65","Élastiques",null,null,null,null,null,null,null,null,null,null,null,null,null,"CCAB65","1 paquet pour 2 repas"]
[null,null,null,null,null,null,null,null,null,null,null,null,null,null,null,null,null,null,null,null,null,"DA66","Macédoine de légumes",null,null,null,null,null,null,null,null,null,null,"DNA66","Enrouleuses à cigarettes",null,null,null,null,null,null,null,null,null,null,null,null,null,"CCAB66","1 paquet pour 2 repas (1 ou 2 saucisses pour 1 repas)"]
[null,null,null,null,null,null,null,null,null,null,null,null,null,null,null,null,null,null,null,null,null,"DA67","Maïs",null,null,null,null,null,null,null,null,null,null,"DNA67","Enveloppes pré-timbrées",null,null,null,null,null,null,null,null,null,null,null,null,null,"CCAB67","1 paquet pour 2 repas (salami;10 tranches pour 1 repas)"]
[null,null,null,null,null,null,null,null,null,null,null,null,null,null,null,null,null,null,null,null,null,"DA68","Mortadelle",null,null,null,null,null,null,null,null,null,null,"DNA68","Envois recommandés avec accusé de réception",null,null,null,null,null,null,null,null,null,null,null,null,null,"CCAB68","1 paquet pour 4 repas (dattes, figues et pruneaux)"]
[null,null,null,null,null,null,null,null,null,null,null,null,null,null,null,null,null,null,null,null,null,"DA69","Mousse au chocolat",null,null,null,null,null,null,null,null,null,null,"DNA69","Éphéméride",null,null,null,null,null,null,null,null,null,null,null,null,null,"CCAB69","1 plaquette de 250 grammes (beurre;2 mensuelles maximum)"]
[null,null,null,null,null,null,null,null,null,null,null,null,null,null,null,null,null,null,null,null,null,"DA70","Œufs",null,null,null,null,null,null,null,null,null,null,"DNA70","Épingles à linge",null,null,null,null,null,null,null,null,null,null,null,null,null,"CCAB70","1 portion par soir (fromage soir)"]
[null,null,null,null,null,null,null,null,null,null,null,null,null,null,null,null,null,null,null,null,null,"DA71","Oranges",null,null,null,null,null,null,null,null,null,null,"DNA71","Éponges pour la table",null,null,null,null,null,null,null,null,null,null,null,null,null,"CCAB71","1 ramette de 200 feuilles (papier couleur imprimantes)"]
[null,null,null,null,null,null,null,null,null,null,null,null,null,null,null,null,null,null,null,null,null,"DA72","Paella",null,null,null,null,null,null,null,null,null,null,"DNA72","Éponges pour le ménage",null,null,null,null,null,null,null,null,null,null,null,null,null,"CCAB72","1 ramette de 500 feuilles (papier blanc pour imprimantes)"]
[null,null,null,null,null,null,null,null,null,null,null,null,null,null,null,null,null,null,null,null,null,"DA73","Pain",null,null,null,null,null,null,null,null,null,null,"DNA73","Essence pour briquets Zippo",null,null,null,null,null,null,null,null,null,null,null,null,null,"CCAB73","1 sac de 20 litres (terre)"]
[null,null,null,null,null,null,null,null,null,null,null,null,null,null,null,null,null,null,null,null,null,"DA74","Pâtes",null,null,null,null,null,null,null,null,null,null,"DNA74","Essoreuse à salade",null,null,null,null,null,null,null,null,null,null,null,null,null,"CCAB74","1 sachet pour 2 repas"]
[null,null,null,null,null,null,null,null,null,null,null,null,null,null,null,null,null,null,null,null,null,"DA75","Petits pois",null,null,null,null,null,null,null,null,null,null,"DNA75","Étendoirs à linge (mural et sur pied)",null,null,null,null,null,null,null,null,null,null,null,null,null,"CCAB75","1 sachet pour 4 repas (crème)"]
[null,null,null,null,null,null,null,null,null,null,null,null,null,null,null,null,null,null,null,null,null,"DA76","Petits pois et jeunes carottes",null,null,null,null,null,null,null,null,null,null,"DNA76","Étiquettes pour autres usages",null,null,null,null,null,null,null,null,null,null,null,null,null,"CCAB76","1 ticket unitaire"]
[null,null,null,null,null,null,null,null,null,null,null,null,null,null,null,null,null,null,null,null,null,"DA77","Petits suisses",null,null,null,null,null,null,null,null,null,null,"DNA77","Étiquettes pour cassettes",null,null,null,null,null,null,null,null,null,null,null,null,null,"CCAB77","1 timbre (parti communiste français, syndicat C.G.T., timbres-poste)"]
[null,null,null,null,null,null,null,null,null,null,null,null,null,null,null,null,null,null,null,null,null,"DA78","Pizza",null,null,null,null,null,null,null,null,null,null,"DNA78","Étiquettes pour compact disc rom",null,null,null,null,null,null,null,null,null,null,null,null,null,"CCAB78","1 tranche pour 1 repas (viandes weekend end)"]
[null,null,null,null,null,null,null,null,null,null,null,null,null,null,null,null,null,null,null,null,null,"DA79","Poireau",null,null,null,null,null,null,null,null,null,null,"DNA79","Étrennes des éboueurs",null,null,null,null,null,null,null,null,null,null,null,null,null,"CCAB79","1 tube unitaire de 75, 100 ou 125 millilitres (dentifrice)"]
[null,null,null,null,null,null,null,null,null,null,null,null,null,null,null,null,null,null,null,null,null,"DA80","Poisson",null,null,null,null,null,null,null,null,null,null,"DNA80","Étrennes des pompiers",null,null,null,null,null,null,null,null,null,null,null,null,null,"CCAB80","125 grammes pour 1 repas (bifteck haché de cheval)"]
[null,null,null,null,null,null,null,null,null,null,null,null,null,null,null,null,null,null,null,null,null,"DA81","Poivre gris",null,null,null,null,null,null,null,null,null,null,"DNA81","Étrennes du facteur",null,null,null,null,null,null,null,null,null,null,null,null,null,"CCAB81","20 frites pour 1 repas"]
[null,null,null,null,null,null,null,null,null,null,null,null,null,null,null,null,null,null,null,null,null,"DA82","Pomme",null,null,null,null,null,null,null,null,null,null,"DNA82","Étrennes du gardien",null,null,null,null,null,null,null,null,null,null,null,null,null,"CCAB82","25 grammes pour 1 repas (couscous, riz légume)"]
[null,null,null,null,null,null,null,null,null,null,null,null,null,null,null,null,null,null,null,null,null,"DA83","Pomme de terre",null,null,null,null,null,null,null,null,null,null,"DNA83","Étuis à cigarettes",null,null,null,null,null,null,null,null,null,null,null,null,null,"CCAB83","3 tranches pour 1 repas (roulade à la pistache, tête roulée)"]
[null,null,null,null,null,null,null,null,null,null,null,null,null,null,null,null,null,null,null,null,null,"DA84","Porc",null,null,null,null,null,null,null,null,null,null,"DNA84","Fer électrique",null,null,null,null,null,null,null,null,null,null,null,null,null,"CCAB84","5 cuillères pour un repas (pâtes)"]
[null,null,null,null,null,null,null,null,null,null,null,null,null,null,null,null,null,null,null,null,null,"DA85","Pruneaux",null,null,null,null,null,null,null,null,null,null,"DNA85","Feuilles à cigarettes",null,null,null,null,null,null,null,null,null,null,null,null,null,"CCAB85","La paire (chaussures)"]
[null,null,null,null,null,null,null,null,null,null,null,null,null,null,null,null,null,null,null,null,null,"DA86","Purée",null,null,null,null,null,null,null,null,null,null,"DNA86","Four à micro-ondes",null,null,null,null,null,null,null,null,null,null,null,null,null,"CCAB86","Pack de ?"]
[null,null,null,null,null,null,null,null,null,null,null,null,null,null,null,null,null,null,null,null,null,"DA87","Quenelles",null,null,null,null,null,null,null,null,null,null,"DNA87","Frais d'essence",null,null,null,null,null,null,null,null,null,null,null,null,null,"CCAB87","Pour 2 draps"]
[null,null,null,null,null,null,null,null,null,null,null,null,null,null,null,null,null,null,null,null,null,"DA88","Quiche lorraine",null,null,null,null,null,null,null,null,null,null,"DNA88","Friteuse à gaz",null,null,null,null,null,null,null,null,null,null,null,null,null,"CCAB88","Sans conditionnement"]
[null,null,null,null,null,null,null,null,null,null,null,null,null,null,null,null,null,null,null,null,null,"DA89","Radis",null,null,null,null,null,null,null,null,null,null,"DNA89","Friteuse électrique",null,null,null,null,null,null,null,null,null,null,null,null,null,"CCAB89","Unité"]
[null,null,null,null,null,null,null,null,null,null,null,null,null,null,null,null,null,null,null,null,null,"DA90","Ratatouille",null,null,null,null,null,null,null,null,null,null,"DNA90","Gaz pour allume-gaz",null,null,null,null,null,null,null,null,null,null,null,null,null,"CCAB90","Unité : 1 brin ou 1 pot (muguet)"]
[null,null,null,null,null,null,null,null,null,null,null,null,null,null,null,null,null,null,null,null,null,"DA91","Raviolis",null,null,null,null,null,null,null,null,null,null,"DNA91","Gaz pour briquet Dupont",null,null,null,null,null,null,null,null,null,null,null,null,null,"CCAB91","Unité : 1 par repas"]
[null,null,null,null,null,null,null,null,null,null,null,null,null,null,null,null,null,null,null,null,null,"DA92","Riz dessert",null,null,null,null,null,null,null,null,null,null,"DNA92","Gaz pour briquets Laguiole",null,null,null,null,null,null,null,null,null,null,null,null,null,"CCAB92","Unité : 1 pot"]
[null,null,null,null,null,null,null,null,null,null,null,null,null,null,null,null,null,null,null,null,null,"DA93","Riz légume",null,null,null,null,null,null,null,null,null,null,"DNA93","Graveur compact disc informatique",null,null,null,null,null,null,null,null,null,null,null,null,null,"CCAB93","Unité : 1 pour 2 repas  (chou-fleur)"]
[null,null,null,null,null,null,null,null,null,null,null,null,null,null,null,null,null,null,null,null,null,"DA94","Rôti d'agneau",null,null,null,null,null,null,null,null,null,null,"DNA94","Graveur compact disc vidéo",null,null,null,null,null,null,null,null,null,null,null,null,null,"CCAB94","Unité : 1 pour 4 repas (ananas)"]
[null,null,null,null,null,null,null,null,null,null,null,null,null,null,null,null,null,null,null,null,null,"DA95","Rôti de bœuf",null,null,null,null,null,null,null,null,null,null,"DNA95","Imprimantes",null,null,null,null,null,null,null,null,null,null,null,null,null,"CCAB95","Unité : 2 ou 4 pour 1 repas (clémentines, autres fruits)"]
[null,null,null,null,null,null,null,null,null,null,null,null,null,null,null,null,null,null,null,null,null,"DA96","Rôti de cheval",null,null,null,null,null,null,null,null,null,null,"DNA96","Insecticide",null,null,null,null,null,null,null,null,null,null,null,null,null,"CCAB96","Unité : 2 pour 1 repas"]
[null,null,null,null,null,null,null,null,null,null,null,null,null,null,null,null,null,null,null,null,null,"DA97","Rôti de porc",null,null,null,null,null,null,null,null,null,null,"DNA97","Lacets"]
[null,null,null,null,null,null,null,null,null,null,null,null,null,null,null,null,null,null,null,null,null,"DA98","Rôti de veau",null,null,null,null,null,null,null,null,null,null,"DNA98","Lames rasoir électrique"]
[null,null,null,null,null,null,null,null,null,null,null,null,null,null,null,null,null,null,null,null,null,"DA99","Roulade à la pistache",null,null,null,null,null,null,null,null,null,null,"DNA99","Lampe halogène"]
[null,null,null,null,null,null,null,null,null,null,null,null,null,null,null,null,null,null,null,null,null,"DA100","Roulé au fromage",null,null,null,null,null,null,null,null,null,null,"DNA100","Lampe torche"]
[null,null,null,null,null,null,null,null,null,null,null,null,null,null,null,null,null,null,null,null,null,"DA101","Salade",null,null,null,null,null,null,null,null,null,null,"DNA101","Lavage des draps"]
[null,null,null,null,null,null,null,null,null,null,null,null,null,null,null,null,null,null,null,null,null,"DA102","Salami",null,null,null,null,null,null,null,null,null,null,"DNA102","Lessive pour le linge"]
[null,null,null,null,null,null,null,null,null,null,null,null,null,null,null,null,null,null,null,null,null,"DA103","Salsifis",null,null,null,null,null,null,null,null,null,null,"DNA103","Linge"]
[null,null,null,null,null,null,null,null,null,null,null,null,null,null,null,null,null,null,null,null,null,"DA104","Sauce tomates",null,null,null,null,null,null,null,null,null,null,"DNA104","Linge de lit"]
[null,null,null,null,null,null,null,null,null,null,null,null,null,null,null,null,null,null,null,null,null,"DA105","Saucisses",null,null,null,null,null,null,null,null,null,null,"DNA105","Livres bibliophiles"]
[null,null,null,null,null,null,null,null,null,null,null,null,null,null,null,null,null,null,null,null,null,"DA106","Saucisson",null,null,null,null,null,null,null,null,null,null,"DNA106","Livres informatiques"]
[null,null,null,null,null,null,null,null,null,null,null,null,null,null,null,null,null,null,null,null,null,"DA107","Sel fin",null,null,null,null,null,null,null,null,null,null,"DNA107","Logiciels informatiques"]
[null,null,null,null,null,null,null,null,null,null,null,null,null,null,null,null,null,null,null,null,null,"DA108","Sucre",null,null,null,null,null,null,null,null,null,null,"DNA108","Loisirs"]
[null,null,null,null,null,null,null,null,null,null,null,null,null,null,null,null,null,null,null,null,null,"DA109","Tapioca",null,null,null,null,null,null,null,null,null,null,"DNA109","Loqueteaux"]
[null,null,null,null,null,null,null,null,null,null,null,null,null,null,null,null,null,null,null,null,null,"DA110","Tête persillée",null,null,null,null,null,null,null,null,null,null,"DNA110","Machine à laver"]
[null,null,null,null,null,null,null,null,null,null,null,null,null,null,null,null,null,null,null,null,null,"DA111","Tête roulée",null,null,null,null,null,null,null,null,null,null,"DNA111","Magnétoscope"]
[null,null,null,null,null,null,null,null,null,null,null,null,null,null,null,null,null,null,null,null,null,"DA112","Thé",null,null,null,null,null,null,null,null,null,null,"DNA112","Matériel à couture"]
[null,null,null,null,null,null,null,null,null,null,null,null,null,null,null,null,null,null,null,null,null,"DA113","Thon",null,null,null,null,null,null,null,null,null,null,"DNA113","Matériel de cuisine"]
[null,null,null,null,null,null,null,null,null,null,null,null,null,null,null,null,null,null,null,null,null,"DA114","Tomates",null,null,null,null,null,null,null,null,null,null,"DNA114","Matériel informatique"]
[null,null,null,null,null,null,null,null,null,null,null,null,null,null,null,null,null,null,null,null,null,"DA115","Tomates pelées",null,null,null,null,null,null,null,null,null,null,"DNA115","Minuteurs"]
[null,null,null,null,null,null,null,null,null,null,null,null,null,null,null,null,null,null,null,null,null,"DA116","Veau",null,null,null,null,null,null,null,null,null,null,"DNA116","Mutuelle"]
[null,null,null,null,null,null,null,null,null,null,null,null,null,null,null,null,null,null,null,null,null,"DA117","Vinaigre",null,null,null,null,null,null,null,null,null,null,"DNA117","Nappes de tables"]
[null,null,null,null,null,null,null,null,null,null,null,null,null,null,null,null,null,null,null,null,null,"DA118","Yaourts dessert",null,null,null,null,null,null,null,null,null,null,"DNA118","Nettoyage des vêtements"]
[null,null,null,null,null,null,null,null,null,null,null,null,null,null,null,null,null,null,null,null,null,"DA119","Yaourts matin",null,null,null,null,null,null,null,null,null,null,"DNA119","O'Cédar"]
[null,null,null,null,null,null,null,null,null,null,null,null,null,null,null,null,null,null,null,null,null,null,null,null,null,null,null,null,null,null,null,null,null,"DNA120","Ordinateurs de bureau"]
[null,null,null,null,null,null,null,null,null,null,null,null,null,null,null,null,null,null,null,null,null,null,null,null,null,null,null,null,null,null,null,null,null,"DNA121","Ordinateurs portables"]
[null,null,null,null,null,null,null,null,null,null,null,null,null,null,null,null,null,null,null,null,null,null,null,null,null,null,null,null,null,null,null,null,null,"DNA122","Ouvre-boîtes électrique"]
[null,null,null,null,null,null,null,null,null,null,null,null,null,null,null,null,null,null,null,null,null,null,null,null,null,null,null,null,null,null,null,null,null,"DNA123","Papier à lettres"]
[null,null,null,null,null,null,null,null,null,null,null,null,null,null,null,null,null,null,null,null,null,null,null,null,null,null,null,null,null,null,null,null,null,"DNA124","Papier aluminium"]
[null,null,null,null,null,null,null,null,null,null,null,null,null,null,null,null,null,null,null,null,null,null,null,null,null,null,null,null,null,null,null,null,null,"DNA125","Papier blanc imprimantes"]
[null,null,null,null,null,null,null,null,null,null,null,null,null,null,null,null,null,null,null,null,null,null,null,null,null,null,null,null,null,null,null,null,null,"DNA126","Papier couleur imprimantes"]
[null,null,null,null,null,null,null,null,null,null,null,null,null,null,null,null,null,null,null,null,null,null,null,null,null,null,null,null,null,null,null,null,null,"DNA127","Papier hygiénique"]
[null,null,null,null,null,null,null,null,null,null,null,null,null,null,null,null,null,null,null,null,null,null,null,null,null,null,null,null,null,null,null,null,null,"DNA128","Parapluie"]
[null,null,null,null,null,null,null,null,null,null,null,null,null,null,null,null,null,null,null,null,null,null,null,null,null,null,null,null,null,null,null,null,null,"DNA129","Parti communiste français"]
[null,null,null,null,null,null,null,null,null,null,null,null,null,null,null,null,null,null,null,null,null,null,null,null,null,null,null,null,null,null,null,null,null,"DNA130","Pétrole Hahn"]
[null,null,null,null,null,null,null,null,null,null,null,null,null,null,null,null,null,null,null,null,null,null,null,null,null,null,null,null,null,null,null,null,null,"DNA131","Pierres à briquets Zippo"]
[null,null,null,null,null,null,null,null,null,null,null,null,null,null,null,null,null,null,null,null,null,null,null,null,null,null,null,null,null,null,null,null,null,"DNA132","Pile calculatrice"]
[null,null,null,null,null,null,null,null,null,null,null,null,null,null,null,null,null,null,null,null,null,null,null,null,null,null,null,null,null,null,null,null,null,"DNA133","Pile dictaphone"]
[null,null,null,null,null,null,null,null,null,null,null,null,null,null,null,null,null,null,null,null,null,null,null,null,null,null,null,null,null,null,null,null,null,"DNA134","Pile lampe torche"]
[null,null,null,null,null,null,null,null,null,null,null,null,null,null,null,null,null,null,null,null,null,null,null,null,null,null,null,null,null,null,null,null,null,"DNA135","Pile minuteurs"]
[null,null,null,null,null,null,null,null,null,null,null,null,null,null,null,null,null,null,null,null,null,null,null,null,null,null,null,null,null,null,null,null,null,"DNA136","Pile montre"]
[null,null,null,null,null,null,null,null,null,null,null,null,null,null,null,null,null,null,null,null,null,null,null,null,null,null,null,null,null,null,null,null,null,"DNA137","Pile pendules"]
[null,null,null,null,null,null,null,null,null,null,null,null,null,null,null,null,null,null,null,null,null,null,null,null,null,null,null,null,null,null,null,null,null,"DNA138","Pile réveils"]
[null,null,null,null,null,null,null,null,null,null,null,null,null,null,null,null,null,null,null,null,null,null,null,null,null,null,null,null,null,null,null,null,null,"DNA139","Pile souris"]
[null,null,null,null,null,null,null,null,null,null,null,null,null,null,null,null,null,null,null,null,null,null,null,null,null,null,null,null,null,null,null,null,null,"DNA140","Pile télécommande décodeur Orange"]
[null,null,null,null,null,null,null,null,null,null,null,null,null,null,null,null,null,null,null,null,null,null,null,null,null,null,null,null,null,null,null,null,null,"DNA141","Pile télécommande magnétoscope"]
[null,null,null,null,null,null,null,null,null,null,null,null,null,null,null,null,null,null,null,null,null,null,null,null,null,null,null,null,null,null,null,null,null,"DNA142","Pile télécommande récepteur TNT"]
[null,null,null,null,null,null,null,null,null,null,null,null,null,null,null,null,null,null,null,null,null,null,null,null,null,null,null,null,null,null,null,null,null,"DNA143","Pile télécommande récepteur TNT HD"]
[null,null,null,null,null,null,null,null,null,null,null,null,null,null,null,null,null,null,null,null,null,null,null,null,null,null,null,null,null,null,null,null,null,"DNA144","Pile télécommande télévision"]
[null,null,null,null,null,null,null,null,null,null,null,null,null,null,null,null,null,null,null,null,null,null,null,null,null,null,null,null,null,null,null,null,null,"DNA145","Pile transistors"]
[null,null,null,null,null,null,null,null,null,null,null,null,null,null,null,null,null,null,null,null,null,null,null,null,null,null,null,null,null,null,null,null,null,"DNA146","Piles claviers"]
[null,null,null,null,null,null,null,null,null,null,null,null,null,null,null,null,null,null,null,null,null,null,null,null,null,null,null,null,null,null,null,null,null,"DNA147","Pourboires"]
[null,null,null,null,null,null,null,null,null,null,null,null,null,null,null,null,null,null,null,null,null,null,null,null,null,null,null,null,null,null,null,null,null,"DNA148","Produit liquide plancher"]
[null,null,null,null,null,null,null,null,null,null,null,null,null,null,null,null,null,null,null,null,null,null,null,null,null,null,null,null,null,null,null,null,null,"DNA149","Produit liquide vaisselle"]
[null,null,null,null,null,null,null,null,null,null,null,null,null,null,null,null,null,null,null,null,null,null,null,null,null,null,null,null,null,null,null,null,null,"DNA150","Produit liquide vitres"]
[null,null,null,null,null,null,null,null,null,null,null,null,null,null,null,null,null,null,null,null,null,null,null,null,null,null,null,null,null,null,null,null,null,"DNA151","Programme de télévision"]
[null,null,null,null,null,null,null,null,null,null,null,null,null,null,null,null,null,null,null,null,null,null,null,null,null,null,null,null,null,null,null,null,null,"DNA152","Radiateur électrique"]
[null,null,null,null,null,null,null,null,null,null,null,null,null,null,null,null,null,null,null,null,null,null,null,null,null,null,null,null,null,null,null,null,null,"DNA153","Rasoir électrique"]
[null,null,null,null,null,null,null,null,null,null,null,null,null,null,null,null,null,null,null,null,null,null,null,null,null,null,null,null,null,null,null,null,null,"DNA154","Recharge bloc éphéméride"]
[null,null,null,null,null,null,null,null,null,null,null,null,null,null,null,null,null,null,null,null,null,null,null,null,null,null,null,null,null,null,null,null,null,"DNA155","Recharge cure-dents"]
[null,null,null,null,null,null,null,null,null,null,null,null,null,null,null,null,null,null,null,null,null,null,null,null,null,null,null,null,null,null,null,null,null,"DNA156","Redevance télévision"]
[null,null,null,null,null,null,null,null,null,null,null,null,null,null,null,null,null,null,null,null,null,null,null,null,null,null,null,null,null,null,null,null,null,"DNA157","Réfrigérateur"]
[null,null,null,null,null,null,null,null,null,null,null,null,null,null,null,null,null,null,null,null,null,null,null,null,null,null,null,null,null,null,null,null,null,"DNA158","Remboursement argent prêté autres prêteurs"]
[null,null,null,null,null,null,null,null,null,null,null,null,null,null,null,null,null,null,null,null,null,null,null,null,null,null,null,null,null,null,null,null,null,"DNA159","Remboursement argent prêté par Bot Novacovici"]
[null,null,null,null,null,null,null,null,null,null,null,null,null,null,null,null,null,null,null,null,null,null,null,null,null,null,null,null,null,null,null,null,null,"DNA160","Remboursement argent prêté par Fafa"]
[null,null,null,null,null,null,null,null,null,null,null,null,null,null,null,null,null,null,null,null,null,null,null,null,null,null,null,null,null,null,null,null,null,"DNA161","Remboursement argent prêté par Joly Marc"]
[null,null,null,null,null,null,null,null,null,null,null,null,null,null,null,null,null,null,null,null,null,null,null,null,null,null,null,null,null,null,null,null,null,"DNA162","Remboursement argent prêté par Ray Claude"]
[null,null,null,null,null,null,null,null,null,null,null,null,null,null,null,null,null,null,null,null,null,null,null,null,null,null,null,null,null,null,null,null,null,"DNA163","Remboursement argent prêté par Sylvie coiffure"]
[null,null,null,null,null,null,null,null,null,null,null,null,null,null,null,null,null,null,null,null,null,null,null,null,null,null,null,null,null,null,null,null,null,"DNA164","Remboursement argent prêté par Vendrisse Jacques"]
[null,null,null,null,null,null,null,null,null,null,null,null,null,null,null,null,null,null,null,null,null,null,null,null,null,null,null,null,null,null,null,null,null,"DNA165","Réparations"]
[null,null,null,null,null,null,null,null,null,null,null,null,null,null,null,null,null,null,null,null,null,null,null,null,null,null,null,null,null,null,null,null,null,"DNA166","Restaurant"]
[null,null,null,null,null,null,null,null,null,null,null,null,null,null,null,null,null,null,null,null,null,null,null,null,null,null,null,null,null,null,null,null,null,"DNA167","Rouleaux papier calculatrice"]
[null,null,null,null,null,null,null,null,null,null,null,null,null,null,null,null,null,null,null,null,null,null,null,null,null,null,null,null,null,null,null,null,null,"DNA168","Ruban d'imprimante"]
[null,null,null,null,null,null,null,null,null,null,null,null,null,null,null,null,null,null,null,null,null,null,null,null,null,null,null,null,null,null,null,null,null,"DNA169","Sacs à aspirateur"]
[null,null,null,null,null,null,null,null,null,null,null,null,null,null,null,null,null,null,null,null,null,null,null,null,null,null,null,null,null,null,null,null,null,"DNA170","Sacs à poubelle"]
[null,null,null,null,null,null,null,null,null,null,null,null,null,null,null,null,null,null,null,null,null,null,null,null,null,null,null,null,null,null,null,null,null,"DNA171","Savon noir"]
[null,null,null,null,null,null,null,null,null,null,null,null,null,null,null,null,null,null,null,null,null,null,null,null,null,null,null,null,null,null,null,null,null,"DNA172","Savon pour la cuisine"]
[null,null,null,null,null,null,null,null,null,null,null,null,null,null,null,null,null,null,null,null,null,null,null,null,null,null,null,null,null,null,null,null,null,"DNA173","Savon pour le bas"]
[null,null,null,null,null,null,null,null,null,null,null,null,null,null,null,null,null,null,null,null,null,null,null,null,null,null,null,null,null,null,null,null,null,"DNA174","Savon pour le linge"]
[null,null,null,null,null,null,null,null,null,null,null,null,null,null,null,null,null,null,null,null,null,null,null,null,null,null,null,null,null,null,null,null,null,"DNA175","Savonnette figure"]
[null,null,null,null,null,null,null,null,null,null,null,null,null,null,null,null,null,null,null,null,null,null,null,null,null,null,null,null,null,null,null,null,null,"DNA176","Scotch"]
[null,null,null,null,null,null,null,null,null,null,null,null,null,null,null,null,null,null,null,null,null,null,null,null,null,null,null,null,null,null,null,null,null,"DNA177","Scotch brite"]
[null,null,null,null,null,null,null,null,null,null,null,null,null,null,null,null,null,null,null,null,null,null,null,null,null,null,null,null,null,null,null,null,null,"DNA178","Serpillières"]
[null,null,null,null,null,null,null,null,null,null,null,null,null,null,null,null,null,null,null,null,null,null,null,null,null,null,null,null,null,null,null,null,null,"DNA179","Shampooing"]
[null,null,null,null,null,null,null,null,null,null,null,null,null,null,null,null,null,null,null,null,null,null,null,null,null,null,null,null,null,null,null,null,null,"DNA180","Stylos à bille encre bleue"]
[null,null,null,null,null,null,null,null,null,null,null,null,null,null,null,null,null,null,null,null,null,null,null,null,null,null,null,null,null,null,null,null,null,"DNA181","Stylos à bille encre noire"]
[null,null,null,null,null,null,null,null,null,null,null,null,null,null,null,null,null,null,null,null,null,null,null,null,null,null,null,null,null,null,null,null,null,"DNA182","Stylos à bille encre rouge"]
[null,null,null,null,null,null,null,null,null,null,null,null,null,null,null,null,null,null,null,null,null,null,null,null,null,null,null,null,null,null,null,null,null,"DNA183","Stylos à bille encre verte"]
[null,null,null,null,null,null,null,null,null,null,null,null,null,null,null,null,null,null,null,null,null,null,null,null,null,null,null,null,null,null,null,null,null,"DNA184","Stylos à plume"]
[null,null,null,null,null,null,null,null,null,null,null,null,null,null,null,null,null,null,null,null,null,null,null,null,null,null,null,null,null,null,null,null,null,"DNA185","Syndicat C.G.T."]
[null,null,null,null,null,null,null,null,null,null,null,null,null,null,null,null,null,null,null,null,null,null,null,null,null,null,null,null,null,null,null,null,null,"DNA186","Tabac pour les cigarettes"]
[null,null,null,null,null,null,null,null,null,null,null,null,null,null,null,null,null,null,null,null,null,null,null,null,null,null,null,null,null,null,null,null,null,"DNA187","Taxi"]
[null,null,null,null,null,null,null,null,null,null,null,null,null,null,null,null,null,null,null,null,null,null,null,null,null,null,null,null,null,null,null,null,null,"DNA188","Téléphone fixe et Internet"]
[null,null,null,null,null,null,null,null,null,null,null,null,null,null,null,null,null,null,null,null,null,null,null,null,null,null,null,null,null,null,null,null,null,"DNA189","Téléphone Orange"]
[null,null,null,null,null,null,null,null,null,null,null,null,null,null,null,null,null,null,null,null,null,null,null,null,null,null,null,null,null,null,null,null,null,"DNA190","Téléphone portable"]
[null,null,null,null,null,null,null,null,null,null,null,null,null,null,null,null,null,null,null,null,null,null,null,null,null,null,null,null,null,null,null,null,null,"DNA191","Télévision"]
[null,null,null,null,null,null,null,null,null,null,null,null,null,null,null,null,null,null,null,null,null,null,null,null,null,null,null,null,null,null,null,null,null,"DNA192","Théâtre"]
[null,null,null,null,null,null,null,null,null,null,null,null,null,null,null,null,null,null,null,null,null,null,null,null,null,null,null,null,null,null,null,null,null,"DNA193","Tickets de bus"]
[null,null,null,null,null,null,null,null,null,null,null,null,null,null,null,null,null,null,null,null,null,null,null,null,null,null,null,null,null,null,null,null,null,"DNA194","Tickets de métro"]
[null,null,null,null,null,null,null,null,null,null,null,null,null,null,null,null,null,null,null,null,null,null,null,null,null,null,null,null,null,null,null,null,null,"DNA195","Tickets de RER"]
[null,null,null,null,null,null,null,null,null,null,null,null,null,null,null,null,null,null,null,null,null,null,null,null,null,null,null,null,null,null,null,null,null,"DNA196","Tickets tous transports"]
[null,null,null,null,null,null,null,null,null,null,null,null,null,null,null,null,null,null,null,null,null,null,null,null,null,null,null,null,null,null,null,null,null,"DNA197","Timbres poste"]
[null,null,null,null,null,null,null,null,null,null,null,null,null,null,null,null,null,null,null,null,null,null,null,null,null,null,null,null,null,null,null,null,null,"DNA198","Toners imprimante"]
[null,null,null,null,null,null,null,null,null,null,null,null,null,null,null,null,null,null,null,null,null,null,null,null,null,null,null,null,null,null,null,null,null,"DNA199","Trombones"]
[null,null,null,null,null,null,null,null,null,null,null,null,null,null,null,null,null,null,null,null,null,null,null,null,null,null,null,null,null,null,null,null,null,"DNA200","Tuyau gaz cuisinière"]
[null,null,null,null,null,null,null,null,null,null,null,null,null,null,null,null,null,null,null,null,null,null,null,null,null,null,null,null,null,null,null,null,null,"DNA201","Vernis à ongles"]
[null,null,null,null,null,null,null,null,null,null,null,null,null,null,null,null,null,null,null,null,null,null,null,null,null,null,null,null,null,null,null,null,null,"DNA202","Vêtements"]
[null,null,null,null,null,null,null,null,null,null,null,null,null,null,null,null,null,null,null,null,null,null,null,null,null,null,null,null,null,null,null,null,null,"DNA203","Vinaigre anticalcaire"]

{"sheet":"Accueil articles","index":1,"n_rows":0,"n_cols":0,"rows_kept":0,"cut":false,"hidden":false,"merged":[]}

{"sheet":"BD articles","index":2,"n_rows":8,"n_cols":12,"rows_kept":8,"cut":false,"hidden":false,"merged":[]}
[]
[null,"Code catégorie opération budgétaire","Catégorie opération budgétaire","Code article budgétaire","Article budgétaire","Code période budgétaire","Période budgétaire","Code conditionnement article budgétaire","Conditionnement article budgétaire","Date création","Code à modifier","À modifier"]
[null,"CCOB05","Dépenses non alimentaires","DNA07","Antitaches chaussures","CPB08","Journalière","CCAB03","1 bloc de 100 feuilles (papier à lettres)","2021-05-02","CAM02","Oui"]
[null,"CCOB01","Dépenses alimentaires","DA01","Agneau","CPB01","Annuelle","CCAB01","1 aller et retour (billets de train)","2021-05-02","CAM02","Oui"]
[null,"CCOB01","Dépenses alimentaires","DA01","Agneau","CPB05","Du 17 au 24 inclus de chaque mois","CCAB05","1 boîte de ? (trombones)","2021-05-04","CAM02","Oui"]
[null,"CCOB01","Dépenses alimentaires","DA08","Avocat légume","CPB05","Du 17 au 24 inclus de chaque mois","CCAB05","1 boîte de ? (trombones)","2021-05-04","CAM02","Oui"]
[null,"CCOB06","Recettes bancaires","RB03","Pension caisse nationale d'assurance vieillesse",null,null,null,null,"2021-05-26","CAM02","Oui"]
[null,"CCOB01","Dépenses alimentaires","DA07","Avocats desserts","CPB05","Du 17 au 24 inclus de chaque mois","CCAB05","1 boîte de ? (trombones)","2021-06-05","CAM02","Oui"]

{"sheet":"Saisie article 1","index":3,"n_rows":15,"n_cols":7,"rows_kept":15,"cut":false,"hidden":false,"merged":[]}
["Création article budgétaire (1)"]
[]
["Code catégories opérations budgétaires","CCOB01",null,null,null,"Légende de couleurs"]
["Catégories opération budgétaires",{"$f":"IFERROR(INDEX(COB,MATCH(B3,CCOB,0)),\"\")","v":"Dépenses alimentaires"},null,null,null,"jaune","liste ddéroulante de choix"]
["Date création",{"$f":"TODAY()","v":"2021-06-05"},null,null,null,"gris","formule, à ne pas modifier"]
["Code à modifier","CAM02"]
["Nom à modifier",{"$f":"IFERROR(INDEX(ÀModifier,MATCH(B6,CAM,0)),\"\")","v":"Oui"}]
[]
["Code articles budgétaires alimentaires","DA01"]
["Articles budgétaires alimentaires",{"$f":"IFERROR(IF($B$3=\"CCOB01\",INDEX(ABA,MATCH(B9,CABA,0)),IF($B$3=\"CCOB02\",INDEX(ABB,MATCH(B9,CABB,0)),IF($B$3=\"CCOB03\",INDEX(ABH,MATCH(B9,CABH,0)),IF($B$3=\"CCOB04\",INDEX(ABM,MATCH(B9,CABM,0)),IF($B$3=\"CCOB05\",INDEX(ABNA,MATCH(B9,CABNA,0)),IF($B$3=\"CCOB06\",INDEX(ABRB,MATCH(B9,CABRB,0)),IF($B$3=\"CCOB07\",INDEX(ABRM,MATCH(B9,CABRM,0)),IF($B$3=\"CCOB08\",INDEX(ABRN,MATCH(B9,CABRN,0)),\"\")))))))),\"\")","v":"Agneau"}]
["Code période budgétaire","CPB05"]
["Période budgétaire",{"$f":"IFERROR(INDEX(PB,MATCH(B11,CPB,0)),\"\")","v":"Du 17 au 24 inclus de chaque mois"}]
[]
["Code conditionnement articles budgétaires","CCAB05"]
["Conditionnement articles budgétaires",{"$f":"IFERROR(INDEX(CAB,MATCH(B14,CCAB,0)),\"\")","v":"1 boîte de ? (trombones)"}]

{"sheet":"Accueil dépenses","index":4,"n_rows":0,"n_cols":0,"rows_kept":0,"cut":false,"hidden":false,"merged":[]}

{"sheet":"BD dépenses","index":5,"n_rows":13,"n_cols":12,"rows_kept":13,"cut":false,"hidden":false,"merged":[]}
[]
[null,"Code catégorie dépense","Catégorie dépense","Date dépense","Code période opération","Période opération","Code article budgétaire","Article budgétaire","Code fournisseur","Fournisseur","Numéro ticket","Montant dépense"]
[null,"CCOB01","Dépenses alimentaires","2019-10-29","CPO11","novembre",null,null,null,"Géant Casino",null,3.51]
[null,"CCOB01","Dépenses alimentaires","2019-10-29","CPO10","octobre",null,null,null,"Géant Casino",null,0.10000000149011612]
[null,"CCOB01","Dépenses alimentaires","2019-10-29","CPO11","novembre",null,null,null,"Leclerc",null,0.1]
[null,"CCOB05","Dépenses non alimentaires","2019-10-29","CPO11","novembre",null,null,null,"Leclerc",null,0.5]
[null,"CCOB01","Dépenses alimentaires","2019-10-29","CPO11","novembre",null,null,null,"Leclerc",null,7.37]
[null,"CCOB01","Dépenses alimentaires","2019-10-29","CPO11","novembre",null,null,null,"Leclerc",null,22.329999923706055]
[null,"CCOB05","Dépenses non alimentaires","2019-10-29","CPO11","novembre",null,null,null,"Tabac de la poste",null,120]
[null,"CCOB01","Dépenses non alimentaires","2019-10-29","CPO11","novembre",null,null,null,"Sylvie coiffure",null,45.5]
[null,"CCOB01","Dépenses alimentaires","2021-05-04","CPO05","mai","DA01","Agneau","CF04","Pharmacie",1,10]
[null,null,"Dépenses alimentaires","2021-05-04",null,"mai",null,"Agneau",null,"Géant Casino",1,5]
[null,"Total",null,null,null,null,null,null,null,null,null,{"$f":"SUBTOTAL(109,BD_Dépenses[Montant dépense])","v":214.40999992519619}]

{"sheet":"Saisie dépense 1","index":6,"n_rows":17,"n_cols":7,"rows_kept":17,"cut":false,"hidden":false,"merged":[]}
["Saisie dépense (1)"]
[]
["Code catégorie dépense",null,null,null,null,"Légende de couleurs"]
["Catégorie dépense",{"$f":"IFERROR(INDEX(COB,MATCH(B3,CCOB,0)),\"\")","v":""},null,null,null,"jaune","liste ddéroulante de choix"]
["Date dépense","2021-05-02",null,null,null,"gris","formule, à ne pas modifier"]
["Code période opération","CPO05",null,null,null,"orange","saisie alphanumérique"]
["Période opération",{"$f":"IFERROR(INDEX(PO,MATCH(B6,CPO,0)),\"\")","v":"mai"}]
[]
[]
["Code article budgétaire"]
["Article budgétaire",{"$f":"IFERROR(IF($B$3=\"CCOB01\",INDEX(ABA,MATCH(B10,CABA,0)),IF($B$3=\"CCOB02\",INDEX(ABB,MATCH(B10,CABB,0)),IF($B$3=\"CCOB03\",INDEX(ABH,MATCH(B10,CABH,0)),IF($B$3=\"CCOB04\",INDEX(ABM,MATCH(B10,CABM,0)),IF($B$3=\"CCOB05\",INDEX(ABNA,MATCH(B10,CABNA,0)),\"\"))))),\"\")","v":""}]
["Code fournisseur"]
["Fournisseur",{"$f":"IFERROR(INDEX(ListeFournisseurs,MATCH(B12,CFOUR,0)),\"\")","v":""}]
["Numéro ticket"]
[]
[]
["Montant dépense"]

{"sheet":"Saisie dépense 2","index":7,"n_rows":17,"n_cols":7,"rows_kept":17,"cut":false,"hidden":false,"merged":[]}
["Saisie dépense (2)"]
[]
["Catégorie dépense",null,null,null,null,"Légende de couleurs"]
[null,null,null,null,null,"jaune","liste ddéroulante de choix"]
["Date dépense","2021-05-02"]
[null,null,null,null,null,"orange","saisie alphanumérique"]
["Période opération","mai"]
[]
[]
["Article budgétaire"]
[]
["Fournisseur"]
[]
["Numéro ticket"]
[]
[]
["Montant dépense"]

{"sheet":"Exemple dépenses","index":8,"n_rows":32,"n_cols":8,"rows_kept":32,"cut":false,"hidden":false,"merged":[]}
[]
[]
["Journée du 29 octobre 2019"]
[null,"Montant","Catégorie","Période","Fournisseur"]
["1 ticket de caisse de Géant casino pour 3,51 euros en totalité sur novembre 2019",3.51,"A","Novembre","Géant casino"]
["1 ticket de caisse géant casino pour 0,20 euro dont 0,10 euro sur octobre 2019 et 0,10 euro sur novembre 2019",0.1,"A","Novembre","Géant casino",0.1,"A","Octobre"]
["1 ticket de caisse Leclerc pour 0,50 euro en totalité sur novembre 2019",0.5,"NA","Novembre","Leclerc"]
["1 ticket de caisse Leclerc pour 7,37 euros en totalité sur novembre 2019",7.37,"A","Novembre","Leclerc"]
["1 ticket de caisse Leclerc pour 22,33 euros en totalité sur novembre 2019",22.33,"A","Novembre","Leclerc"]
["1 ticket de caisse Tabac de la poste pour 120,00 euros en totalité sur novembre 2019",120,"NA","Novembre","Tabac de la poste"]
["1 ticket de caisse Sylvie coiffure pour 45,50 euros en totalité sur novembre 2019",45.5,"Recette","Novembre","Sylvie coiffure"]
["1 ticket de caisse Euromatic pour 290,00 euros en totalité sur novembre 2019 (il s'agit d'une recette).",290,null,"Novembre","BFCC"]
["Le total des recettes de la journée et 290,00 euros, celui des dépenses est de 199,31 euros."]
[]
["La répartition par client et fournisseurs est la suivante :"]
["BFCC : 290,00 euros"]
["Géant casino : 3,61 euros"]
["Leclerc : 30,20 euros"]
["Tabac de la poste : 120,00 euros"]
["Sylvie coiffure : 45,50 euros."]
[]
["La répartie par catégorie est la suivante :"]
["alimentation : 33,31 euros"]
["Non alimentation : 166,00 euros"]
[]
["La recette et les dépenses seront à enregister à la date du 29 octobre 2019 mais imputable au mois de novembre 2019 (Période concernée : novembre 2019)"]
[]
["Qui pourra m'aider à créer le programme qui me permettra d'enregistrer toutes ces opérations ? Ma suggestion :"]
["créer une feuille saisie qui me permettra de saisir les dépenses par fournisseurs et les recettes par clients (plusieurs lignes fournisseurs, plusieurs lignes clients)"]
["créer une feuille saisie qui me permettra de saisir les dépenses par catégories (plusieurs lignes)"]
["créer une feuille solde numéraire (une seule ou une individuelle par mois) pour calculer le solde journalier."]
["Créer une feuille saisie pour chacun des articles de dépenses et de recettes"]

{"sheet":"Accueil articles budgétaires","index":9,"n_rows":1,"n_cols":1,"rows_kept":1,"cut":false,"hidden":true,"merged":[]}
["Accueil articles budgétaires."]

{"sheet":"Saisie PA","index":10,"n_rows":14,"n_cols":2,"rows_kept":14,"cut":false,"hidden":true,"merged":[[0,0,0,1]]}
["Création produits alimentaires."]
[]
["Code catégories opérations budgétaires","CCOB01"]
["Catégories opération budgétaires",{"$f":"IFERROR(INDEX(COB,MATCH($B$3,CCOB,0)),\"-\")","v":"Dépenses alimentaires"}]
["Date création",{"$f":"TODAY()","v":"2021-06-05"}]
["Code à modifier","CAM02"]
["Nom à modifier",{"$f":"IFERROR(INDEX(ÀModifier,MATCH($B$6,CAM,0)),\"-\")","v":"Oui"}]
[]
["Code articles budgétaires alimentaires","DA73"]
["Articles budgétaires alimentaires",{"$f":"IFERROR(INDEX(ABA,MATCH($B$9,CABA,0)),\"-\")","v":"Pain"}]
["Code période budgétaire","CPB08"]
["Période budgétaire",{"$f":"IFERROR(INDEX(PB,MATCH(B11,CPB,0)),\"-\")","v":"Journalière"}]
["Code conditionnement articles budgétaires","CCAB02"]
["Conditionnement articles budgétaires",{"$f":"IFERROR(INDEX(CAB,MATCH($B$13,CCAB,0)),\"-\")","v":"1 baguette pour 4 jours (pain)"}]

{"sheet":"BD articles budgétaires","index":11,"n_rows":2,"n_cols":11,"rows_kept":2,"cut":false,"hidden":true,"merged":[]}
["Code catégories opérations budgétaires","Catégories opérations budgétaires","Code articles budgétaires","Articles budgétaires","Code période budgétaire","Période budgétaire","Code conditionnement articles budgétaires","Conditionnement articles budgétaires","Date création","Code à modifier","À modifier"]
[1,2,3]

{"sheet":"Articles alimentaires","index":12,"n_rows":3,"n_cols":9,"rows_kept":3,"cut":false,"hidden":false,"merged":[]}
["Articles alimentaires."]
[]
["Code catégories articles budgétaires","Catégories articles budgétaires","Code articles budgétaires","Articles budgétaires","Code période budgétaire","Période budgétaire","Code conditionnement articles budgétaires","Conditionnement articles budgétaires","Numéro création"]

{"sheet":"Articles bancaires","index":13,"n_rows":3,"n_cols":9,"rows_kept":3,"cut":false,"hidden":true,"merged":[]}
["Articles bancaires."]
[]
["Code catégories articles budgétaires","Catégories articles budgétaires","Code articles budgétaires","Articles budgétaires","Code période budgétaire","Période budgétaire","Code conditionnement articles budgétaires","Conditionnement articles budgétaires","Numéro création"]

{"sheet":"Articles horticoles","index":14,"n_rows":3,"n_cols":9,"rows_kept":3,"cut":false,"hidden":true,"merged":[]}
["Articles horticoles."]
[]
["Code catégories articles budgétaires","Catégories articles budgétaires","Code articles budgétaires","Articles budgétaires","Code période budgétaire","Période budgétaire","Code conditionnement articles budgétaires","Conditionnement articles budgétaires","Numéro création"]

{"sheet":"Articles médicaux","index":15,"n_rows":3,"n_cols":9,"rows_kept":3,"cut":false,"hidden":true,"merged":[]}
["Articles médicaux."]
[]
["Code catégories articles budgétaires","Catégories articles budgétaires","Code articles budgétaires","Articles budgétaires","Code période budgétaire","Période budgétaire","Code conditionnement articles budgétaires","Conditionnement articles budgétaires","Numéro création"]

{"sheet":"Articles non alimentaires","index":16,"n_rows":3,"n_cols":9,"rows_kept":3,"cut":false,"hidden":true,"merged":[]}
["Articles non alimentaires."]
[]
["Code catégories articles budgétaires","Catégories articles budgétaires","Code articles budgétaires","Articles budgétaires","Code période budgétaire","Période budgétaire","Code conditionnement articles budgétaires","Conditionnement articles budgétaires","Numéro création"]

{"sheet":"Articles recettes bancaires","index":17,"n_rows":3,"n_cols":9,"rows_kept":3,"cut":false,"hidden":true,"merged":[]}
["Articles recettes bancaires."]
[]
["Code catégories articles budgétaires","Catégories articles budgétaires","Code articles budgétaires","Articles budgétaires","Code période budgétaire","Période budgétaire","Code conditionnement articles budgétaires","Conditionnement articles budgétaires","Numéro création"]

{"sheet":"Articles recettes médicales","index":18,"n_rows":3,"n_cols":9,"rows_kept":3,"cut":false,"hidden":true,"merged":[]}
["Articles recettes médicales."]
[]
["Code catégories articles budgétaires","Catégories articles budgétaires","Code articles budgétaires","Articles budgétaires","Code période budgétaire","Période budgétaire","Code conditionnement articles budgétaires","Conditionnement articles budgétaires","Numéro création"]

{"sheet":"Articles recettes numéraires","index":19,"n_rows":3,"n_cols":9,"rows_kept":3,"cut":false,"hidden":true,"merged":[]}
["Articles recettes numéraires."]
[]
["Code catégories articles budgétaires","Catégories articles budgétaires","Code articles budgétaires","Articles budgétaires","Code période budgétaire","Période budgétaire","Code conditionnement articles budgétaires","Conditionnement articles budgétaires","Numéro création"]

{"sheet":"Soldes numéraires","index":20,"n_rows":442,"n_cols":12,"rows_kept":442,"cut":false,"hidden":false,"merged":[]}
[{"$f":"\"Solde numéraire journalier \" & TEXT($A5,\"mmmm\")& \" \" &YEAR($A5)","v":"Solde numéraire journalier octobre 2019"}]
[]
["Dates","Numéro ticket dépenses","Montant dépenses","Dépenses alimentaires","Dépenses bancaires","Dépenses horticoles","Dépenses médicales","Dépenses non alimentaires","Numéro ticket recettes","Montant recettes","Ancien solde","Soldes"]
["Solde du mois précédent : ",null,null,null,null,null,null,null,null,null,1000,{"$f":"K4","v":1000}]
["2019-10-01",null,{"$f":"SUMIF(BD_Dépenses[Date dépense],'Soldes numéraires'!A5,BD_Dépenses[Montant dépense])","v":0},{"$f":"SUMIFS(BD_Dépenses[Montant dépense],BD_Dépenses[Date dépense],'Soldes numéraires'!$A5,BD_Dépenses[Catégorie dépense],'Soldes numéraires'!D$3)","v":0},{"$f":"SUMIFS(BD_Dépenses[Montant dépense],BD_Dépenses[Date dépense],'Soldes numéraires'!$A5,BD_Dépenses[Catégorie dépense],'Soldes numéraires'!E$3)","v":0},{"$f":"SUMIFS(BD_Dépenses[Montant dépense],BD_Dépenses[Date dépense],'Soldes numéraires'!$A5,BD_Dépenses[Catégorie dépense],'Soldes numéraires'!F$3)","v":0},{"$f":"SUMIFS(BD_Dépenses[Montant dépense],BD_Dépenses[Date dépense],'Soldes numéraires'!$A5,BD_Dépenses[Catégorie dépense],'Soldes numéraires'!G$3)","v":0},{"$f":"SUMIFS(BD_Dépenses[Montant dépense],BD_Dépenses[Date dépense],'Soldes numéraires'!$A5,BD_Dépenses[Catégorie dépense],'Soldes numéraires'!H$3)","v":0},null,null,{"$f":"$L$4","v":1000},{"$f":"$K5+$J5-$C5","v":1000}]
[{"$f":"A5+1","v":"2019-10-02"},null,{"$f":"SUMIF(BD_Dépenses[Date dépense],'Soldes numéraires'!A6,BD_Dépenses[Montant dépense])","v":0},{"$f":"SUMIFS(BD_Dépenses[Montant dépense],BD_Dépenses[Date dépense],'Soldes numéraires'!$A6,BD_Dépenses[Catégorie dépense],'Soldes numéraires'!D$3)","v":0},{"$f":"SUMIFS(BD_Dépenses[Montant dépense],BD_Dépenses[Date dépense],'Soldes numéraires'!$A6,BD_Dépenses[Catégorie dépense],'Soldes numéraires'!E$3)","v":0},{"$f":"SUMIFS(BD_Dépenses[Montant dépense],BD_Dépenses[Date dépense],'Soldes numéraires'!$A6,BD_Dépenses[Catégorie dépense],'Soldes numéraires'!F$3)","v":0},{"$f":"SUMIFS(BD_Dépenses[Montant dépense],BD_Dépenses[Date dépense],'Soldes numéraires'!$A6,BD_Dépenses[Catégorie dépense],'Soldes numéraires'!G$3)","v":0},{"$f":"SUMIFS(BD_Dépenses[Montant dépense],BD_Dépenses[Date dépense],'Soldes numéraires'!$A6,BD_Dépenses[Catégorie dépense],'Soldes numéraires'!H$3)","v":0},null,null,{"$f":"$L5","v":1000},1000]
[{"$f":"A6+1","v":"2019-10-03"},null,{"$f":"SUMIF(BD_Dépenses[Date dépense],'Soldes numéraires'!A7,BD_Dépenses[Montant dépense])","v":0},{"$f":"SUMIFS(BD_Dépenses[Montant dépense],BD_Dépenses[Date dépense],'Soldes numéraires'!$A7,BD_Dépenses[Catégorie dépense],'Soldes numéraires'!D$3)","v":0},{"$f":"SUMIFS(BD_Dépenses[Montant dépense],BD_Dépenses[Date dépense],'Soldes numéraires'!$A7,BD_Dépenses[Catégorie dépense],'Soldes numéraires'!E$3)","v":0},{"$f":"SUMIFS(BD_Dépenses[Montant dépense],BD_Dépenses[Date dépense],'Soldes numéraires'!$A7,BD_Dépenses[Catégorie dépense],'Soldes numéraires'!F$3)","v":0},{"$f":"SUMIFS(BD_Dépenses[Montant dépense],BD_Dépenses[Date dépense],'Soldes numéraires'!$A7,BD_Dépenses[Catégorie dépense],'Soldes numéraires'!G$3)","v":0},{"$f":"SUMIFS(BD_Dépenses[Montant dépense],BD_Dépenses[Date dépense],'Soldes numéraires'!$A7,BD_Dépenses[Catégorie dépense],'Soldes numéraires'!H$3)","v":0},null,null,{"$f":"$L6","v":1000},1000]
["2019-10-04",null,{"$f":"SUMIF(BD_Dépenses[Date dépense],'Soldes numéraires'!A8,BD_Dépenses[Montant dépense])","v":0},{"$f":"SUMIFS(BD_Dépenses[Montant dépense],BD_Dépenses[Date dépense],'Soldes numéraires'!$A8,BD_Dépenses[Catégorie dépense],'Soldes numéraires'!D$3)","v":0},{"$f":"SUMIFS(BD_Dépenses[Montant dépense],BD_Dépenses[Date dépense],'Soldes numéraires'!$A8,BD_Dépenses[Catégorie dépense],'Soldes numéraires'!E$3)","v":0},{"$f":"SUMIFS(BD_Dépenses[Montant dépense],BD_Dépenses[Date dépense],'Soldes numéraires'!$A8,BD_Dépenses[Catégorie dépense],'Soldes numéraires'!F$3)","v":0},{"$f":"SUMIFS(BD_Dépenses[Montant dépense],BD_Dépenses[Date dépense],'Soldes numéraires'!$A8,BD_Dépenses[Catégorie dépense],'Soldes numéraires'!G$3)","v":0},{"$f":"SUMIFS(BD_Dépenses[Montant dépense],BD_Dépenses[Date dépense],'Soldes numéraires'!$A8,BD_Dépenses[Catégorie dépense],'Soldes numéraires'!H$3)","v":0},null,null,{"$f":"$L7","v":1000},1000]
["2019-10-05",null,{"$f":"SUMIF(BD_Dépenses[Date dépense],'Soldes numéraires'!A9,BD_Dépenses[Montant dépense])","v":0},{"$f":"SUMIFS(BD_Dépenses[Montant dépense],BD_Dépenses[Date dépense],'Soldes numéraires'!$A9,BD_Dépenses[Catégorie dépense],'Soldes numéraires'!D$3)","v":0},{"$f":"SUMIFS(BD_Dépenses[Montant dépense],BD_Dépenses[Date dépense],'Soldes numéraires'!$A9,BD_Dépenses[Catégorie dépense],'Soldes numéraires'!E$3)","v":0},{"$f":"SUMIFS(BD_Dépenses[Montant dépense],BD_Dépenses[Date dépense],'Soldes numéraires'!$A9,BD_Dépenses[Catégorie dépense],'Soldes numéraires'!F$3)","v":0},{"$f":"SUMIFS(BD_Dépenses[Montant dépense],BD_Dépenses[Date dépense],'Soldes numéraires'!$A9,BD_Dépenses[Catégorie dépense],'Soldes numéraires'!G$3)","v":0},{"$f":"SUMIFS(BD_Dépenses[Montant dépense],BD_Dépenses[Date dépense],'Soldes numéraires'!$A9,BD_Dépenses[Catégorie dépense],'Soldes numéraires'!H$3)","v":0},null,null,{"$f":"$L8","v":1000},1000]
["2019-10-06",null,{"$f":"SUMIF(BD_Dépenses[Date dépense],'Soldes numéraires'!A10,BD_Dépenses[Montant dépense])","v":0},{"$f":"SUMIFS(BD_Dépenses[Montant dépense],BD_Dépenses[Date dépense],'Soldes numéraires'!$A10,BD_Dépenses[Catégorie dépense],'Soldes numéraires'!D$3)","v":0},{"$f":"SUMIFS(BD_Dépenses[Montant dépense],BD_Dépenses[Date dépense],'Soldes numéraires'!$A10,BD_Dépenses[Catégorie dépense],'Soldes numéraires'!E$3)","v":0},{"$f":"SUMIFS(BD_Dépenses[Montant dépense],BD_Dépenses[Date dépense],'Soldes numéraires'!$A10,BD_Dépenses[Catégorie dépense],'Soldes numéraires'!F$3)","v":0},{"$f":"SUMIFS(BD_Dépenses[Montant dépense],BD_Dépenses[Date dépense],'Soldes numéraires'!$A10,BD_Dépenses[Catégorie dépense],'Soldes numéraires'!G$3)","v":0},{"$f":"SUMIFS(BD_Dépenses[Montant dépense],BD_Dépenses[Date dépense],'Soldes numéraires'!$A10,BD_Dépenses[Catégorie dépense],'Soldes numéraires'!H$3)","v":0},null,null,1000,1000]
["2019-10-07",null,{"$f":"SUMIF(BD_Dépenses[Date dépense],'Soldes numéraires'!A11,BD_Dépenses[Montant dépense])","v":0},{"$f":"SUMIFS(BD_Dépenses[Montant dépense],BD_Dépenses[Date dépense],'Soldes numéraires'!$A11,BD_Dépenses[Catégorie dépense],'Soldes numéraires'!D$3)","v":0},{"$f":"SUMIFS(BD_Dépenses[Montant dépense],BD_Dépenses[Date dépense],'Soldes numéraires'!$A11,BD_Dépenses[Catégorie dépense],'Soldes numéraires'!E$3)","v":0},{"$f":"SUMIFS(BD_Dépenses[Montant dépense],BD_Dépenses[Date dépense],'Soldes numéraires'!$A11,BD_Dépenses[Catégorie dépense],'Soldes numéraires'!F$3)","v":0},{"$f":"SUMIFS(BD_Dépenses[Montant dépense],BD_Dépenses[Date dépense],'Soldes numéraires'!$A11,BD_Dépenses[Catégorie dépense],'Soldes numéraires'!G$3)","v":0},{"$f":"SUMIFS(BD_Dépenses[Montant dépense],BD_Dépenses[Date dépense],'Soldes numéraires'!$A11,BD_Dépenses[Catégorie dépense],'Soldes numéraires'!H$3)","v":0},null,null,1000,1000]
["2019-10-08",null,{"$f":"SUMIF(BD_Dépenses[Date dépense],'Soldes numéraires'!A12,BD_Dépenses[Montant dépense])","v":0},{"$f":"SUMIFS(BD_Dépenses[Montant dépense],BD_Dépenses[Date dépense],'Soldes numéraires'!$A12,BD_Dépenses[Catégorie dépense],'Soldes numéraires'!D$3)","v":0},{"$f":"SUMIFS(BD_Dépenses[Montant dépense],BD_Dépenses[Date dépense],'Soldes numéraires'!$A12,BD_Dépenses[Catégorie dépense],'Soldes numéraires'!E$3)","v":0},{"$f":"SUMIFS(BD_Dépenses[Montant dépense],BD_Dépenses[Date dépense],'Soldes numéraires'!$A12,BD_Dépenses[Catégorie dépense],'Soldes numéraires'!F$3)","v":0},{"$f":"SUMIFS(BD_Dépenses[Montant dépense],BD_Dépenses[Date dépense],'Soldes numéraires'!$A12,BD_Dépenses[Catégorie dépense],'Soldes numéraires'!G$3)","v":0},{"$f":"SUMIFS(BD_Dépenses[Montant dépense],BD_Dépenses[Date dépense],'Soldes numéraires'!$A12,BD_Dépenses[Catégorie dépense],'Soldes numéraires'!H$3)","v":0},null,null,1000,1000]
["2019-10-09",null,{"$f":"SUMIF(BD_Dépenses[Date dépense],'Soldes numéraires'!A13,BD_Dépenses[Montant dépense])","v":0},{"$f":"SUMIFS(BD_Dépenses[Montant dépense],BD_Dépenses[Date dépense],'Soldes numéraires'!$A13,BD_Dépenses[Catégorie dépense],'Soldes numéraires'!D$3)","v":0},{"$f":"SUMIFS(BD_Dépenses[Montant dépense],BD_Dépenses[Date dépense],'Soldes numéraires'!$A13,BD_Dépenses[Catégorie dépense],'Soldes numéraires'!E$3)","v":0},{"$f":"SUMIFS(BD_Dépenses[Montant dépense],BD_Dépenses[Date dépense],'Soldes numéraires'!$A13,BD_Dépenses[Catégorie dépense],'Soldes numéraires'!F$3)","v":0},{"$f":"SUMIFS(BD_Dépenses[Montant dépense],BD_Dépenses[Date dépense],'Soldes numéraires'!$A13,BD_Dépenses[Catégorie dépense],'Soldes numéraires'!G$3)","v":0},{"$f":"SUMIFS(BD_Dépenses[Montant dépense],BD_Dépenses[Date dépense],'Soldes numéraires'!$A13,BD_Dépenses[Catégorie dépense],'Soldes numéraires'!H$3)","v":0},null,null,1000,1000]
["2019-10-10",null,{"$f":"SUMIF(BD_Dépenses[Date dépense],'Soldes numéraires'!A14,BD_Dépenses[Montant dépense])","v":0},{"$f":"SUMIFS(BD_Dépenses[Montant dépense],BD_Dépenses[Date dépense],'Soldes numéraires'!$A14,BD_Dépenses[Catégorie dépense],'Soldes numéraires'!D$3)","v":0},{"$f":"SUMIFS(BD_Dépenses[Montant dépense],BD_Dépenses[Date dépense],'Soldes numéraires'!$A14,BD_Dépenses[Catégorie dépense],'Soldes numéraires'!E$3)","v":0},{"$f":"SUMIFS(BD_Dépenses[Montant dépense],BD_Dépenses[Date dépense],'Soldes numéraires'!$A14,BD_Dépenses[Catégorie dépense],'Soldes numéraires'!F$3)","v":0},{"$f":"SUMIFS(BD_Dépenses[Montant dépense],BD_Dépenses[Date dépense],'Soldes numéraires'!$A14,BD_Dépenses[Catégorie dépense],'Soldes numéraires'!G$3)","v":0},{"$f":"SUMIFS(BD_Dépenses[Montant dépense],BD_Dépenses[Date dépense],'Soldes numéraires'!$A14,BD_Dépenses[Catégorie dépense],'Soldes numéraires'!H$3)","v":0},null,null,1000,1000]
["2019-10-11",null,{"$f":"SUMIF(BD_Dépenses[Date dépense],'Soldes numéraires'!A15,BD_Dépenses[Montant dépense])","v":0},{"$f":"SUMIFS(BD_Dépenses[Montant dépense],BD_Dépenses[Date dépense],'Soldes numéraires'!$A15,BD_Dépenses[Catégorie dépense],'Soldes numéraires'!D$3)","v":0},{"$f":"SUMIFS(BD_Dépenses[Montant dépense],BD_Dépenses[Date dépense],'Soldes numéraires'!$A15,BD_Dépenses[Catégorie dépense],'Soldes numéraires'!E$3)","v":0},{"$f":"SUMIFS(BD_Dépenses[Montant dépense],BD_Dépenses[Date dépense],'Soldes numéraires'!$A15,BD_Dépenses[Catégorie dépense],'Soldes numéraires'!F$3)","v":0},{"$f":"SUMIFS(BD_Dépenses[Montant dépense],BD_Dépenses[Date dépense],'Soldes numéraires'!$A15,BD_Dépenses[Catégorie dépense],'Soldes numéraires'!G$3)","v":0},{"$f":"SUMIFS(BD_Dépenses[Montant dépense],BD_Dépenses[Date dépense],'Soldes numéraires'!$A15,BD_Dépenses[Catégorie dépense],'Soldes numéraires'!H$3)","v":0},null,null,1000,1000]
["2019-10-12",null,{"$f":"SUMIF(BD_Dépenses[Date dépense],'Soldes numéraires'!A16,BD_Dépenses[Montant dépense])","v":0},{"$f":"SUMIFS(BD_Dépenses[Montant dépense],BD_Dépenses[Date dépense],'Soldes numéraires'!$A16,BD_Dépenses[Catégorie dépense],'Soldes numéraires'!D$3)","v":0},{"$f":"SUMIFS(BD_Dépenses[Montant dépense],BD_Dépenses[Date dépense],'Soldes numéraires'!$A16,BD_Dépenses[Catégorie dépense],'Soldes numéraires'!E$3)","v":0},{"$f":"SUMIFS(BD_Dépenses[Montant dépense],BD_Dépenses[Date dépense],'Soldes numéraires'!$A16,BD_Dépenses[Catégorie dépense],'Soldes numéraires'!F$3)","v":0},{"$f":"SUMIFS(BD_Dépenses[Montant dépense],BD_Dépenses[Date dépense],'Soldes numéraires'!$A16,BD_Dépenses[Catégorie dépense],'Soldes numéraires'!G$3)","v":0},{"$f":"SUMIFS(BD_Dépenses[Montant dépense],BD_Dépenses[Date dépense],'Soldes numéraires'!$A16,BD_Dépenses[Catégorie dépense],'Soldes numéraires'!H$3)","v":0},null,null,1000,1000]
["2019-10-13",null,{"$f":"SUMIF(BD_Dépenses[Date dépense],'Soldes numéraires'!A17,BD_Dépenses[Montant dépense])","v":0},{"$f":"SUMIFS(BD_Dépenses[Montant dépense],BD_Dépenses[Date dépense],'Soldes numéraires'!$A17,BD_Dépenses[Catégorie dépense],'Soldes numéraires'!D$3)","v":0},{"$f":"SUMIFS(BD_Dépenses[Montant dépense],BD_Dépenses[Date dépense],'Soldes numéraires'!$A17,BD_Dépenses[Catégorie dépense],'Soldes numéraires'!E$3)","v":0},{"$f":"SUMIFS(BD_Dépenses[Montant dépense],BD_Dépenses[Date dépense],'Soldes numéraires'!$A17,BD_Dépenses[Catégorie dépense],'Soldes numéraires'!F$3)","v":0},{"$f":"SUMIFS(BD_Dépenses[Montant dépense],BD_Dépenses[Date dépense],'Soldes numéraires'!$A17,BD_Dépenses[Catégorie dépense],'Soldes numéraires'!G$3)","v":0},{"$f":"SUMIFS(BD_Dépenses[Montant dépense],BD_Dépenses[Date dépense],'Soldes numéraires'!$A17,BD_Dépenses[Catégorie dépense],'Soldes numéraires'!H$3)","v":0},null,null,1000,1000]
["2019-10-14",null,{"$f":"SUMIF(BD_Dépenses[Date dépense],'Soldes numéraires'!A18,BD_Dépenses[Montant dépense])","v":0},{"$f":"SUMIFS(BD_Dépenses[Montant dépense],BD_Dépenses[Date dépense],'Soldes numéraires'!$A18,BD_Dépenses[Catégorie dépense],'Soldes numéraires'!D$3)","v":0},{"$f":"SUMIFS(BD_Dépenses[Montant dépense],BD_Dépenses[Date dépense],'Soldes numéraires'!$A18,BD_Dépenses[Catégorie dépense],'Soldes numéraires'!E$3)","v":0},{"$f":"SUMIFS(BD_Dépenses[Montant dépense],BD_Dépenses[Date dépense],'Soldes numéraires'!$A18,BD_Dépenses[Catégorie dépense],'Soldes numéraires'!F$3)","v":0},{"$f":"SUMIFS(BD_Dépenses[Montant dépense],BD_Dépenses[Date dépense],'Soldes numéraires'!$A18,BD_Dépenses[Catégorie dépense],'Soldes numéraires'!G$3)","v":0},{"$f":"SUMIFS(BD_Dépenses[Montant dépense],BD_Dépenses[Date dépense],'Soldes numéraires'!$A18,BD_Dépenses[Catégorie dépense],'Soldes numéraires'!H$3)","v":0},null,null,1000,1000]
["2019-10-15",null,{"$f":"SUMIF(BD_Dépenses[Date dépense],'Soldes numéraires'!A19,BD_Dépenses[Montant dépense])","v":0},{"$f":"SUMIFS(BD_Dépenses[Montant dépense],BD_Dépenses[Date dépense],'Soldes numéraires'!$A19,BD_Dépenses[Catégorie dépense],'Soldes numéraires'!D$3)","v":0},{"$f":"SUMIFS(BD_Dépenses[Montant dépense],BD_Dépenses[Date dépense],'Soldes numéraires'!$A19,BD_Dépenses[Catégorie dépense],'Soldes numéraires'!E$3)","v":0},{"$f":"SUMIFS(BD_Dépenses[Montant dépense],BD_Dépenses[Date dépense],'Soldes numéraires'!$A19,BD_Dépenses[Catégorie dépense],'Soldes numéraires'!F$3)","v":0},{"$f":"SUMIFS(BD_Dépenses[Montant dépense],BD_Dépenses[Date dépense],'Soldes numéraires'!$A19,BD_Dépenses[Catégorie dépense],'Soldes numéraires'!G$3)","v":0},{"$f":"SUMIFS(BD_Dépenses[Montant dépense],BD_Dépenses[Date dépense],'Soldes numéraires'!$A19,BD_Dépenses[Catégorie dépense],'Soldes numéraires'!H$3)","v":0},null,null,1000,1000]
["2019-10-16",null,{"$f":"SUMIF(BD_Dépenses[Date dépense],'Soldes numéraires'!A20,BD_Dépenses[Montant dépense])","v":0},{"$f":"SUMIFS(BD_Dépenses[Montant dépense],BD_Dépenses[Date dépense],'Soldes numéraires'!$A20,BD_Dépenses[Catégorie dépense],'Soldes numéraires'!D$3)","v":0},{"$f":"SUMIFS(BD_Dépenses[Montant dépense],BD_Dépenses[Date dépense],'Soldes numéraires'!$A20,BD_Dépenses[Catégorie dépense],'Soldes numéraires'!E$3)","v":0},{"$f":"SUMIFS(BD_Dépenses[Montant dépense],BD_Dépenses[Date dépense],'Soldes numéraires'!$A20,BD_Dépenses[Catégorie dépense],'Soldes numéraires'!F$3)","v":0},{"$f":"SUMIFS(BD_Dépenses[Montant dépense],BD_Dépenses[Date dépense],'Soldes numéraires'!$A20,BD_Dépenses[Catégorie dépense],'Soldes numéraires'!G$3)","v":0},{"$f":"SUMIFS(BD_Dépenses[Montant dépense],BD_Dépenses[Date dépense],'Soldes numéraires'!$A20,BD_Dépenses[Catégorie dépense],'Soldes numéraires'!H$3)","v":0},null,null,1000,1000]
["2019-10-17",null,{"$f":"SUMIF(BD_Dépenses[Date dépense],'Soldes numéraires'!A21,BD_Dépenses[Montant dépense])","v":0},{"$f":"SUMIFS(BD_Dépenses[Montant dépense],BD_Dépenses[Date dépense],'Soldes numéraires'!$A21,BD_Dépenses[Catégorie dépense],'Soldes numéraires'!D$3)","v":0},{"$f":"SUMIFS(BD_Dépenses[Montant dépense],BD_Dépenses[Date dépense],'Soldes numéraires'!$A21,BD_Dépenses[Catégorie dépense],'Soldes numéraires'!E$3)","v":0},{"$f":"SUMIFS(BD_Dépenses[Montant dépense],BD_Dépenses[Date dépense],'Soldes numéraires'!$A21,BD_Dépenses[Catégorie dépense],'Soldes numéraires'!F$3)","v":0},{"$f":"SUMIFS(BD_Dépenses[Montant dépense],BD_Dépenses[Date dépense],'Soldes numéraires'!$A21,BD_Dépenses[Catégorie dépense],'Soldes numéraires'!G$3)","v":0},{"$f":"SUMIFS(BD_Dépenses[Montant dépense],BD_Dépenses[Date dépense],'Soldes numéraires'!$A21,BD_Dépenses[Catégorie dépense],'Soldes numéraires'!H$3)","v":0},null,null,1000,1000]
["2019-10-18",null,{"$f":"SUMIF(BD_Dépenses[Date dépense],'Soldes numéraires'!A22,BD_Dépenses[Montant dépense])","v":0},{"$f":"SUMIFS(BD_Dépenses[Montant dépense],BD_Dépenses[Date dépense],'Soldes numéraires'!$A22,BD_Dépenses[Catégorie dépense],'Soldes numéraires'!D$3)","v":0},{"$f":"SUMIFS(BD_Dépenses[Montant dépense],BD_Dépenses[Date dépense],'Soldes numéraires'!$A22,BD_Dépenses[Catégorie dépense],'Soldes numéraires'!E$3)","v":0},{"$f":"SUMIFS(BD_Dépenses[Montant dépense],BD_Dépenses[Date dépense],'Soldes numéraires'!$A22,BD_Dépenses[Catégorie dépense],'Soldes numéraires'!F$3)","v":0},{"$f":"SUMIFS(BD_Dépenses[Montant dépense],BD_Dépenses[Date dépense],'Soldes numéraires'!$A22,BD_Dépenses[Catégorie dépense],'Soldes numéraires'!G$3)","v":0},{"$f":"SUMIFS(BD_Dépenses[Montant dépense],BD_Dépenses[Date dépense],'Soldes numéraires'!$A22,BD_Dépenses[Catégorie dépense],'Soldes numéraires'!H$3)","v":0},null,null,1000,1000]
["2019-10-19",null,{"$f":"SUMIF(BD_Dépenses[Date dépense],'Soldes numéraires'!A23,BD_Dépenses[Montant dépense])","v":0},{"$f":"SUMIFS(BD_Dépenses[Montant dépense],BD_Dépenses[Date dépense],'Soldes numéraires'!$A23,BD_Dépenses[Catégorie dépense],'Soldes numéraires'!D$3)","v":0},{"$f":"SUMIFS(BD_Dépenses[Montant dépense],BD_Dépenses[Date dépense],'Soldes numéraires'!$A23,BD_Dépenses[Catégorie dépense],'Soldes numéraires'!E$3)","v":0},{"$f":"SUMIFS(BD_Dépenses[Montant dépense],BD_Dépenses[Date dépense],'Soldes numéraires'!$A23,BD_Dépenses[Catégorie dépense],'Soldes numéraires'!F$3)","v":0},{"$f":"SUMIFS(BD_Dépenses[Montant dépense],BD_Dépenses[Date dépense],'Soldes numéraires'!$A23,BD_Dépenses[Catégorie dépense],'Soldes numéraires'!G$3)","v":0},{"$f":"SUMIFS(BD_Dépenses[Montant dépense],BD_Dépenses[Date dépense],'Soldes numéraires'!$A23,BD_Dépenses[Catégorie dépense],'Soldes numéraires'!H$3)","v":0},null,null,1000,1000]
["2019-10-20",null,{"$f":"SUMIF(BD_Dépenses[Date dépense],'Soldes numéraires'!A24,BD_Dépenses[Montant dépense])","v":0},{"$f":"SUMIFS(BD_Dépenses[Montant dépense],BD_Dépenses[Date dépense],'Soldes numéraires'!$A24,BD_Dépenses[Catégorie dépense],'Soldes numéraires'!D$3)","v":0},{"$f":"SUMIFS(BD_Dépenses[Montant dépense],BD_Dépenses[Date dépense],'Soldes numéraires'!$A24,BD_Dépenses[Catégorie dépense],'Soldes numéraires'!E$3)","v":0},{"$f":"SUMIFS(BD_Dépenses[Montant dépense],BD_Dépenses[Date dépense],'Soldes numéraires'!$A24,BD_Dépenses[Catégorie dépense],'Soldes numéraires'!F$3)","v":0},{"$f":"SUMIFS(BD_Dépenses[Montant dépense],BD_Dépenses[Date dépense],'Soldes numéraires'!$A24,BD_Dépenses[Catégorie dépense],'Soldes numéraires'!G$3)","v":0},{"$f":"SUMIFS(BD_Dépenses[Montant dépense],BD_Dépenses[Date dépense],'Soldes numéraires'!$A24,BD_Dépenses[Catégorie dépense],'Soldes numéraires'!H$3)","v":0},null,null,1000,1000]
["2019-10-21",null,{"$f":"SUMIF(BD_Dépenses[Date dépense],'Soldes numéraires'!A25,BD_Dépenses[Montant dépense])","v":0},{"$f":"SUMIFS(BD_Dépenses[Montant dépense],BD_Dépenses[Date dépense],'Soldes numéraires'!$A25,BD_Dépenses[Catégorie dépense],'Soldes numéraires'!D$3)","v":0},{"$f":"SUMIFS(BD_Dépenses[Montant dépense],BD_Dépenses[Date dépense],'Soldes numéraires'!$A25,BD_Dépenses[Catégorie dépense],'Soldes numéraires'!E$3)","v":0},{"$f":"SUMIFS(BD_Dépenses[Montant dépense],BD_Dépenses[Date dépense],'Soldes numéraires'!$A25,BD_Dépenses[Catégorie dépense],'Soldes numéraires'!F$3)","v":0},{"$f":"SUMIFS(BD_Dépenses[Montant dépense],BD_Dépenses[Date dépense],'Soldes numéraires'!$A25,BD_Dépenses[Catégorie dépense],'Soldes numéraires'!G$3)","v":0},{"$f":"SUMIFS(BD_Dépenses[Montant dépense],BD_Dépenses[Date dépense],'Soldes numéraires'!$A25,BD_Dépenses[Catégorie dépense],'Soldes numéraires'!H$3)","v":0},null,null,1000,1000]
["2019-10-22",null,{"$f":"SUMIF(BD_Dépenses[Date dépense],'Soldes numéraires'!A26,BD_Dépenses[Montant dépense])","v":0},{"$f":"SUMIFS(BD_Dépenses[Montant dépense],BD_Dépenses[Date dépense],'Soldes numéraires'!$A26,BD_Dépenses[Catégorie dépense],'Soldes numéraires'!D$3)","v":0},{"$f":"SUMIFS(BD_Dépenses[Montant dépense],BD_Dépenses[Date dépense],'Soldes numéraires'!$A26,BD_Dépenses[Catégorie dépense],'Soldes numéraires'!E$3)","v":0},{"$f":"SUMIFS(BD_Dépenses[Montant dépense],BD_Dépenses[Date dépense],'Soldes numéraires'!$A26,BD_Dépenses[Catégorie dépense],'Soldes numéraires'!F$3)","v":0},{"$f":"SUMIFS(BD_Dépenses[Montant dépense],BD_Dépenses[Date dépense],'Soldes numéraires'!$A26,BD_Dépenses[Catégorie dépense],'Soldes numéraires'!G$3)","v":0},{"$f":"SUMIFS(BD_Dépenses[Montant dépense],BD_Dépenses[Date dépense],'Soldes numéraires'!$A26,BD_Dépenses[Catégorie dépense],'Soldes numéraires'!H$3)","v":0},null,null,1000,1000]
["2019-10-23",null,{"$f":"SUMIF(BD_Dépenses[Date dépense],'Soldes numéraires'!A27,BD_Dépenses[Montant dépense])","v":0},{"$f":"SUMIFS(BD_Dépenses[Montant dépense],BD_Dépenses[Date dépense],'Soldes numéraires'!$A27,BD_Dépenses[Catégorie dépense],'Soldes numéraires'!D$3)","v":0},{"$f":"SUMIFS(BD_Dépenses[Montant dépense],BD_Dépenses[Date dépense],'Soldes numéraires'!$A27,BD_Dépenses[Catégorie dépense],'Soldes numéraires'!E$3)","v":0},{"$f":"SUMIFS(BD_Dépenses[Montant dépense],BD_Dépenses[Date dépense],'Soldes numéraires'!$A27,BD_Dépenses[Catégorie dépense],'Soldes numéraires'!F$3)","v":0},{"$f":"SUMIFS(BD_Dépenses[Montant dépense],BD_Dépenses[Date dépense],'Soldes numéraires'!$A27,BD_Dépenses[Catégorie dépense],'Soldes numéraires'!G$3)","v":0},{"$f":"SUMIFS(BD_Dépenses[Montant dépense],BD_Dépenses[Date dépense],'Soldes numéraires'!$A27,BD_Dépenses[Catégorie dépense],'Soldes numéraires'!H$3)","v":0},null,null,1000,1000]
["2019-10-24",null,{"$f":"SUMIF(BD_Dépenses[Date dépense],'Soldes numéraires'!A28,BD_Dépenses[Montant dépense])","v":0},{"$f":"SUMIFS(BD_Dépenses[Montant dépense],BD_Dépenses[Date dépense],'Soldes numéraires'!$A28,BD_Dépenses[Catégorie dépense],'Soldes numéraires'!D$3)","v":0},{"$f":"SUMIFS(BD_Dépenses[Montant dépense],BD_Dépenses[Date dépense],'Soldes numéraires'!$A28,BD_Dépenses[Catégorie dépense],'Soldes numéraires'!E$3)","v":0},{"$f":"SUMIFS(BD_Dépenses[Montant dépense],BD_Dépenses[Date dépense],'Soldes numéraires'!$A28,BD_Dépenses[Catégorie dépense],'Soldes numéraires'!F$3)","v":0},{"$f":"SUMIFS(BD_Dépenses[Montant dépense],BD_Dépenses[Date dépense],'Soldes numéraires'!$A28,BD_Dépenses[Catégorie dépense],'Soldes numéraires'!G$3)","v":0},{"$f":"SUMIFS(BD_Dépenses[Montant dépense],BD_Dépenses[Date dépense],'Soldes numéraires'!$A28,BD_Dépenses[Catégorie dépense],'Soldes numéraires'!H$3)","v":0},null,null,1000,1000]
["2019-10-25",null,{"$f":"SUMIF(BD_Dépenses[Date dépense],'Soldes numéraires'!A29,BD_Dépenses[Montant dépense])","v":0},{"$f":"SUMIFS(BD_Dépenses[Montant dépense],BD_Dépenses[Date dépense],'Soldes numéraires'!$A29,BD_Dépenses[Catégorie dépense],'Soldes numéraires'!D$3)","v":0},{"$f":"SUMIFS(BD_Dépenses[Montant dépense],BD_Dépenses[Date dépense],'Soldes numéraires'!$A29,BD_Dépenses[Catégorie dépense],'Soldes numéraires'!E$3)","v":0},{"$f":"SUMIFS(BD_Dépenses[Montant dépense],BD_Dépenses[Date dépense],'Soldes numéraires'!$A29,BD_Dépenses[Catégorie dépense],'Soldes numéraires'!F$3)","v":0},{"$f":"SUMIFS(BD_Dépenses[Montant dépense],BD_Dépenses[Date dépense],'Soldes numéraires'!$A29,BD_Dépenses[Catégorie dépense],'Soldes numéraires'!G$3)","v":0},{"$f":"SUMIFS(BD_Dépenses[Montant dépense],BD_Dépenses[Date dépense],'Soldes numéraires'!$A29,BD_Dépenses[Catégorie dépense],'Soldes numéraires'!H$3)","v":0},null,null,1000,1000]
["2019-10-26",null,{"$f":"SUMIF(BD_Dépenses[Date dépense],'Soldes numéraires'!A30,BD_Dépenses[Montant dépense])","v":0},{"$f":"SUMIFS(BD_Dépenses[Montant dépense],BD_Dépenses[Date dépense],'Soldes numéraires'!$A30,BD_Dépenses[Catégorie dépense],'Soldes numéraires'!D$3)","v":0},{"$f":"SUMIFS(BD_Dépenses[Montant dépense],BD_Dépenses[Date dépense],'Soldes numéraires'!$A30,BD_Dépenses[Catégorie dépense],'Soldes numéraires'!E$3)","v":0},{"$f":"SUMIFS(BD_Dépenses[Montant dépense],BD_Dépenses[Date dépense],'Soldes numéraires'!$A30,BD_Dépenses[Catégorie dépense],'Soldes numéraires'!F$3)","v":0},{"$f":"SUMIFS(BD_Dépenses[Montant dépense],BD_Dépenses[Date dépense],'Soldes numéraires'!$A30,BD_Dépenses[Catégorie dépense],'Soldes numéraires'!G$3)","v":0},{"$f":"SUMIFS(BD_Dépenses[Montant dépense],BD_Dépenses[Date dépense],'Soldes numéraires'!$A30,BD_Dépenses[Catégorie dépense],'Soldes numéraires'!H$3)","v":0},null,null,1000,1000]
["2019-10-27",null,{"$f":"SUMIF(BD_Dépenses[Date dépense],'Soldes numéraires'!A31,BD_Dépenses[Montant dépense])","v":0},{"$f":"SUMIFS(BD_Dépenses[Montant dépense],BD_Dépenses[Date dépense],'Soldes numéraires'!$A31,BD_Dépenses[Catégorie dépense],'Soldes numéraires'!D$3)","v":0},{"$f":"SUMIFS(BD_Dépenses[Montant dépense],BD_Dépenses[Date dépense],'Soldes numéraires'!$A31,BD_Dépenses[Catégorie dépense],'Soldes numéraires'!E$3)","v":0},{"$f":"SUMIFS(BD_Dépenses[Montant dépense],BD_Dépenses[Date dépense],'Soldes numéraires'!$A31,BD_Dépenses[Catégorie dépense],'Soldes numéraires'!F$3)","v":0},{"$f":"SUMIFS(BD_Dépenses[Montant dépense],BD_Dépenses[Date dépense],'Soldes numéraires'!$A31,BD_Dépenses[Catégorie dépense],'Soldes numéraires'!G$3)","v":0},{"$f":"SUMIFS(BD_Dépenses[Montant dépense],BD_Dépenses[Date dépense],'Soldes numéraires'!$A31,BD_Dépenses[Catégorie dépense],'Soldes numéraires'!H$3)","v":0},null,null,1000,1000]
["2019-10-28",null,{"$f":"SUMIF(BD_Dépenses[Date dépense],'Soldes numéraires'!A32,BD_Dépenses[Montant dépense])","v":0},{"$f":"SUMIFS(BD_Dépenses[Montant dépense],BD_Dépenses[Date dépense],'Soldes numéraires'!$A32,BD_Dépenses[Catégorie dépense],'Soldes numéraires'!D$3)","v":0},{"$f":"SUMIFS(BD_Dépenses[Montant dépense],BD_Dépenses[Date dépense],'Soldes numéraires'!$A32,BD_Dépenses[Catégorie dépense],'Soldes numéraires'!E$3)","v":0},{"$f":"SUMIFS(BD_Dépenses[Montant dépense],BD_Dépenses[Date dépense],'Soldes numéraires'!$A32,BD_Dépenses[Catégorie dépense],'Soldes numéraires'!F$3)","v":0},{"$f":"SUMIFS(BD_Dépenses[Montant dépense],BD_Dépenses[Date dépense],'Soldes numéraires'!$A32,BD_Dépenses[Catégorie dépense],'Soldes numéraires'!G$3)","v":0},{"$f":"SUMIFS(BD_Dépenses[Montant dépense],BD_Dépenses[Date dépense],'Soldes numéraires'!$A32,BD_Dépenses[Catégorie dépense],'Soldes numéraires'!H$3)","v":0},null,null,1000,1000]
["2019-10-29",null,{"$f":"SUMIF(BD_Dépenses[Date dépense],'Soldes numéraires'!A33,BD_Dépenses[Montant dépense])","v":199.40999992519619},{"$f":"SUMIFS(BD_Dépenses[Montant dépense],BD_Dépenses[Date dépense],'Soldes numéraires'!$A33,BD_Dépenses[Catégorie dépense],'Soldes numéraires'!D$3)","v":33.409999925196175},{"$f":"SUMIFS(BD_Dépenses[Montant dépense],BD_Dépenses[Date dépense],'Soldes numéraires'!$A33,BD_Dépenses[Catégorie dépense],'Soldes numéraires'!E$3)","v":0},{"$f":"SUMIFS(BD_Dépenses[Montant dépense],BD_Dépenses[Date dépense],'Soldes numéraires'!$A33,BD_Dépenses[Catégorie dépense],'Soldes numéraires'!F$3)","v":0},{"$f":"SUMIFS(BD_Dépenses[Montant dépense],BD_Dépenses[Date dépense],'Soldes numéraires'!$A33,BD_Dépenses[Catégorie dépense],'Soldes numéraires'!G$3)","v":0},{"$f":"SUMIFS(BD_Dépenses[Montant dépense],BD_Dépenses[Date dépense],'Soldes numéraires'!$A33,BD_Dépenses[Catégorie dépense],'Soldes numéraires'!H$3)","v":166},null,null,1000,800.59000007480381]
["2019-10-30",null,{"$f":"SUMIF(BD_Dépenses[Date dépense],'Soldes numéraires'!A34,BD_Dépenses[Montant dépense])","v":0},{"$f":"SUMIFS(BD_Dépenses[Montant dépense],BD_Dépenses[Date dépense],'Soldes numéraires'!$A34,BD_Dépenses[Catégorie dépense],'Soldes numéraires'!D$3)","v":0},{"$f":"SUMIFS(BD_Dépenses[Montant dépense],BD_Dépenses[Date dépense],'Soldes numéraires'!$A34,BD_Dépenses[Catégorie dépense],'Soldes numéraires'!E$3)","v":0},{"$f":"SUMIFS(BD_Dépenses[Montant dépense],BD_Dépenses[Date dépense],'Soldes numéraires'!$A34,BD_Dépenses[Catégorie dépense],'Soldes numéraires'!F$3)","v":0},{"$f":"SUMIFS(BD_Dépenses[Montant dépense],BD_Dépenses[Date dépense],'Soldes numéraires'!$A34,BD_Dépenses[Catégorie dépense],'Soldes numéraires'!G$3)","v":0},{"$f":"SUMIFS(BD_Dépenses[Montant dépense],BD_Dépenses[Date dépense],'Soldes numéraires'!$A34,BD_Dépenses[Catégorie dépense],'Soldes numéraires'!H$3)","v":0},null,null,800.59000007480381,800.59000007480381]
["2019-10-31",null,{"$f":"SUMIF(BD_Dépenses[Date dépense],'Soldes numéraires'!A35,BD_Dépenses[Montant dépense])","v":0},{"$f":"SUMIFS(BD_Dépenses[Montant dépense],BD_Dépenses[Date dépense],'Soldes numéraires'!$A35,BD_Dépenses[Catégorie dépense],'Soldes numéraires'!D$3)","v":0},{"$f":"SUMIFS(BD_Dépenses[Montant dépense],BD_Dépenses[Date dépense],'Soldes numéraires'!$A35,BD_Dépenses[Catégorie dépense],'Soldes numéraires'!E$3)","v":0},{"$f":"SUMIFS(BD_Dépenses[Montant dépense],BD_Dépenses[Date dépense],'Soldes numéraires'!$A35,BD_Dépenses[Catégorie dépense],'Soldes numéraires'!F$3)","v":0},{"$f":"SUMIFS(BD_Dépenses[Montant dépense],BD_Dépenses[Date dépense],'Soldes numéraires'!$A35,BD_Dépenses[Catégorie dépense],'Soldes numéraires'!G$3)","v":0},{"$f":"SUMIFS(BD_Dépenses[Montant dépense],BD_Dépenses[Date dépense],'Soldes numéraires'!$A35,BD_Dépenses[Catégorie dépense],'Soldes numéraires'!H$3)","v":0},null,null,800.59000007480381,800.59000007480381]
["Totaux du mois :",null,{"$f":"SUM(C5:C35)","v":199.40999992519619},{"$f":"SUM(D5:D35)","v":33.409999925196175},null,{"$f":"SUM(F5:F35)","v":0},0,166,0,0,null,{"$f":"L4+J36-C36","v":800.59000007480381}]
["Fait à Limeil-Brévannes, le .. ……… 20…"]
[{"$f":"\"Solde numéraire journalier \" & TEXT($A42,\"mmmm\")& \" \" &YEAR($A42)","v":"Solde numéraire journalier novembre 2019"}]
[]
["Dates","Numéro ticket dépenses","Montant dépenses","Dépenses alimentaires",null,"Dépenses horticoles","Dépenses médicales","Dépenses non alimentaires","Numéro ticket recettes","Montant recettes","Ancien solde","Soldes"]
["Solde du mois précédent : ",null,null,null,null,null,null,null,null,null,{"$f":"$L$36","v":800.59000007480381},{"$f":"K41","v":800.59000007480381}]
["2019-11-01",null,{"$f":"SUMIF(BD_Dépenses[Date dépense],'Soldes numéraires'!A42,BD_Dépenses[Montant dépense])","v":0},{"$f":"SUMIFS(BD_Dépenses[Montant dépense],BD_Dépenses[Date dépense],'Soldes numéraires'!$A42,BD_Dépenses[Catégorie dépense],'Soldes numéraires'!D$3)","v":0},{"$f":"SUMIFS(BD_Dépenses[Montant dépense],BD_Dépenses[Date dépense],'Soldes numéraires'!$A42,BD_Dépenses[Catégorie dépense],'Soldes numéraires'!E$3)","v":0},{"$f":"SUMIFS(BD_Dépenses[Montant dépense],BD_Dépenses[Date dépense],'Soldes numéraires'!$A42,BD_Dépenses[Catégorie dépense],'Soldes numéraires'!F$3)","v":0},{"$f":"SUMIFS(BD_Dépenses[Montant dépense],BD_Dépenses[Date dépense],'Soldes numéraires'!$A42,BD_Dépenses[Catégorie dépense],'Soldes numéraires'!G$3)","v":0},{"$f":"SUMIFS(BD_Dépenses[Montant dépense],BD_Dépenses[Date dépense],'Soldes numéraires'!$A42,BD_Dépenses[Catégorie dépense],'Soldes numéraires'!H$3)","v":0},null,null,{"$f":"$L$41","v":800.59000007480381},{"$f":"$K42+$J42-$C42","v":800.59000007480381}]
[{"$f":"A42+1","v":"2019-11-02"},null,{"$f":"SUMIF(BD_Dépenses[Date dépense],'Soldes numéraires'!A43,BD_Dépenses[Montant dépense])","v":0},{"$f":"SUMIFS(BD_Dépenses[Montant dépense],BD_Dépenses[Date dépense],'Soldes numéraires'!$A43,BD_Dépenses[Catégorie dépense],'Soldes numéraires'!D$3)","v":0},{"$f":"SUMIFS(BD_Dépenses[Montant dépense],BD_Dépenses[Date dépense],'Soldes numéraires'!$A43,BD_Dépenses[Catégorie dépense],'Soldes numéraires'!E$3)","v":0},{"$f":"SUMIFS(BD_Dépenses[Montant dépense],BD_Dépenses[Date dépense],'Soldes numéraires'!$A43,BD_Dépenses[Catégorie dépense],'Soldes numéraires'!F$3)","v":0},{"$f":"SUMIFS(BD_Dépenses[Montant dépense],BD_Dépenses[Date dépense],'Soldes numéraires'!$A43,BD_Dépenses[Catégorie dépense],'Soldes numéraires'!G$3)","v":0},{"$f":"SUMIFS(BD_Dépenses[Montant dépense],BD_Dépenses[Date dépense],'Soldes numéraires'!$A43,BD_Dépenses[Catégorie dépense],'Soldes numéraires'!H$3)","v":0},null,null,{"$f":"$L$41","v":800.59000007480381},800.59000007480381]
[{"$f":"A43+1","v":"2019-11-03"},null,{"$f":"SUMIF(BD_Dépenses[Date dépense],'Soldes numéraires'!A44,BD_Dépenses[Montant dépense])","v":0},{"$f":"SUMIFS(BD_Dépenses[Montant dépense],BD_Dépenses[Date dépense],'Soldes numéraires'!$A44,BD_Dépenses[Catégorie dépense],'Soldes numéraires'!D$3)","v":0},{"$f":"SUMIFS(BD_Dépenses[Montant dépense],BD_Dépenses[Date dépense],'Soldes numéraires'!$A44,BD_Dépenses[Catégorie dépense],'Soldes numéraires'!E$3)","v":0},{"$f":"SUMIFS(BD_Dépenses[Montant dépense],BD_Dépenses[Date dépense],'Soldes numéraires'!$A44,BD_Dépenses[Catégorie dépense],'Soldes numéraires'!F$3)","v":0},{"$f":"SUMIFS(BD_Dépenses[Montant dépense],BD_Dépenses[Date dépense],'Soldes numéraires'!$A44,BD_Dépenses[Catégorie dépense],'Soldes numéraires'!G$3)","v":0},{"$f":"SUMIFS(BD_Dépenses[Montant dépense],BD_Dépenses[Date dépense],'Soldes numéraires'!$A44,BD_Dépenses[Catégorie dépense],'Soldes numéraires'!H$3)","v":0},null,null,800.59000007480381,800.59000007480381]
["2019-11-04",null,{"$f":"SUMIF(BD_Dépenses[Date dépense],'Soldes numéraires'!A45,BD_Dépenses[Montant dépense])","v":0},{"$f":"SUMIFS(BD_Dépenses[Montant dépense],BD_Dépenses[Date dépense],'Soldes numéraires'!$A45,BD_Dépenses[Catégorie dépense],'Soldes numéraires'!D$3)","v":0},{"$f":"SUMIFS(BD_Dépenses[Montant dépense],BD_Dépenses[Date dépense],'Soldes numéraires'!$A45,BD_Dépenses[Catégorie dépense],'Soldes numéraires'!E$3)","v":0},{"$f":"SUMIFS(BD_Dépenses[Montant dépense],BD_Dépenses[Date dépense],'Soldes numéraires'!$A45,BD_Dépenses[Catégorie dépense],'Soldes numéraires'!F$3)","v":0},{"$f":"SUMIFS(BD_Dépenses[Montant dépense],BD_Dépenses[Date dépense],'Soldes numéraires'!$A45,BD_Dépenses[Catégorie dépense],'Soldes numéraires'!G$3)","v":0},{"$f":"SUMIFS(BD_Dépenses[Montant dépense],BD_Dépenses[Date dépense],'Soldes numéraires'!$A45,BD_Dépenses[Catégorie dépense],'Soldes numéraires'!H$3)","v":0},null,null,800.59000007480381,800.59000007480381]
["2019-11-05",null,{"$f":"SUMIF(BD_Dépenses[Date dépense],'Soldes numéraires'!A46,BD_Dépenses[Montant dépense])","v":0},{"$f":"SUMIFS(BD_Dépenses[Montant dépense],BD_Dépenses[Date dépense],'Soldes numéraires'!$A46,BD_Dépenses[Catégorie dépense],'Soldes numéraires'!D$3)","v":0},{"$f":"SUMIFS(BD_Dépenses[Montant dépense],BD_Dépenses[Date dépense],'Soldes numéraires'!$A46,BD_Dépenses[Catégorie dépense],'Soldes numéraires'!E$3)","v":0},{"$f":"SUMIFS(BD_Dépenses[Montant dépense],BD_Dépenses[Date dépense],'Soldes numéraires'!$A46,BD_Dépenses[Catégorie dépense],'Soldes numéraires'!F$3)","v":0},{"$f":"SUMIFS(BD_Dépenses[Montant dépense],BD_Dépenses[Date dépense],'Soldes numéraires'!$A46,BD_Dépenses[Catégorie dépense],'Soldes numéraires'!G$3)","v":0},{"$f":"SUMIFS(BD_Dépenses[Montant dépense],BD_Dépenses[Date dépense],'Soldes numéraires'!$A46,BD_Dépenses[Catégorie dépense],'Soldes numéraires'!H$3)","v":0},null,null,800.59000007480381,800.59000007480381]
["2019-11-06",null,{"$f":"SUMIF(BD_Dépenses[Date dépense],'Soldes numéraires'!A47,BD_Dépenses[Montant dépense])","v":0},{"$f":"SUMIFS(BD_Dépenses[Montant dépense],BD_Dépenses[Date dépense],'Soldes numéraires'!$A47,BD_Dépenses[Catégorie dépense],'Soldes numéraires'!D$3)","v":0},{"$f":"SUMIFS(BD_Dépenses[Montant dépense],BD_Dépenses[Date dépense],'Soldes numéraires'!$A47,BD_Dépenses[Catégorie dépense],'Soldes numéraires'!E$3)","v":0},{"$f":"SUMIFS(BD_Dépenses[Montant dépense],BD_Dépenses[Date dépense],'Soldes numéraires'!$A47,BD_Dépenses[Catégorie dépense],'Soldes numéraires'!F$3)","v":0},{"$f":"SUMIFS(BD_Dépenses[Montant dépense],BD_Dépenses[Date dépense],'Soldes numéraires'!$A47,BD_Dépenses[Catégorie dépense],'Soldes numéraires'!G$3)","v":0},{"$f":"SUMIFS(BD_Dépenses[Montant dépense],BD_Dépenses[Date dépense],'Soldes numéraires'!$A47,BD_Dépenses[Catégorie dépense],'Soldes numéraires'!H$3)","v":0},null,null,800.59000007480381,800.59000007480381]
["2019-11-07",null,{"$f":"SUMIF(BD_Dépenses[Date dépense],'Soldes numéraires'!A48,BD_Dépenses[Montant dépense])","v":0},{"$f":"SUMIFS(BD_Dépenses[Montant dépense],BD_Dépenses[Date dépense],'Soldes numéraires'!$A48,BD_Dépenses[Catégorie dépense],'Soldes numéraires'!D$3)","v":0},{"$f":"SUMIFS(BD_Dépenses[Montant dépense],BD_Dépenses[Date dépense],'Soldes numéraires'!$A48,BD_Dépenses[Catégorie dépense],'Soldes numéraires'!E$3)","v":0},{"$f":"SUMIFS(BD_Dépenses[Montant dépense],BD_Dépenses[Date dépense],'Soldes numéraires'!$A48,BD_Dépenses[Catégorie dépense],'Soldes numéraires'!F$3)","v":0},{"$f":"SUMIFS(BD_Dépenses[Montant dépense],BD_Dépenses[Date dépense],'Soldes numéraires'!$A48,BD_Dépenses[Catégorie dépense],'Soldes numéraires'!G$3)","v":0},{"$f":"SUMIFS(BD_Dépenses[Montant dépense],BD_Dépenses[Date dépense],'Soldes numéraires'!$A48,BD_Dépenses[Catégorie dépense],'Soldes numéraires'!H$3)","v":0},null,null,800.59000007480381,800.59000007480381]
["2019-11-08",null,{"$f":"SUMIF(BD_Dépenses[Date dépense],'Soldes numéraires'!A49,BD_Dépenses[Montant dépense])","v":0},{"$f":"SUMIFS(BD_Dépenses[Montant dépense],BD_Dépenses[Date dépense],'Soldes numéraires'!$A49,BD_Dépenses[Catégorie dépense],'Soldes numéraires'!D$3)","v":0},{"$f":"SUMIFS(BD_Dépenses[Montant dépense],BD_Dépenses[Date dépense],'Soldes numéraires'!$A49,BD_Dépenses[Catégorie dépense],'Soldes numéraires'!E$3)","v":0},{"$f":"SUMIFS(BD_Dépenses[Montant dépense],BD_Dépenses[Date dépense],'Soldes numéraires'!$A49,BD_Dépenses[Catégorie dépense],'Soldes numéraires'!F$3)","v":0},{"$f":"SUMIFS(BD_Dépenses[Montant dépense],BD_Dépenses[Date dépense],'Soldes numéraires'!$A49,BD_Dépenses[Catégorie dépense],'Soldes numéraires'!G$3)","v":0},{"$f":"SUMIFS(BD_Dépenses[Montant dépense],BD_Dépenses[Date dépense],'Soldes numéraires'!$A49,BD_Dépenses[Catégorie dépense],'Soldes numéraires'!H$3)","v":0},null,null,800.59000007480381,800.59000007480381]
["2019-11-09",null,{"$f":"SUMIF(BD_Dépenses[Date dépense],'Soldes numéraires'!A50,BD_Dépenses[Montant dépense])","v":0},{"$f":"SUMIFS(BD_Dépenses[Montant dépense],BD_Dépenses[Date dépense],'Soldes numéraires'!$A50,BD_Dépenses[Catégorie dépense],'Soldes numéraires'!D$3)","v":0},{"$f":"SUMIFS(BD_Dépenses[Montant dépense],BD_Dépenses[Date dépense],'Soldes numéraires'!$A50,BD_Dépenses[Catégorie dépense],'Soldes numéraires'!E$3)","v":0},{"$f":"SUMIFS(BD_Dépenses[Montant dépense],BD_Dépenses[Date dépense],'Soldes numéraires'!$A50,BD_Dépenses[Catégorie dépense],'Soldes numéraires'!F$3)","v":0},{"$f":"SUMIFS(BD_Dépenses[Montant dépense],BD_Dépenses[Date dépense],'Soldes numéraires'!$A50,BD_Dépenses[Catégorie dépense],'Soldes numéraires'!G$3)","v":0},{"$f":"SUMIFS(BD_Dépenses[Montant dépense],BD_Dépenses[Date dépense],'Soldes numéraires'!$A50,BD_Dépenses[Catégorie dépense],'Soldes numéraires'!H$3)","v":0},null,null,800.59000007480381,800.59000007480381]
["2019-11-10",null,{"$f":"SUMIF(BD_Dépenses[Date dépense],'Soldes numéraires'!A51,BD_Dépenses[Montant dépense])","v":0},{"$f":"SUMIFS(BD_Dépenses[Montant dépense],BD_Dépenses[Date dépense],'Soldes numéraires'!$A51,BD_Dépenses[Catégorie dépense],'Soldes numéraires'!D$3)","v":0},{"$f":"SUMIFS(BD_Dépenses[Montant dépense],BD_Dépenses[Date dépense],'Soldes numéraires'!$A51,BD_Dépenses[Catégorie dépense],'Soldes numéraires'!E$3)","v":0},{"$f":"SUMIFS(BD_Dépenses[Montant dépense],BD_Dépenses[Date dépense],'Soldes numéraires'!$A51,BD_Dépenses[Catégorie dépense],'Soldes numéraires'!F$3)","v":0},{"$f":"SUMIFS(BD_Dépenses[Montant dépense],BD_Dépenses[Date dépense],'Soldes numéraires'!$A51,BD_Dépenses[Catégorie dépense],'Soldes numéraires'!G$3)","v":0},{"$f":"SUMIFS(BD_Dépenses[Montant dépense],BD_Dépenses[Date dépense],'Soldes numéraires'!$A51,BD_Dépenses[Catégorie dépense],'Soldes numéraires'!H$3)","v":0},null,null,800.59000007480381,800.59000007480381]
["2019-11-11",null,{"$f":"SUMIF(BD_Dépenses[Date dépense],'Soldes numéraires'!A52,BD_Dépenses[Montant dépense])","v":0},{"$f":"SUMIFS(BD_Dépenses[Montant dépense],BD_Dépenses[Date dépense],'Soldes numéraires'!$A52,BD_Dépenses[Catégorie dépense],'Soldes numéraires'!D$3)","v":0},{"$f":"SUMIFS(BD_Dépenses[Montant dépense],BD_Dépenses[Date dépense],'Soldes numéraires'!$A52,BD_Dépenses[Catégorie dépense],'Soldes numéraires'!E$3)","v":0},{"$f":"SUMIFS(BD_Dépenses[Montant dépense],BD_Dépenses[Date dépense],'Soldes numéraires'!$A52,BD_Dépenses[Catégorie dépense],'Soldes numéraires'!F$3)","v":0},{"$f":"SUMIFS(BD_Dépenses[Montant dépense],BD_Dépenses[Date dépense],'Soldes numéraires'!$A52,BD_Dépenses[Catégorie dépense],'Soldes numéraires'!G$3)","v":0},{"$f":"SUMIFS(BD_Dépenses[Montant dépense],BD_Dépenses[Date dépense],'Soldes numéraires'!$A52,BD_Dépenses[Catégorie dépense],'Soldes numéraires'!H$3)","v":0},null,null,800.59000007480381,800.59000007480381]
["2019-11-12",null,{"$f":"SUMIF(BD_Dépenses[Date dépense],'Soldes numéraires'!A53,BD_Dépenses[Montant dépense])","v":0},{"$f":"SUMIFS(BD_Dépenses[Montant dépense],BD_Dépenses[Date dépense],'Soldes numéraires'!$A53,BD_Dépenses[Catégorie dépense],'Soldes numéraires'!D$3)","v":0},{"$f":"SUMIFS(BD_Dépenses[Montant dépense],BD_Dépenses[Date dépense],'Soldes numéraires'!$A53,BD_Dépenses[Catégorie dépense],'Soldes numéraires'!E$3)","v":0},{"$f":"SUMIFS(BD_Dépenses[Montant dépense],BD_Dépenses[Date dépense],'Soldes numéraires'!$A53,BD_Dépenses[Catégorie dépense],'Soldes numéraires'!F$3)","v":0},{"$f":"SUMIFS(BD_Dépenses[Montant dépense],BD_Dépenses[Date dépense],'Soldes numéraires'!$A53,BD_Dépenses[Catégorie dépense],'Soldes numéraires'!G$3)","v":0},{"$f":"SUMIFS(BD_Dépenses[Montant dépense],BD_Dépenses[Date dépense],'Soldes numéraires'!$A53,BD_Dépenses[Catégorie dépense],'Soldes numéraires'!H$3)","v":0},null,null,800.59000007480381,800.59000007480381]
["2019-11-13",null,{"$f":"SUMIF(BD_Dépenses[Date dépense],'Soldes numéraires'!A54,BD_Dépenses[Montant dépense])","v":0},{"$f":"SUMIFS(BD_Dépenses[Montant dépense],BD_Dépenses[Date dépense],'Soldes numéraires'!$A54,BD_Dépenses[Catégorie dépense],'Soldes numéraires'!D$3)","v":0},{"$f":"SUMIFS(BD_Dépenses[Montant dépense],BD_Dépenses[Date dépense],'Soldes numéraires'!$A54,BD_Dépenses[Catégorie dépense],'Soldes numéraires'!E$3)","v":0},{"$f":"SUMIFS(BD_Dépenses[Montant dépense],BD_Dépenses[Date dépense],'Soldes numéraires'!$A54,BD_Dépenses[Catégorie dépense],'Soldes numéraires'!F$3)","v":0},{"$f":"SUMIFS(BD_Dépenses[Montant dépense],BD_Dépenses[Date dépense],'Soldes numéraires'!$A54,BD_Dépenses[Catégorie dépense],'Soldes numéraires'!G$3)","v":0},{"$f":"SUMIFS(BD_Dépenses[Montant dépense],BD_Dépenses[Date dépense],'Soldes numéraires'!$A54,BD_Dépenses[Catégorie dépense],'Soldes numéraires'!H$3)","v":0},null,null,800.59000007480381,800.59000007480381]
["2019-11-14",null,{"$f":"SUMIF(BD_Dépenses[Date dépense],'Soldes numéraires'!A55,BD_Dépenses[Montant dépense])","v":0},{"$f":"SUMIFS(BD_Dépenses[Montant dépense],BD_Dépenses[Date dépense],'Soldes numéraires'!$A55,BD_Dépenses[Catégorie dépense],'Soldes numéraires'!D$3)","v":0},{"$f":"SUMIFS(BD_Dépenses[Montant dépense],BD_Dépenses[Date dépense],'Soldes numéraires'!$A55,BD_Dépenses[Catégorie dépense],'Soldes numéraires'!E$3)","v":0},{"$f":"SUMIFS(BD_Dépenses[Montant dépense],BD_Dépenses[Date dépense],'Soldes numéraires'!$A55,BD_Dépenses[Catégorie dépense],'Soldes numéraires'!F$3)","v":0},{"$f":"SUMIFS(BD_Dépenses[Montant dépense],BD_Dépenses[Date dépense],'Soldes numéraires'!$A55,BD_Dépenses[Catégorie dépense],'Soldes numéraires'!G$3)","v":0},{"$f":"SUMIFS(BD_Dépenses[Montant dépense],BD_Dépenses[Date dépense],'Soldes numéraires'!$A55,BD_Dépenses[Catégorie dépense],'Soldes numéraires'!H$3)","v":0},null,null,800.59000007480381,800.59000007480381]
["2019-11-15",null,{"$f":"SUMIF(BD_Dépenses[Date dépense],'Soldes numéraires'!A56,BD_Dépenses[Montant dépense])","v":0},{"$f":"SUMIFS(BD_Dépenses[Montant dépense],BD_Dépenses[Date dépense],'Soldes numéraires'!$A56,BD_Dépenses[Catégorie dépense],'Soldes numéraires'!D$3)","v":0},{"$f":"SUMIFS(BD_Dépenses[Montant dépense],BD_Dépenses[Date dépense],'Soldes numéraires'!$A56,BD_Dépenses[Catégorie dépense],'Soldes numéraires'!E$3)","v":0},{"$f":"SUMIFS(BD_Dépenses[Montant dépense],BD_Dépenses[Date dépense],'Soldes numéraires'!$A56,BD_Dépenses[Catégorie dépense],'Soldes numéraires'!F$3)","v":0},{"$f":"SUMIFS(BD_Dépenses[Montant dépense],BD_Dépenses[Date dépense],'Soldes numéraires'!$A56,BD_Dépenses[Catégorie dépense],'Soldes numéraires'!G$3)","v":0},{"$f":"SUMIFS(BD_Dépenses[Montant dépense],BD_Dépenses[Date dépense],'Soldes numéraires'!$A56,BD_Dépenses[Catégorie dépense],'Soldes numéraires'!H$3)","v":0},null,null,800.59000007480381,800.59000007480381]
["2019-11-16",null,{"$f":"SUMIF(BD_Dépenses[Date dépense],'Soldes numéraires'!A57,BD_Dépenses[Montant dépense])","v":0},{"$f":"SUMIFS(BD_Dépenses[Montant dépense],BD_Dépenses[Date dépense],'Soldes numéraires'!$A57,BD_Dépenses[Catégorie dépense],'Soldes numéraires'!D$3)","v":0},{"$f":"SUMIFS(BD_Dépenses[Montant dépense],BD_Dépenses[Date dépense],'Soldes numéraires'!$A57,BD_Dépenses[Catégorie dépense],'Soldes numéraires'!E$3)","v":0},{"$f":"SUMIFS(BD_Dépenses[Montant dépense],BD_Dépenses[Date dépense],'Soldes numéraires'!$A57,BD_Dépenses[Catégorie dépense],'Soldes numéraires'!F$3)","v":0},{"$f":"SUMIFS(BD_Dépenses[Montant dépense],BD_Dépenses[Date dépense],'Soldes numéraires'!$A57,BD_Dépenses[Catégorie dépense],'Soldes numéraires'!G$3)","v":0},{"$f":"SUMIFS(BD_Dépenses[Montant dépense],BD_Dépenses[Date dépense],'Soldes numéraires'!$A57,BD_Dépenses[Catégorie dépense],'Soldes numéraires'!H$3)","v":0},null,null,800.59000007480381,800.59000007480381]
["2019-11-17",null,{"$f":"SUMIF(BD_Dépenses[Date dépense],'Soldes numéraires'!A58,BD_Dépenses[Montant dépense])","v":0},{"$f":"SUMIFS(BD_Dépenses[Montant dépense],BD_Dépenses[Date dépense],'Soldes numéraires'!$A58,BD_Dépenses[Catégorie dépense],'Soldes numéraires'!D$3)","v":0},{"$f":"SUMIFS(BD_Dépenses[Montant dépense],BD_Dépenses[Date dépense],'Soldes numéraires'!$A58,BD_Dépenses[Catégorie dépense],'Soldes numéraires'!E$3)","v":0},{"$f":"SUMIFS(BD_Dépenses[Montant dépense],BD_Dépenses[Date dépense],'Soldes numéraires'!$A58,BD_Dépenses[Catégorie dépense],'Soldes numéraires'!F$3)","v":0},{"$f":"SUMIFS(BD_Dépenses[Montant dépense],BD_Dépenses[Date dépense],'Soldes numéraires'!$A58,BD_Dépenses[Catégorie dépense],'Soldes numéraires'!G$3)","v":0},{"$f":"SUMIFS(BD_Dépenses[Montant dépense],BD_Dépenses[Date dépense],'Soldes numéraires'!$A58,BD_Dépenses[Catégorie dépense],'Soldes numéraires'!H$3)","v":0},null,null,800.59000007480381,800.59000007480381]
["2019-11-18",null,{"$f":"SUMIF(BD_Dépenses[Date dépense],'Soldes numéraires'!A59,BD_Dépenses[Montant dépense])","v":0},{"$f":"SUMIFS(BD_Dépenses[Montant dépense],BD_Dépenses[Date dépense],'Soldes numéraires'!$A59,BD_Dépenses[Catégorie dépense],'Soldes numéraires'!D$3)","v":0},{"$f":"SUMIFS(BD_Dépenses[Montant dépense],BD_Dépenses[Date dépense],'Soldes numéraires'!$A59,BD_Dépenses[Catégorie dépense],'Soldes numéraires'!E$3)","v":0},{"$f":"SUMIFS(BD_Dépenses[Montant dépense],BD_Dépenses[Date dépense],'Soldes numéraires'!$A59,BD_Dépenses[Catégorie dépense],'Soldes numéraires'!F$3)","v":0},{"$f":"SUMIFS(BD_Dépenses[Montant dépense],BD_Dépenses[Date dépense],'Soldes numéraires'!$A59,BD_Dépenses[Catégorie dépense],'Soldes numéraires'!G$3)","v":0},{"$f":"SUMIFS(BD_Dépenses[Montant dépense],BD_Dépenses[Date dépense],'Soldes numéraires'!$A59,BD_Dépenses[Catégorie dépense],'Soldes numéraires'!H$3)","v":0},null,null,800.59000007480381,800.59000007480381]
["2019-11-19",null,{"$f":"SUMIF(BD_Dépenses[Date dépense],'Soldes numéraires'!A60,BD_Dépenses[Montant dépense])","v":0},{"$f":"SUMIFS(BD_Dépenses[Montant dépense],BD_Dépenses[Date dépense],'Soldes numéraires'!$A60,BD_Dépenses[Catégorie dépense],'Soldes numéraires'!D$3)","v":0},{"$f":"SUMIFS(BD_Dépenses[Montant dépense],BD_Dépenses[Date dépense],'Soldes numéraires'!$A60,BD_Dépenses[Catégorie dépense],'Soldes numéraires'!E$3)","v":0},{"$f":"SUMIFS(BD_Dépenses[Montant dépense],BD_Dépenses[Date dépense],'Soldes numéraires'!$A60,BD_Dépenses[Catégorie dépense],'Soldes numéraires'!F$3)","v":0},{"$f":"SUMIFS(BD_Dépenses[Montant dépense],BD_Dépenses[Date dépense],'Soldes numéraires'!$A60,BD_Dépenses[Catégorie dépense],'Soldes numéraires'!G$3)","v":0},{"$f":"SUMIFS(BD_Dépenses[Montant dépense],BD_Dépenses[Date dépense],'Soldes numéraires'!$A60,BD_Dépenses[Catégorie dépense],'Soldes numéraires'!H$3)","v":0},null,null,800.59000007480381,800.59000007480381]
["2019-11-20",null,{"$f":"SUMIF(BD_Dépenses[Date dépense],'Soldes numéraires'!A61,BD_Dépenses[Montant dépense])","v":0},{"$f":"SUMIFS(BD_Dépenses[Montant dépense],BD_Dépenses[Date dépense],'Soldes numéraires'!$A61,BD_Dépenses[Catégorie dépense],'Soldes numéraires'!D$3)","v":0},{"$f":"SUMIFS(BD_Dépenses[Montant dépense],BD_Dépenses[Date dépense],'Soldes numéraires'!$A61,BD_Dépenses[Catégorie dépense],'Soldes numéraires'!E$3)","v":0},{"$f":"SUMIFS(BD_Dépenses[Montant dépense],BD_Dépenses[Date dépense],'Soldes numéraires'!$A61,BD_Dépenses[Catégorie dépense],'Soldes numéraires'!F$3)","v":0},{"$f":"SUMIFS(BD_Dépenses[Montant dépense],BD_Dépenses[Date dépense],'Soldes numéraires'!$A61,BD_Dépenses[Catégorie dépense],'Soldes numéraires'!G$3)","v":0},{"$f":"SUMIFS(BD_Dépenses[Montant dépense],BD_Dépenses[Date dépense],'Soldes numéraires'!$A61,BD_Dépenses[Catégorie dépense],'Soldes numéraires'!H$3)","v":0},null,null,800.59000007480381,800.59000007480381]
["2019-11-21",null,{"$f":"SUMIF(BD_Dépenses[Date dépense],'Soldes numéraires'!A62,BD_Dépenses[Montant dépense])","v":0},{"$f":"SUMIFS(BD_Dépenses[Montant dépense],BD_Dépenses[Date dépense],'Soldes numéraires'!$A62,BD_Dépenses[Catégorie dépense],'Soldes numéraires'!D$3)","v":0},{"$f":"SUMIFS(BD_Dépenses[Montant dépense],BD_Dépenses[Date dépense],'Soldes numéraires'!$A62,BD_Dépenses[Catégorie dépense],'Soldes numéraires'!E$3)","v":0},{"$f":"SUMIFS(BD_Dépenses[Montant dépense],BD_Dépenses[Date dépense],'Soldes numéraires'!$A62,BD_Dépenses[Catégorie dépense],'Soldes numéraires'!F$3)","v":0},{"$f":"SUMIFS(BD_Dépenses[Montant dépense],BD_Dépenses[Date dépense],'Soldes numéraires'!$A62,BD_Dépenses[Catégorie dépense],'Soldes numéraires'!G$3)","v":0},{"$f":"SUMIFS(BD_Dépenses[Montant dépense],BD_Dépenses[Date dépense],'Soldes numéraires'!$A62,BD_Dépenses[Catégorie dépense],'Soldes numéraires'!H$3)","v":0},null,null,800.59000007480381,800.59000007480381]
["2019-11-22",null,{"$f":"SUMIF(BD_Dépenses[Date dépense],'Soldes numéraires'!A63,BD_Dépenses[Montant dépense])","v":0},{"$f":"SUMIFS(BD_Dépenses[Montant dépense],BD_Dépenses[Date dépense],'Soldes numéraires'!$A63,BD_Dépenses[Catégorie dépense],'Soldes numéraires'!D$3)","v":0},{"$f":"SUMIFS(BD_Dépenses[Montant dépense],BD_Dépenses[Date dépense],'Soldes numéraires'!$A63,BD_Dépenses[Catégorie dépense],'Soldes numéraires'!E$3)","v":0},{"$f":"SUMIFS(BD_Dépenses[Montant dépense],BD_Dépenses[Date dépense],'Soldes numéraires'!$A63,BD_Dépenses[Catégorie dépense],'Soldes numéraires'!F$3)","v":0},{"$f":"SUMIFS(BD_Dépenses[Montant dépense],BD_Dépenses[Date dépense],'Soldes numéraires'!$A63,BD_Dépenses[Catégorie dépense],'Soldes numéraires'!G$3)","v":0},{"$f":"SUMIFS(BD_Dépenses[Montant dépense],BD_Dépenses[Date dépense],'Soldes numéraires'!$A63,BD_Dépenses[Catégorie dépense],'Soldes numéraires'!H$3)","v":0},null,null,800.59000007480381,800.59000007480381]
["2019-11-23",null,{"$f":"SUMIF(BD_Dépenses[Date dépense],'Soldes numéraires'!A64,BD_Dépenses[Montant dépense])","v":0},{"$f":"SUMIFS(BD_Dépenses[Montant dépense],BD_Dépenses[Date dépense],'Soldes numéraires'!$A64,BD_Dépenses[Catégorie dépense],'Soldes numéraires'!D$3)","v":0},{"$f":"SUMIFS(BD_Dépenses[Montant dépense],BD_Dépenses[Date dépense],'Soldes numéraires'!$A64,BD_Dépenses[Catégorie dépense],'Soldes numéraires'!E$3)","v":0},{"$f":"SUMIFS(BD_Dépenses[Montant dépense],BD_Dépenses[Date dépense],'Soldes numéraires'!$A64,BD_Dépenses[Catégorie dépense],'Soldes numéraires'!F$3)","v":0},{"$f":"SUMIFS(BD_Dépenses[Montant dépense],BD_Dépenses[Date dépense],'Soldes numéraires'!$A64,BD_Dépenses[Catégorie dépense],'Soldes numéraires'!G$3)","v":0},{"$f":"SUMIFS(BD_Dépenses[Montant dépense],BD_Dépenses[Date dépense],'Soldes numéraires'!$A64,BD_Dépenses[Catégorie dépense],'Soldes numéraires'!H$3)","v":0},null,null,800.59000007480381,800.59000007480381]
["2019-11-24",null,{"$f":"SUMIF(BD_Dépenses[Date dépense],'Soldes numéraires'!A65,BD_Dépenses[Montant dépense])","v":0},{"$f":"SUMIFS(BD_Dépenses[Montant dépense],BD_Dépenses[Date dépense],'Soldes numéraires'!$A65,BD_Dépenses[Catégorie dépense],'Soldes numéraires'!D$3)","v":0},{"$f":"SUMIFS(BD_Dépenses[Montant dépense],BD_Dépenses[Date dépense],'Soldes numéraires'!$A65,BD_Dépenses[Catégorie dépense],'Soldes numéraires'!E$3)","v":0},{"$f":"SUMIFS(BD_Dépenses[Montant dépense],BD_Dépenses[Date dépense],'Soldes numéraires'!$A65,BD_Dépenses[Catégorie dépense],'Soldes numéraires'!F$3)","v":0},{"$f":"SUMIFS(BD_Dépenses[Montant dépense],BD_Dépenses[Date dépense],'Soldes numéraires'!$A65,BD_Dépenses[Catégorie dépense],'Soldes numéraires'!G$3)","v":0},{"$f":"SUMIFS(BD_Dépenses[Montant dépense],BD_Dépenses[Date dépense],'Soldes numéraires'!$A65,BD_Dépenses[Catégorie dépense],'Soldes numéraires'!H$3)","v":0},null,null,800.59000007480381,800.59000007480381]
["2019-11-25",null,{"$f":"SUMIF(BD_Dépenses[Date dépense],'Soldes numéraires'!A66,BD_Dépenses[Montant dépense])","v":0},{"$f":"SUMIFS(BD_Dépenses[Montant dépense],BD_Dépenses[Date dépense],'Soldes numéraires'!$A66,BD_Dépenses[Catégorie dépense],'Soldes numéraires'!D$3)","v":0},{"$f":"SUMIFS(BD_Dépenses[Montant dépense],BD_Dépenses[Date dépense],'Soldes numéraires'!$A66,BD_Dépenses[Catégorie dépense],'Soldes numéraires'!E$3)","v":0},{"$f":"SUMIFS(BD_Dépenses[Montant dépense],BD_Dépenses[Date dépense],'Soldes numéraires'!$A66,BD_Dépenses[Catégorie dépense],'Soldes numéraires'!F$3)","v":0},{"$f":"SUMIFS(BD_Dépenses[Montant dépense],BD_Dépenses[Date dépense],'Soldes numéraires'!$A66,BD_Dépenses[Catégorie dépense],'Soldes numéraires'!G$3)","v":0},{"$f":"SUMIFS(BD_Dépenses[Montant dépense],BD_Dépenses[Date dépense],'Soldes numéraires'!$A66,BD_Dépenses[Catégorie dépense],'Soldes numéraires'!H$3)","v":0},null,null,800.59000007480381,800.59000007480381]
["2019-11-26",null,{"$f":"SUMIF(BD_Dépenses[Date dépense],'Soldes numéraires'!A67,BD_Dépenses[Montant dépense])","v":0},{"$f":"SUMIFS(BD_Dépenses[Montant dépense],BD_Dépenses[Date dépense],'Soldes numéraires'!$A67,BD_Dépenses[Catégorie dépense],'Soldes numéraires'!D$3)","v":0},{"$f":"SUMIFS(BD_Dépenses[Montant dépense],BD_Dépenses[Date dépense],'Soldes numéraires'!$A67,BD_Dépenses[Catégorie dépense],'Soldes numéraires'!E$3)","v":0},{"$f":"SUMIFS(BD_Dépenses[Montant dépense],BD_Dépenses[Date dépense],'Soldes numéraires'!$A67,BD_Dépenses[Catégorie dépense],'Soldes numéraires'!F$3)","v":0},{"$f":"SUMIFS(BD_Dépenses[Montant dépense],BD_Dépenses[Date dépense],'Soldes numéraires'!$A67,BD_Dépenses[Catégorie dépense],'Soldes numéraires'!G$3)","v":0},{"$f":"SUMIFS(BD_Dépenses[Montant dépense],BD_Dépenses[Date dépense],'Soldes numéraires'!$A67,BD_Dépenses[Catégorie dépense],'Soldes numéraires'!H$3)","v":0},null,null,800.59000007480381,800.59000007480381]
["2019-11-27",null,{"$f":"SUMIF(BD_Dépenses[Date dépense],'Soldes numéraires'!A68,BD_Dépenses[Montant dépense])","v":0},{"$f":"SUMIFS(BD_Dépenses[Montant dépense],BD_Dépenses[Date dépense],'Soldes numéraires'!$A68,BD_Dépenses[Catégorie dépense],'Soldes numéraires'!D$3)","v":0},{"$f":"SUMIFS(BD_Dépenses[Montant dépense],BD_Dépenses[Date dépense],'Soldes numéraires'!$A68,BD_Dépenses[Catégorie dépense],'Soldes numéraires'!E$3)","v":0},{"$f":"SUMIFS(BD_Dépenses[Montant dépense],BD_Dépenses[Date dépense],'Soldes numéraires'!$A68,BD_Dépenses[Catégorie dépense],'Soldes numéraires'!F$3)","v":0},{"$f":"SUMIFS(BD_Dépenses[Montant dépense],BD_Dépenses[Date dépense],'Soldes numéraires'!$A68,BD_Dépenses[Catégorie dépense],'Soldes numéraires'!G$3)","v":0},{"$f":"SUMIFS(BD_Dépenses[Montant dépense],BD_Dépenses[Date dépense],'Soldes numéraires'!$A68,BD_Dépenses[Catégorie dépense],'Soldes numéraires'!H$3)","v":0},null,null,800.59000007480381,800.59000007480381]
["2019-11-28",null,{"$f":"SUMIF(BD_Dépenses[Date dépense],'Soldes numéraires'!A69,BD_Dépenses[Montant dépense])","v":0},{"$f":"SUMIFS(BD_Dépenses[Montant dépense],BD_Dépenses[Date dépense],'Soldes numéraires'!$A69,BD_Dépenses[Catégorie dépense],'Soldes numéraires'!D$3)","v":0},{"$f":"SUMIFS(BD_Dépenses[Montant dépense],BD_Dépenses[Date dépense],'Soldes numéraires'!$A69,BD_Dépenses[Catégorie dépense],'Soldes numéraires'!E$3)","v":0},{"$f":"SUMIFS(BD_Dépenses[Montant dépense],BD_Dépenses[Date dépense],'Soldes numéraires'!$A69,BD_Dépenses[Catégorie dépense],'Soldes numéraires'!F$3)","v":0},{"$f":"SUMIFS(BD_Dépenses[Montant dépense],BD_Dépenses[Date dépense],'Soldes numéraires'!$A69,BD_Dépenses[Catégorie dépense],'Soldes numéraires'!G$3)","v":0},{"$f":"SUMIFS(BD_Dépenses[Montant dépense],BD_Dépenses[Date dépense],'Soldes numéraires'!$A69,BD_Dépenses[Catégorie dépense],'Soldes numéraires'!H$3)","v":0},null,null,800.59000007480381,800.59000007480381]
["2019-11-29",null,{"$f":"SUMIF(BD_Dépenses[Date dépense],'Soldes numéraires'!A70,BD_Dépenses[Montant dépense])","v":0},{"$f":"SUMIFS(BD_Dépenses[Montant dépense],BD_Dépenses[Date dépense],'Soldes numéraires'!$A70,BD_Dépenses[Catégorie dépense],'Soldes numéraires'!D$3)","v":0},{"$f":"SUMIFS(BD_Dépenses[Montant dépense],BD_Dépenses[Date dépense],'Soldes numéraires'!$A70,BD_Dépenses[Catégorie dépense],'Soldes numéraires'!E$3)","v":0},{"$f":"SUMIFS(BD_Dépenses[Montant dépense],BD_Dépenses[Date dépense],'Soldes numéraires'!$A70,BD_Dépenses[Catégorie dépense],'Soldes numéraires'!F$3)","v":0},{"$f":"SUMIFS(BD_Dépenses[Montant dépense],BD_Dépenses[Date dépense],'Soldes numéraires'!$A70,BD_Dépenses[Catégorie dépense],'Soldes numéraires'!G$3)","v":0},{"$f":"SUMIFS(BD_Dépenses[Montant dépense],BD_Dépenses[Date dépense],'Soldes numéraires'!$A70,BD_Dépenses[Catégorie dépense],'Soldes numéraires'!H$3)","v":0},null,null,800.59000007480381,800.59000007480381]
["2019-11-30",null,{"$f":"SUMIF(BD_Dépenses[Date dépense],'Soldes numéraires'!A71,BD_Dépenses[Montant dépense])","v":0},{"$f":"SUMIFS(BD_Dépenses[Montant dépense],BD_Dépenses[Date dépense],'Soldes numéraires'!$A71,BD_Dépenses[Catégorie dépense],'Soldes numéraires'!D$3)","v":0},{"$f":"SUMIFS(BD_Dépenses[Montant dépense],BD_Dépenses[Date dépense],'Soldes numéraires'!$A71,BD_Dépenses[Catégorie dépense],'Soldes numéraires'!E$3)","v":0},{"$f":"SUMIFS(BD_Dépenses[Montant dépense],BD_Dépenses[Date dépense],'Soldes numéraires'!$A71,BD_Dépenses[Catégorie dépense],'Soldes numéraires'!F$3)","v":0},{"$f":"SUMIFS(BD_Dépenses[Montant dépense],BD_Dépenses[Date dépense],'Soldes numéraires'!$A71,BD_Dépenses[Catégorie dépense],'Soldes numéraires'!G$3)","v":0},{"$f":"SUMIFS(BD_Dépenses[Montant dépense],BD_Dépenses[Date dépense],'Soldes numéraires'!$A71,BD_Dépenses[Catégorie dépense],'Soldes numéraires'!H$3)","v":0}]
[null,null,{"$f":"SUMIF(BD_Dépenses[Date dépense],'Soldes numéraires'!A72,BD_Dépenses[Montant dépense])","v":0},{"$f":"SUMIFS(BD_Dépenses[Montant dépense],BD_Dépenses[Date dépense],'Soldes numéraires'!$A72,BD_Dépenses[Catégorie dépense],'Soldes numéraires'!D$3)","v":0},{"$f":"SUMIFS(BD_Dépenses[Montant dépense],BD_Dépenses[Date dépense],'Soldes numéraires'!$A72,BD_Dépenses[Catégorie dépense],'Soldes numéraires'!E$3)","v":0},{"$f":"SUMIFS(BD_Dépenses[Montant dépense],BD_Dépenses[Date dépense],'Soldes numéraires'!$A72,BD_Dépenses[Catégorie dépense],'Soldes numéraires'!F$3)","v":0},{"$f":"SUMIFS(BD_Dépenses[Montant dépense],BD_Dépenses[Date dépense],'Soldes numéraires'!$A72,BD_Dépenses[Catégorie dépense],'Soldes numéraires'!G$3)","v":0},{"$f":"SUMIFS(BD_Dépenses[Montant dépense],BD_Dépenses[Date dépense],'Soldes numéraires'!$A72,BD_Dépenses[Catégorie dépense],'Soldes numéraires'!H$3)","v":0}]
["Totaux du mois :",null,{"$f":"SUM(C42:C72)","v":0},{"$f":"SUM(D42:D72)","v":0},0,0,0,0,0,0,null,{"$f":"L41+J73-C73","v":800.59000007480381}]
["Fait à Limeil-Brévannes, le .. ……… 20…"]
[{"$f":"\"Solde numéraire journalier \" & TEXT($A79,\"mmmm\")& \" \" &YEAR($A79)","v":"Solde numéraire journalier décembre 2019"}]
[]
["Dates","Numéro ticket dépenses","Montant dépenses","Dépenses alimentaires",null,"Dépenses horticoles","Dépenses médicales","Dépenses non alimentaires","Numéro ticket recettes","Montant recettes","Ancien solde","Soldes"]
["Solde du mois précédent : ",null,null,null,null,null,null,null,null,null,{"$f":"$L$70","v":800.59000007480381},{"$f":"K78","v":800.59000007480381}]
["2019-12-01",null,{"$f":"SUMIF(BD_Dépenses[Date dépense],'Soldes numéraires'!A79,BD_Dépenses[Montant dépense])","v":0},{"$f":"SUMIFS(BD_Dépenses[Montant dépense],BD_Dépenses[Date dépense],'Soldes numéraires'!$A79,BD_Dépenses[Catégorie dépense],'Soldes numéraires'!D$3)","v":0},{"$f":"SUMIFS(BD_Dépenses[Montant dépense],BD_Dépenses[Date dépense],'Soldes numéraires'!$A79,BD_Dépenses[Catégorie dépense],'Soldes numéraires'!E$3)","v":0},{"$f":"SUMIFS(BD_Dépenses[Montant dépense],BD_Dépenses[Date dépense],'Soldes numéraires'!$A79,BD_Dépenses[Catégorie dépense],'Soldes numéraires'!F$3)","v":0},{"$f":"SUMIFS(BD_Dépenses[Montant dépense],BD_Dépenses[Date dépense],'Soldes numéraires'!$A79,BD_Dépenses[Catégorie dépense],'Soldes numéraires'!G$3)","v":0},{"$f":"SUMIFS(BD_Dépenses[Montant dépense],BD_Dépenses[Date dépense],'Soldes numéraires'!$A79,BD_Dépenses[Catégorie dépense],'Soldes numéraires'!H$3)","v":0},null,null,{"$f":"$L$4","v":1000},{"$f":"$K79+$J79-$C79","v":1000}]
[{"$f":"A79+1","v":"2019-12-02"},null,{"$f":"SUMIF(BD_Dépenses[Date dépense],'Soldes numéraires'!A80,BD_Dépenses[Montant dépense])","v":0},{"$f":"SUMIFS(BD_Dépenses[Montant dépense],BD_Dépenses[Date dépense],'Soldes numéraires'!$A80,BD_Dépenses[Catégorie dépense],'Soldes numéraires'!D$3)","v":0},{"$f":"SUMIFS(BD_Dépenses[Montant dépense],BD_Dépenses[Date dépense],'Soldes numéraires'!$A80,BD_Dépenses[Catégorie dépense],'Soldes numéraires'!E$3)","v":0},{"$f":"SUMIFS(BD_Dépenses[Montant dépense],BD_Dépenses[Date dépense],'Soldes numéraires'!$A80,BD_Dépenses[Catégorie dépense],'Soldes numéraires'!F$3)","v":0},{"$f":"SUMIFS(BD_Dépenses[Montant dépense],BD_Dépenses[Date dépense],'Soldes numéraires'!$A80,BD_Dépenses[Catégorie dépense],'Soldes numéraires'!G$3)","v":0},{"$f":"SUMIFS(BD_Dépenses[Montant dépense],BD_Dépenses[Date dépense],'Soldes numéraires'!$A80,BD_Dépenses[Catégorie dépense],'Soldes numéraires'!H$3)","v":0},null,null,{"$f":"$L79","v":1000},1000]
[{"$f":"A80+1","v":"2019-12-03"},null,{"$f":"SUMIF(BD_Dépenses[Date dépense],'Soldes numéraires'!A81,BD_Dépenses[Montant dépense])","v":0},{"$f":"SUMIFS(BD_Dépenses[Montant dépense],BD_Dépenses[Date dépense],'Soldes numéraires'!$A81,BD_Dépenses[Catégorie dépense],'Soldes numéraires'!D$3)","v":0},{"$f":"SUMIFS(BD_Dépenses[Montant dépense],BD_Dépenses[Date dépense],'Soldes numéraires'!$A81,BD_Dépenses[Catégorie dépense],'Soldes numéraires'!E$3)","v":0},{"$f":"SUMIFS(BD_Dépenses[Montant dépense],BD_Dépenses[Date dépense],'Soldes numéraires'!$A81,BD_Dépenses[Catégorie dépense],'Soldes numéraires'!F$3)","v":0},{"$f":"SUMIFS(BD_Dépenses[Montant dépense],BD_Dépenses[Date dépense],'Soldes numéraires'!$A81,BD_Dépenses[Catégorie dépense],'Soldes numéraires'!G$3)","v":0},{"$f":"SUMIFS(BD_Dépenses[Montant dépense],BD_Dépenses[Date dépense],'Soldes numéraires'!$A81,BD_Dépenses[Catégorie dépense],'Soldes numéraires'!H$3)","v":0},null,null,{"$f":"$L80","v":1000},1000]
["2019-12-04",null,{"$f":"SUMIF(BD_Dépenses[Date dépense],'Soldes numéraires'!A82,BD_Dépenses[Montant dépense])","v":0},{"$f":"SUMIFS(BD_Dépenses[Montant dépense],BD_Dépenses[Date dépense],'Soldes numéraires'!$A82,BD_Dépenses[Catégorie dépense],'Soldes numéraires'!D$3)","v":0},{"$f":"SUMIFS(BD_Dépenses[Montant dépense],BD_Dépenses[Date dépense],'Soldes numéraires'!$A82,BD_Dépenses[Catégorie dépense],'Soldes numéraires'!E$3)","v":0},{"$f":"SUMIFS(BD_Dépenses[Montant dépense],BD_Dépenses[Date dépense],'Soldes numéraires'!$A82,BD_Dépenses[Catégorie dépense],'Soldes numéraires'!F$3)","v":0},{"$f":"SUMIFS(BD_Dépenses[Montant dépense],BD_Dépenses[Date dépense],'Soldes numéraires'!$A82,BD_Dépenses[Catégorie dépense],'Soldes numéraires'!G$3)","v":0},{"$f":"SUMIFS(BD_Dépenses[Montant dépense],BD_Dépenses[Date dépense],'Soldes numéraires'!$A82,BD_Dépenses[Catégorie dépense],'Soldes numéraires'!H$3)","v":0},null,null,{"$f":"$L81","v":1000},1000]
["2019-12-05",null,{"$f":"SUMIF(BD_Dépenses[Date dépense],'Soldes numéraires'!A83,BD_Dépenses[Montant dépense])","v":0},{"$f":"SUMIFS(BD_Dépenses[Montant dépense],BD_Dépenses[Date dépense],'Soldes numéraires'!$A83,BD_Dépenses[Catégorie dépense],'Soldes numéraires'!D$3)","v":0},{"$f":"SUMIFS(BD_Dépenses[Montant dépense],BD_Dépenses[Date dépense],'Soldes numéraires'!$A83,BD_Dépenses[Catégorie dépense],'Soldes numéraires'!E$3)","v":0},{"$f":"SUMIFS(BD_Dépenses[Montant dépense],BD_Dépenses[Date dépense],'Soldes numéraires'!$A83,BD_Dépenses[Catégorie dépense],'Soldes numéraires'!F$3)","v":0},{"$f":"SUMIFS(BD_Dépenses[Montant dépense],BD_Dépenses[Date dépense],'Soldes numéraires'!$A83,BD_Dépenses[Catégorie dépense],'Soldes numéraires'!G$3)","v":0},{"$f":"SUMIFS(BD_Dépenses[Montant dépense],BD_Dépenses[Date dépense],'Soldes numéraires'!$A83,BD_Dépenses[Catégorie dépense],'Soldes numéraires'!H$3)","v":0},null,null,{"$f":"$L82","v":1000},1000]
["2019-12-06",null,{"$f":"SUMIF(BD_Dépenses[Date dépense],'Soldes numéraires'!A84,BD_Dépenses[Montant dépense])","v":0},{"$f":"SUMIFS(BD_Dépenses[Montant dépense],BD_Dépenses[Date dépense],'Soldes numéraires'!$A84,BD_Dépenses[Catégorie dépense],'Soldes numéraires'!D$3)","v":0},{"$f":"SUMIFS(BD_Dépenses[Montant dépense],BD_Dépenses[Date dépense],'Soldes numéraires'!$A84,BD_Dépenses[Catégorie dépense],'Soldes numéraires'!E$3)","v":0},{"$f":"SUMIFS(BD_Dépenses[Montant dépense],BD_Dépenses[Date dépense],'Soldes numéraires'!$A84,BD_Dépenses[Catégorie dépense],'Soldes numéraires'!F$3)","v":0},{"$f":"SUMIFS(BD_Dépenses[Montant dépense],BD_Dépenses[Date dépense],'Soldes numéraires'!$A84,BD_Dépenses[Catégorie dépense],'Soldes numéraires'!G$3)","v":0},{"$f":"SUMIFS(BD_Dépenses[Montant dépense],BD_Dépenses[Date dépense],'Soldes numéraires'!$A84,BD_Dépenses[Catégorie dépense],'Soldes numéraires'!H$3)","v":0},null,null,1000,1000]
["2019-12-07",null,{"$f":"SUMIF(BD_Dépenses[Date dépense],'Soldes numéraires'!A85,BD_Dépenses[Montant dépense])","v":0},{"$f":"SUMIFS(BD_Dépenses[Montant dépense],BD_Dépenses[Date dépense],'Soldes numéraires'!$A85,BD_Dépenses[Catégorie dépense],'Soldes numéraires'!D$3)","v":0},{"$f":"SUMIFS(BD_Dépenses[Montant dépense],BD_Dépenses[Date dépense],'Soldes numéraires'!$A85,BD_Dépenses[Catégorie dépense],'Soldes numéraires'!E$3)","v":0},{"$f":"SUMIFS(BD_Dépenses[Montant dépense],BD_Dépenses[Date dépense],'Soldes numéraires'!$A85,BD_Dépenses[Catégorie dépense],'Soldes numéraires'!F$3)","v":0},{"$f":"SUMIFS(BD_Dépenses[Montant dépense],BD_Dépenses[Date dépense],'Soldes numéraires'!$A85,BD_Dépenses[Catégorie dépense],'Soldes numéraires'!G$3)","v":0},{"$f":"SUMIFS(BD_Dépenses[Montant dépense],BD_Dépenses[Date dépense],'Soldes numéraires'!$A85,BD_Dépenses[Catégorie dépense],'Soldes numéraires'!H$3)","v":0},null,null,1000,1000]
["2019-12-08",null,{"$f":"SUMIF(BD_Dépenses[Date dépense],'Soldes numéraires'!A86,BD_Dépenses[Montant dépense])","v":0},{"$f":"SUMIFS(BD_Dépenses[Montant dépense],BD_Dépenses[Date dépense],'Soldes numéraires'!$A86,BD_Dépenses[Catégorie dépense],'Soldes numéraires'!D$3)","v":0},{"$f":"SUMIFS(BD_Dépenses[Montant dépense],BD_Dépenses[Date dépense],'Soldes numéraires'!$A86,BD_Dépenses[Catégorie dépense],'Soldes numéraires'!E$3)","v":0},{"$f":"SUMIFS(BD_Dépenses[Montant dépense],BD_Dépenses[Date dépense],'Soldes numéraires'!$A86,BD_Dépenses[Catégorie dépense],'Soldes numéraires'!F$3)","v":0},{"$f":"SUMIFS(BD_Dépenses[Montant dépense],BD_Dépenses[Date dépense],'Soldes numéraires'!$A86,BD_Dépenses[Catégorie dépense],'Soldes numéraires'!G$3)","v":0},{"$f":"SUMIFS(BD_Dépenses[Montant dépense],BD_Dépenses[Date dépense],'Soldes numéraires'!$A86,BD_Dépenses[Catégorie dépense],'Soldes numéraires'!H$3)","v":0},null,null,1000,1000]
["2019-12-09",null,{"$f":"SUMIF(BD_Dépenses[Date dépense],'Soldes numéraires'!A87,BD_Dépenses[Montant dépense])","v":0},{"$f":"SUMIFS(BD_Dépenses[Montant dépense],BD_Dépenses[Date dépense],'Soldes numéraires'!$A87,BD_Dépenses[Catégorie dépense],'Soldes numéraires'!D$3)","v":0},{"$f":"SUMIFS(BD_Dépenses[Montant dépense],BD_Dépenses[Date dépense],'Soldes numéraires'!$A87,BD_Dépenses[Catégorie dépense],'Soldes numéraires'!E$3)","v":0},{"$f":"SUMIFS(BD_Dépenses[Montant dépense],BD_Dépenses[Date dépense],'Soldes numéraires'!$A87,BD_Dépenses[Catégorie dépense],'Soldes numéraires'!F$3)","v":0},{"$f":"SUMIFS(BD_Dépenses[Montant dépense],BD_Dépenses[Date dépense],'Soldes numéraires'!$A87,BD_Dépenses[Catégorie dépense],'Soldes numéraires'!G$3)","v":0},{"$f":"SUMIFS(BD_Dépenses[Montant dépense],BD_Dépenses[Date dépense],'Soldes numéraires'!$A87,BD_Dépenses[Catégorie dépense],'Soldes numéraires'!H$3)","v":0},null,null,1000,1000]
["2019-12-10",null,{"$f":"SUMIF(BD_Dépenses[Date dépense],'Soldes numéraires'!A88,BD_Dépenses[Montant dépense])","v":0},{"$f":"SUMIFS(BD_Dépenses[Montant dépense],BD_Dépenses[Date dépense],'Soldes numéraires'!$A88,BD_Dépenses[Catégorie dépense],'Soldes numéraires'!D$3)","v":0},{"$f":"SUMIFS(BD_Dépenses[Montant dépense],BD_Dépenses[Date dépense],'Soldes numéraires'!$A88,BD_Dépenses[Catégorie dépense],'Soldes numéraires'!E$3)","v":0},{"$f":"SUMIFS(BD_Dépenses[Montant dépense],BD_Dépenses[Date dépense],'Soldes numéraires'!$A88,BD_Dépenses[Catégorie dépense],'Soldes numéraires'!F$3)","v":0},{"$f":"SUMIFS(BD_Dépenses[Montant dépense],BD_Dépenses[Date dépense],'Soldes numéraires'!$A88,BD_Dépenses[Catégorie dépense],'Soldes numéraires'!G$3)","v":0},{"$f":"SUMIFS(BD_Dépenses[Montant dépense],BD_Dépenses[Date dépense],'Soldes numéraires'!$A88,BD_Dépenses[Catégorie dépense],'Soldes numéraires'!H$3)","v":0},null,null,1000,1000]
["2019-12-11",null,{"$f":"SUMIF(BD_Dépenses[Date dépense],'Soldes numéraires'!A89,BD_Dépenses[Montant dépense])","v":0},{"$f":"SUMIFS(BD_Dépenses[Montant dépense],BD_Dépenses[Date dépense],'Soldes numéraires'!$A89,BD_Dépenses[Catégorie dépense],'Soldes numéraires'!D$3)","v":0},{"$f":"SUMIFS(BD_Dépenses[Montant dépense],BD_Dépenses[Date dépense],'Soldes numéraires'!$A89,BD_Dépenses[Catégorie dépense],'Soldes numéraires'!E$3)","v":0},{"$f":"SUMIFS(BD_Dépenses[Montant dépense],BD_Dépenses[Date dépense],'Soldes numéraires'!$A89,BD_Dépenses[Catégorie dépense],'Soldes numéraires'!F$3)","v":0},{"$f":"SUMIFS(BD_Dépenses[Montant dépense],BD_Dépenses[Date dépense],'Soldes numéraires'!$A89,BD_Dépenses[Catégorie dépense],'Soldes numéraires'!G$3)","v":0},{"$f":"SUMIFS(BD_Dépenses[Montant dépense],BD_Dépenses[Date dépense],'Soldes numéraires'!$A89,BD_Dépenses[Catégorie dépense],'Soldes numéraires'!H$3)","v":0},null,null,1000,1000]
["2019-12-12",null,{"$f":"SUMIF(BD_Dépenses[Date dépense],'Soldes numéraires'!A90,BD_Dépenses[Montant dépense])","v":0},{"$f":"SUMIFS(BD_Dépenses[Montant dépense],BD_Dépenses[Date dépense],'Soldes numéraires'!$A90,BD_Dépenses[Catégorie dépense],'Soldes numéraires'!D$3)","v":0},{"$f":"SUMIFS(BD_Dépenses[Montant dépense],BD_Dépenses[Date dépense],'Soldes numéraires'!$A90,BD_Dépenses[Catégorie dépense],'Soldes numéraires'!E$3)","v":0},{"$f":"SUMIFS(BD_Dépenses[Montant dépense],BD_Dépenses[Date dépense],'Soldes numéraires'!$A90,BD_Dépenses[Catégorie dépense],'Soldes numéraires'!F$3)","v":0},{"$f":"SUMIFS(BD_Dépenses[Montant dépense],BD_Dépenses[Date dépense],'Soldes numéraires'!$A90,BD_Dépenses[Catégorie dépense],'Soldes numéraires'!G$3)","v":0},{"$f":"SUMIFS(BD_Dépenses[Montant dépense],BD_Dépenses[Date dépense],'Soldes numéraires'!$A90,BD_Dépenses[Catégorie dépense],'Soldes numéraires'!H$3)","v":0},null,null,1000,1000]
["2019-12-13",null,{"$f":"SUMIF(BD_Dépenses[Date dépense],'Soldes numéraires'!A91,BD_Dépenses[Montant dépense])","v":0},{"$f":"SUMIFS(BD_Dépenses[Montant dépense],BD_Dépenses[Date dépense],'Soldes numéraires'!$A91,BD_Dépenses[Catégorie dépense],'Soldes numéraires'!D$3)","v":0},{"$f":"SUMIFS(BD_Dépenses[Montant dépense],BD_Dépenses[Date dépense],'Soldes numéraires'!$A91,BD_Dépenses[Catégorie dépense],'Soldes numéraires'!E$3)","v":0},{"$f":"SUMIFS(BD_Dépenses[Montant dépense],BD_Dépenses[Date dépense],'Soldes numéraires'!$A91,BD_Dépenses[Catégorie dépense],'Soldes numéraires'!F$3)","v":0},{"$f":"SUMIFS(BD_Dépenses[Montant dépense],BD_Dépenses[Date dépense],'Soldes numéraires'!$A91,BD_Dépenses[Catégorie dépense],'Soldes numéraires'!G$3)","v":0},{"$f":"SUMIFS(BD_Dépenses[Montant dépense],BD_Dépenses[Date dépense],'Soldes numéraires'!$A91,BD_Dépenses[Catégorie dépense],'Soldes numéraires'!H$3)","v":0},null,null,1000,1000]
["2019-12-14",null,{"$f":"SUMIF(BD_Dépenses[Date dépense],'Soldes numéraires'!A92,BD_Dépenses[Montant dépense])","v":0},{"$f":"SUMIFS(BD_Dépenses[Montant dépense],BD_Dépenses[Date dépense],'Soldes numéraires'!$A92,BD_Dépenses[Catégorie dépense],'Soldes numéraires'!D$3)","v":0},{"$f":"SUMIFS(BD_Dépenses[Montant dépense],BD_Dépenses[Date dépense],'Soldes numéraires'!$A92,BD_Dépenses[Catégorie dépense],'Soldes numéraires'!E$3)","v":0},{"$f":"SUMIFS(BD_Dépenses[Montant dépense],BD_Dépenses[Date dépense],'Soldes numéraires'!$A92,BD_Dépenses[Catégorie dépense],'Soldes numéraires'!F$3)","v":0},{"$f":"SUMIFS(BD_Dépenses[Montant dépense],BD_Dépenses[Date dépense],'Soldes numéraires'!$A92,BD_Dépenses[Catégorie dépense],'Soldes numéraires'!G$3)","v":0},{"$f":"SUMIFS(BD_Dépenses[Montant dépense],BD_Dépenses[Date dépense],'Soldes numéraires'!$A92,BD_Dépenses[Catégorie dépense],'Soldes numéraires'!H$3)","v":0},null,null,1000,1000]
["2019-12-15",null,{"$f":"SUMIF(BD_Dépenses[Date dépense],'Soldes numéraires'!A93,BD_Dépenses[Montant dépense])","v":0},{"$f":"SUMIFS(BD_Dépenses[Montant dépense],BD_Dépenses[Date dépense],'Soldes numéraires'!$A93,BD_Dépenses[Catégorie dépense],'Soldes numéraires'!D$3)","v":0},{"$f":"SUMIFS(BD_Dépenses[Montant dépense],BD_Dépenses[Date dépense],'Soldes numéraires'!$A93,BD_Dépenses[Catégorie dépense],'Soldes numéraires'!E$3)","v":0},{"$f":"SUMIFS(BD_Dépenses[Montant dépense],BD_Dépenses[Date dépense],'Soldes numéraires'!$A93,BD_Dépenses[Catégorie dépense],'Soldes numéraires'!F$3)","v":0},{"$f":"SUMIFS(BD_Dépenses[Montant dépense],BD_Dépenses[Date dépense],'Soldes numéraires'!$A93,BD_Dépenses[Catégorie dépense],'Soldes numéraires'!G$3)","v":0},{"$f":"SUMIFS(BD_Dépenses[Montant dépense],BD_Dépenses[Date dépense],'Soldes numéraires'!$A93,BD_Dépenses[Catégorie dépense],'Soldes numéraires'!H$3)","v":0},null,null,1000,1000]
["2019-12-16",null,{"$f":"SUMIF(BD_Dépenses[Date dépense],'Soldes numéraires'!A94,BD_Dépenses[Montant dépense])","v":0},{"$f":"SUMIFS(BD_Dépenses[Montant dépense],BD_Dépenses[Date dépense],'Soldes numéraires'!$A94,BD_Dépenses[Catégorie dépense],'Soldes numéraires'!D$3)","v":0},{"$f":"SUMIFS(BD_Dépenses[Montant dépense],BD_Dépenses[Date dépense],'Soldes numéraires'!$A94,BD_Dépenses[Catégorie dépense],'Soldes numéraires'!E$3)","v":0},{"$f":"SUMIFS(BD_Dépenses[Montant dépense],BD_Dépenses[Date dépense],'Soldes numéraires'!$A94,BD_Dépenses[Catégorie dépense],'Soldes numéraires'!F$3)","v":0},{"$f":"SUMIFS(BD_Dépenses[Montant dépense],BD_Dépenses[Date dépense],'Soldes numéraires'!$A94,BD_Dépenses[Catégorie dépense],'Soldes numéraires'!G$3)","v":0},{"$f":"SUMIFS(BD_Dépenses[Montant dépense],BD_Dépenses[Date dépense],'Soldes numéraires'!$A94,BD_Dépenses[Catégorie dépense],'Soldes numéraires'!H$3)","v":0},null,null,1000,1000]
["2019-12-17",null,{"$f":"SUMIF(BD_Dépenses[Date dépense],'Soldes numéraires'!A95,BD_Dépenses[Montant dépense])","v":0},{"$f":"SUMIFS(BD_Dépenses[Montant dépense],BD_Dépenses[Date dépense],'Soldes numéraires'!$A95,BD_Dépenses[Catégorie dépense],'Soldes numéraires'!D$3)","v":0},{"$f":"SUMIFS(BD_Dépenses[Montant dépense],BD_Dépenses[Date dépense],'Soldes numéraires'!$A95,BD_Dépenses[Catégorie dépense],'Soldes numéraires'!E$3)","v":0},{"$f":"SUMIFS(BD_Dépenses[Montant dépense],BD_Dépenses[Date dépense],'Soldes numéraires'!$A95,BD_Dépenses[Catégorie dépense],'Soldes numéraires'!F$3)","v":0},{"$f":"SUMIFS(BD_Dépenses[Montant dépense],BD_Dépenses[Date dépense],'Soldes numéraires'!$A95,BD_Dépenses[Catégorie dépense],'Soldes numéraires'!G$3)","v":0},{"$f":"SUMIFS(BD_Dépenses[Montant dépense],BD_Dépenses[Date dépense],'Soldes numéraires'!$A95,BD_Dépenses[Catégorie dépense],'Soldes numéraires'!H$3)","v":0},null,null,1000,1000]
["2019-12-18",null,{"$f":"SUMIF(BD_Dépenses[Date dépense],'Soldes numéraires'!A96,BD_Dépenses[Montant dépense])","v":0},{"$f":"SUMIFS(BD_Dépenses[Montant dépense],BD_Dépenses[Date dépense],'Soldes numéraires'!$A96,BD_Dépenses[Catégorie dépense],'Soldes numéraires'!D$3)","v":0},{"$f":"SUMIFS(BD_Dépenses[Montant dépense],BD_Dépenses[Date dépense],'Soldes numéraires'!$A96,BD_Dépenses[Catégorie dépense],'Soldes numéraires'!E$3)","v":0},{"$f":"SUMIFS(BD_Dépenses[Montant dépense],BD_Dépenses[Date dépense],'Soldes numéraires'!$A96,BD_Dépenses[Catégorie dépense],'Soldes numéraires'!F$3)","v":0},{"$f":"SUMIFS(BD_Dépenses[Montant dépense],BD_Dépenses[Date dépense],'Soldes numéraires'!$A96,BD_Dépenses[Catégorie dépense],'Soldes numéraires'!G$3)","v":0},{"$f":"SUMIFS(BD_Dépenses[Montant dépense],BD_Dépenses[Date dépense],'Soldes numéraires'!$A96,BD_Dépenses[Catégorie dépense],'Soldes numéraires'!H$3)","v":0},null,null,1000,1000]
["2019-12-19",null,{"$f":"SUMIF(BD_Dépenses[Date dépense],'Soldes numéraires'!A97,BD_Dépenses[Montant dépense])","v":0},{"$f":"SUMIFS(BD_Dépenses[Montant dépense],BD_Dépenses[Date dépense],'Soldes numéraires'!$A97,BD_Dépenses[Catégorie dépense],'Soldes numéraires'!D$3)","v":0},{"$f":"SUMIFS(BD_Dépenses[Montant dépense],BD_Dépenses[Date dépense],'Soldes numéraires'!$A97,BD_Dépenses[Catégorie dépense],'Soldes numéraires'!E$3)","v":0},{"$f":"SUMIFS(BD_Dépenses[Montant dépense],BD_Dépenses[Date dépense],'Soldes numéraires'!$A97,BD_Dépenses[Catégorie dépense],'Soldes numéraires'!F$3)","v":0},{"$f":"SUMIFS(BD_Dépenses[Montant dépense],BD_Dépenses[Date dépense],'Soldes numéraires'!$A97,BD_Dépenses[Catégorie dépense],'Soldes numéraires'!G$3)","v":0},{"$f":"SUMIFS(BD_Dépenses[Montant dépense],BD_Dépenses[Date dépense],'Soldes numéraires'!$A97,BD_Dépenses[Catégorie dépense],'Soldes numéraires'!H$3)","v":0},null,null,1000,1000]
["2019-12-20",null,{"$f":"SUMIF(BD_Dépenses[Date dépense],'Soldes numéraires'!A98,BD_Dépenses[Montant dépense])","v":0},{"$f":"SUMIFS(BD_Dépenses[Montant dépense],BD_Dépenses[Date dépense],'Soldes numéraires'!$A98,BD_Dépenses[Catégorie dépense],'Soldes numéraires'!D$3)","v":0},{"$f":"SUMIFS(BD_Dépenses[Montant dépense],BD_Dépenses[Date dépense],'Soldes numéraires'!$A98,BD_Dépenses[Catégorie dépense],'Soldes numéraires'!E$3)","v":0},{"$f":"SUMIFS(BD_Dépenses[Montant dépense],BD_Dépenses[Date dépense],'Soldes numéraires'!$A98,BD_Dépenses[Catégorie dépense],'Soldes numéraires'!F$3)","v":0},{"$f":"SUMIFS(BD_Dépenses[Montant dépense],BD_Dépenses[Date dépense],'Soldes numéraires'!$A98,BD_Dépenses[Catégorie dépense],'Soldes numéraires'!G$3)","v":0},{"$f":"SUMIFS(BD_Dépenses[Montant dépense],BD_Dépenses[Date dépense],'Soldes numéraires'!$A98,BD_Dépenses[Catégorie dépense],'Soldes numéraires'!H$3)","v":0},null,null,1000,1000]
["2019-12-21",null,{"$f":"SUMIF(BD_Dépenses[Date dépense],'Soldes numéraires'!A99,BD_Dépenses[Montant dépense])","v":0},{"$f":"SUMIFS(BD_Dépenses[Montant dépense],BD_Dépenses[Date dépense],'Soldes numéraires'!$A99,BD_Dépenses[Catégorie dépense],'Soldes numéraires'!D$3)","v":0},{"$f":"SUMIFS(BD_Dépenses[Montant dépense],BD_Dépenses[Date dépense],'Soldes numéraires'!$A99,BD_Dépenses[Catégorie dépense],'Soldes numéraires'!E$3)","v":0},{"$f":"SUMIFS(BD_Dépenses[Montant dépense],BD_Dépenses[Date dépense],'Soldes numéraires'!$A99,BD_Dépenses[Catégorie dépense],'Soldes numéraires'!F$3)","v":0},{"$f":"SUMIFS(BD_Dépenses[Montant dépense],BD_Dépenses[Date dépense],'Soldes numéraires'!$A99,BD_Dépenses[Catégorie dépense],'Soldes numéraires'!G$3)","v":0},{"$f":"SUMIFS(BD_Dépenses[Montant dépense],BD_Dépenses[Date dépense],'Soldes numéraires'!$A99,BD_Dépenses[Catégorie dépense],'Soldes numéraires'!H$3)","v":0},null,null,1000,1000]
["2019-12-22",null,{"$f":"SUMIF(BD_Dépenses[Date dépense],'Soldes numéraires'!A100,BD_Dépenses[Montant dépense])","v":0},{"$f":"SUMIFS(BD_Dépenses[Montant dépense],BD_Dépenses[Date dépense],'Soldes numéraires'!$A100,BD_Dépenses[Catégorie dépense],'Soldes numéraires'!D$3)","v":0},{"$f":"SUMIFS(BD_Dépenses[Montant dépense],BD_Dépenses[Date dépense],'Soldes numéraires'!$A100,BD_Dépenses[Catégorie dépense],'Soldes numéraires'!E$3)","v":0},{"$f":"SUMIFS(BD_Dépenses[Montant dépense],BD_Dépenses[Date dépense],'Soldes numéraires'!$A100,BD_Dépenses[Catégorie dépense],'Soldes numéraires'!F$3)","v":0},{"$f":"SUMIFS(BD_Dépenses[Montant dépense],BD_Dépenses[Date dépense],'Soldes numéraires'!$A100,BD_Dépenses[Catégorie dépense],'Soldes numéraires'!G$3)","v":0},{"$f":"SUMIFS(BD_Dépenses[Montant dépense],BD_Dépenses[Date dépense],'Soldes numéraires'!$A100,BD_Dépenses[Catégorie dépense],'Soldes numéraires'!H$3)","v":0},null,null,1000,1000]
["2019-12-23",null,{"$f":"SUMIF(BD_Dépenses[Date dépense],'Soldes numéraires'!A101,BD_Dépenses[Montant dépense])","v":0},{"$f":"SUMIFS(BD_Dépenses[Montant dépense],BD_Dépenses[Date dépense],'Soldes numéraires'!$A101,BD_Dépenses[Catégorie dépense],'Soldes numéraires'!D$3)","v":0},{"$f":"SUMIFS(BD_Dépenses[Montant dépense],BD_Dépenses[Date dépense],'Soldes numéraires'!$A101,BD_Dépenses[Catégorie dépense],'Soldes numéraires'!E$3)","v":0},{"$f":"SUMIFS(BD_Dépenses[Montant dépense],BD_Dépenses[Date dépense],'Soldes numéraires'!$A101,BD_Dépenses[Catégorie dépense],'Soldes numéraires'!F$3)","v":0},{"$f":"SUMIFS(BD_Dépenses[Montant dépense],BD_Dépenses[Date dépense],'Soldes numéraires'!$A101,BD_Dépenses[Catégorie dépense],'Soldes numéraires'!G$3)","v":0},{"$f":"SUMIFS(BD_Dépenses[Montant dépense],BD_Dépenses[Date dépense],'Soldes numéraires'!$A101,BD_Dépenses[Catégorie dépense],'Soldes numéraires'!H$3)","v":0},null,null,1000,1000]
["2019-12-24",null,{"$f":"SUMIF(BD_Dépenses[Date dépense],'Soldes numéraires'!A102,BD_Dépenses[Montant dépense])","v":0},{"$f":"SUMIFS(BD_Dépenses[Montant dépense],BD_Dépenses[Date dépense],'Soldes numéraires'!$A102,BD_Dépenses[Catégorie dépense],'Soldes numéraires'!D$3)","v":0},{"$f":"SUMIFS(BD_Dépenses[Montant dépense],BD_Dépenses[Date dépense],'Soldes numéraires'!$A102,BD_Dépenses[Catégorie dépense],'Soldes numéraires'!E$3)","v":0},{"$f":"SUMIFS(BD_Dépenses[Montant dépense],BD_Dépenses[Date dépense],'Soldes numéraires'!$A102,BD_Dépenses[Catégorie dépense],'Soldes numéraires'!F$3)","v":0},{"$f":"SUMIFS(BD_Dépenses[Montant dépense],BD_Dépenses[Date dépense],'Soldes numéraires'!$A102,BD_Dépenses[Catégorie dépense],'Soldes numéraires'!G$3)","v":0},{"$f":"SUMIFS(BD_Dépenses[Montant dépense],BD_Dépenses[Date dépense],'Soldes numéraires'!$A102,BD_Dépenses[Catégorie dépense],'Soldes numéraires'!H$3)","v":0},null,null,1000,1000]
["2019-12-25",null,{"$f":"SUMIF(BD_Dépenses[Date dépense],'Soldes numéraires'!A103,BD_Dépenses[Montant dépense])","v":0},{"$f":"SUMIFS(BD_Dépenses[Montant dépense],BD_Dépenses[Date dépense],'Soldes numéraires'!$A103,BD_Dépenses[Catégorie dépense],'Soldes numéraires'!D$3)","v":0},{"$f":"SUMIFS(BD_Dépenses[Montant dépense],BD_Dépenses[Date dépense],'Soldes numéraires'!$A103,BD_Dépenses[Catégorie dépense],'Soldes numéraires'!E$3)","v":0},{"$f":"SUMIFS(BD_Dépenses[Montant dépense],BD_Dépenses[Date dépense],'Soldes numéraires'!$A103,BD_Dépenses[Catégorie dépense],'Soldes numéraires'!F$3)","v":0},{"$f":"SUMIFS(BD_Dépenses[Montant dépense],BD_Dépenses[Date dépense],'Soldes numéraires'!$A103,BD_Dépenses[Catégorie dépense],'Soldes numéraires'!G$3)","v":0},{"$f":"SUMIFS(BD_Dépenses[Montant dépense],BD_Dépenses[Date dépense],'Soldes numéraires'!$A103,BD_Dépenses[Catégorie dépense],'Soldes numéraires'!H$3)","v":0},null,null,1000,1000]
["2019-12-26",null,{"$f":"SUMIF(BD_Dépenses[Date dépense],'Soldes numéraires'!A104,BD_Dépenses[Montant dépense])","v":0},{"$f":"SUMIFS(BD_Dépenses[Montant dépense],BD_Dépenses[Date dépense],'Soldes numéraires'!$A104,BD_Dépenses[Catégorie dépense],'Soldes numéraires'!D$3)","v":0},{"$f":"SUMIFS(BD_Dépenses[Montant dépense],BD_Dépenses[Date dépense],'Soldes numéraires'!$A104,BD_Dépenses[Catégorie dépense],'Soldes numéraires'!E$3)","v":0},{"$f":"SUMIFS(BD_Dépenses[Montant dépense],BD_Dépenses[Date dépense],'Soldes numéraires'!$A104,BD_Dépenses[Catégorie dépense],'Soldes numéraires'!F$3)","v":0},{"$f":"SUMIFS(BD_Dépenses[Montant dépense],BD_Dépenses[Date dépense],'Soldes numéraires'!$A104,BD_Dépenses[Catégorie dépense],'Soldes numéraires'!G$3)","v":0},{"$f":"SUMIFS(BD_Dépenses[Montant dépense],BD_Dépenses[Date dépense],'Soldes numéraires'!$A104,BD_Dépenses[Catégorie dépense],'Soldes numéraires'!H$3)","v":0},null,null,1000,1000]
["2019-12-27",null,{"$f":"SUMIF(BD_Dépenses[Date dépense],'Soldes numéraires'!A105,BD_Dépenses[Montant dépense])","v":0},{"$f":"SUMIFS(BD_Dépenses[Montant dépense],BD_Dépenses[Date dépense],'Soldes numéraires'!$A105,BD_Dépenses[Catégorie dépense],'Soldes numéraires'!D$3)","v":0},{"$f":"SUMIFS(BD_Dépenses[Montant dépense],BD_Dépenses[Date dépense],'Soldes numéraires'!$A105,BD_Dépenses[Catégorie dépense],'Soldes numéraires'!E$3)","v":0},{"$f":"SUMIFS(BD_Dépenses[Montant dépense],BD_Dépenses[Date dépense],'Soldes numéraires'!$A105,BD_Dépenses[Catégorie dépense],'Soldes numéraires'!F$3)","v":0},{"$f":"SUMIFS(BD_Dépenses[Montant dépense],BD_Dépenses[Date dépense],'Soldes numéraires'!$A105,BD_Dépenses[Catégorie dépense],'Soldes numéraires'!G$3)","v":0},{"$f":"SUMIFS(BD_Dépenses[Montant dépense],BD_Dépenses[Date dépense],'Soldes numéraires'!$A105,BD_Dépenses[Catégorie dépense],'Soldes numéraires'!H$3)","v":0},null,null,1000,1000]
["2019-12-28",null,{"$f":"SUMIF(BD_Dépenses[Date dépense],'Soldes numéraires'!A106,BD_Dépenses[Montant dépense])","v":0},{"$f":"SUMIFS(BD_Dépenses[Montant dépense],BD_Dépenses[Date dépense],'Soldes numéraires'!$A106,BD_Dépenses[Catégorie dépense],'Soldes numéraires'!D$3)","v":0},{"$f":"SUMIFS(BD_Dépenses[Montant dépense],BD_Dépenses[Date dépense],'Soldes numéraires'!$A106,BD_Dépenses[Catégorie dépense],'Soldes numéraires'!E$3)","v":0},{"$f":"SUMIFS(BD_Dépenses[Montant dépense],BD_Dépenses[Date dépense],'Soldes numéraires'!$A106,BD_Dépenses[Catégorie dépense],'Soldes numéraires'!F$3)","v":0},{"$f":"SUMIFS(BD_Dépenses[Montant dépense],BD_Dépenses[Date dépense],'Soldes numéraires'!$A106,BD_Dépenses[Catégorie dépense],'Soldes numéraires'!G$3)","v":0},{"$f":"SUMIFS(BD_Dépenses[Montant dépense],BD_Dépenses[Date dépense],'Soldes numéraires'!$A106,BD_Dépenses[Catégorie dépense],'Soldes numéraires'!H$3)","v":0},null,null,1000,1000]
["2019-12-29",null,{"$f":"SUMIF(BD_Dépenses[Date dépense],'Soldes numéraires'!A107,BD_Dépenses[Montant dépense])","v":0},{"$f":"SUMIFS(BD_Dépenses[Montant dépense],BD_Dépenses[Date dépense],'Soldes numéraires'!$A107,BD_Dépenses[Catégorie dépense],'Soldes numéraires'!D$3)","v":0},{"$f":"SUMIFS(BD_Dépenses[Montant dépense],BD_Dépenses[Date dépense],'Soldes numéraires'!$A107,BD_Dépenses[Catégorie dépense],'Soldes numéraires'!E$3)","v":0},{"$f":"SUMIFS(BD_Dépenses[Montant dépense],BD_Dépenses[Date dépense],'Soldes numéraires'!$A107,BD_Dépenses[Catégorie dépense],'Soldes numéraires'!F$3)","v":0},{"$f":"SUMIFS(BD_Dépenses[Montant dépense],BD_Dépenses[Date dépense],'Soldes numéraires'!$A107,BD_Dépenses[Catégorie dépense],'Soldes numéraires'!G$3)","v":0},{"$f":"SUMIFS(BD_Dépenses[Montant dépense],BD_Dépenses[Date dépense],'Soldes numéraires'!$A107,BD_Dépenses[Catégorie dépense],'Soldes numéraires'!H$3)","v":0},null,null,1000,1000]
["2019-12-30",null,{"$f":"SUMIF(BD_Dépenses[Date dépense],'Soldes numéraires'!A108,BD_Dépenses[Montant dépense])","v":0},{"$f":"SUMIFS(BD_Dépenses[Montant dépense],BD_Dépenses[Date dépense],'Soldes numéraires'!$A108,BD_Dépenses[Catégorie dépense],'Soldes numéraires'!D$3)","v":0},{"$f":"SUMIFS(BD_Dépenses[Montant dépense],BD_Dépenses[Date dépense],'Soldes numéraires'!$A108,BD_Dépenses[Catégorie dépense],'Soldes numéraires'!E$3)","v":0},{"$f":"SUMIFS(BD_Dépenses[Montant dépense],BD_Dépenses[Date dépense],'Soldes numéraires'!$A108,BD_Dépenses[Catégorie dépense],'Soldes numéraires'!F$3)","v":0},{"$f":"SUMIFS(BD_Dépenses[Montant dépense],BD_Dépenses[Date dépense],'Soldes numéraires'!$A108,BD_Dépenses[Catégorie dépense],'Soldes numéraires'!G$3)","v":0},{"$f":"SUMIFS(BD_Dépenses[Montant dépense],BD_Dépenses[Date dépense],'Soldes numéraires'!$A108,BD_Dépenses[Catégorie dépense],'Soldes numéraires'!H$3)","v":0},null,null,1000,1000]
["2019-12-31",null,{"$f":"SUMIF(BD_Dépenses[Date dépense],'Soldes numéraires'!A109,BD_Dépenses[Montant dépense])","v":0},{"$f":"SUMIFS(BD_Dépenses[Montant dépense],BD_Dépenses[Date dépense],'Soldes numéraires'!$A109,BD_Dépenses[Catégorie dépense],'Soldes numéraires'!D$3)","v":0},{"$f":"SUMIFS(BD_Dépenses[Montant dépense],BD_Dépenses[Date dépense],'Soldes numéraires'!$A109,BD_Dépenses[Catégorie dépense],'Soldes numéraires'!E$3)","v":0},{"$f":"SUMIFS(BD_Dépenses[Montant dépense],BD_Dépenses[Date dépense],'Soldes numéraires'!$A109,BD_Dépenses[Catégorie dépense],'Soldes numéraires'!F$3)","v":0},{"$f":"SUMIFS(BD_Dépenses[Montant dépense],BD_Dépenses[Date dépense],'Soldes numéraires'!$A109,BD_Dépenses[Catégorie dépense],'Soldes numéraires'!G$3)","v":0},{"$f":"SUMIFS(BD_Dépenses[Montant dépense],BD_Dépenses[Date dépense],'Soldes numéraires'!$A109,BD_Dépenses[Catégorie dépense],'Soldes numéraires'!H$3)","v":0},null,null,1000,1000]
["Totaux du mois :",null,{"$f":"SUM(C79:C109)","v":0},{"$f":"SUM(D79:D109)","v":0},0,0,0,0,0,0,null,{"$f":"L78+J110-C110","v":800.59000007480381}]
["Fait à Limeil-Brévannes, le .. ……… 20…"]
["Solde numéraire journalier du mois d'avril 20..."]
[]
["Dates","Numéro ticket dépenses","Montant dépenses","Alimentation",null,"Médicales","Horticoles","Non alimentation","Numéro ticket recettes","Montant recettes","Ancien solde","Soldes"]
["Solde du mois précédent : ",null,null,null,null,null,null,null,null,null,{"$f":"$L$110","v":800.59000007480381},{"$f":"K115","v":800.59000007480381}]
["2020-04-01",null,null,null,null,null,null,null,null,null,{"$f":"$L$4","v":1000},{"$f":"$K116+$J116-$C116","v":1000}]
["2020-04-02",null,null,null,null,null,null,null,null,null,{"$f":"$L116","v":1000},1000]
["2020-04-03",null,null,null,null,null,null,null,null,null,{"$f":"$L117","v":1000},1000]
["2020-04-04",null,null,null,null,null,null,null,null,null,{"$f":"$L118","v":1000},1000]
["2020-04-05",null,null,null,null,null,null,null,null,null,{"$f":"$L119","v":1000},1000]
["2020-04-06",null,null,null,null,null,null,null,null,null,1000,1000]
["2020-04-07",null,null,null,null,null,null,null,null,null,1000,1000]
["2020-04-08",null,null,null,null,null,null,null,null,null,1000,1000]
["2020-04-09",null,null,null,null,null,null,null,null,null,1000,1000]
["2020-04-10",null,null,null,null,null,null,null,null,null,1000,1000]
["2020-04-11",null,null,null,null,null,null,null,null,null,1000,1000]
["2020-04-12",null,null,null,null,null,null,null,null,null,1000,1000]
["2020-04-13",null,null,null,null,null,null,null,null,null,1000,1000]
["2020-04-14",null,null,null,null,null,null,null,null,null,1000,1000]
["2020-04-15",null,null,null,null,null,null,null,null,null,1000,1000]
["2020-04-16",null,null,null,null,null,null,null,null,null,1000,1000]
["2020-04-17",null,null,null,null,null,null,null,null,null,1000,1000]
["2020-04-18",null,null,null,null,null,null,null,null,null,1000,1000]
["2020-04-19",null,null,null,null,null,null,null,null,null,1000,1000]
["2020-04-20",null,null,null,null,null,null,null,null,null,1000,1000]
["2020-04-21",null,null,null,null,null,null,null,null,null,1000,1000]
["2020-04-22",null,null,null,null,null,null,null,null,null,1000,1000]
["2020-04-23",null,null,null,null,null,null,null,null,null,1000,1000]
["2020-04-24",null,null,null,null,null,null,null,null,null,1000,1000]
["2020-04-25",null,null,null,null,null,null,null,null,null,1000,1000]
["2020-04-26",null,null,null,null,null,null,null,null,null,1000,1000]
["2020-04-27",null,null,null,null,null,null,null,null,null,1000,1000]
["2020-04-28",null,null,null,null,null,null,null,null,null,1000,1000]
["2020-04-29",null,null,null,null,null,null,null,null,null,1000,1000]
["2020-04-30",null,null,null,null,null,null,null,null,null,1000,1000]
[]
["Totaux du mois :",null,{"$f":"SUM(C117:C146)","v":0},{"$f":"SUM(D117:D146)","v":0},null,{"$f":"SUM(F117:F146)","v":0},{"$f":"SUM(G117:G146)","v":0},{"$f":"SUM(H117:H146)","v":0},null,{"$f":"SUM(J117:J146)","v":0},null,{"$f":"L116+J147-C147","v":1000}]
["Solde numéraire journalier du mois de mai 20..."]
[]
["Dates","Numéro ticket dépenses","Montant dépenses","Alimentation",null,"Médicales","Horticoles","Non alimentation","Numéro ticket recettes","Montant recettes","Ancien solde","Soldes"]
["Solde du mois précédent : ",null,null,null,null,null,null,null,null,null,{"$f":"$L$145","v":1000},{"$f":"K151","v":1000}]
["2020-05-01",null,null,null,null,null,null,null,null,null,{"$f":"$L$4","v":1000},{"$f":"$K152+$J152-$C152","v":1000}]
["2020-05-02",null,null,null,null,null,null,null,null,null,{"$f":"$L152","v":1000},1000]
["2020-05-03",null,null,null,null,null,null,null,null,null,{"$f":"$L153","v":1000},1000]
["2020-05-04",null,null,null,null,null,null,null,null,null,{"$f":"$L154","v":1000},1000]
["2020-05-05",null,null,null,null,null,null,null,null,null,{"$f":"$L155","v":1000},1000]
["2020-05-06",null,null,null,null,null,null,null,null,null,1000,1000]
["2020-05-07",null,null,null,null,null,null,null,null,null,1000,1000]
["2020-05-08",null,null,null,null,null,null,null,null,null,1000,1000]
["2020-05-09",null,null,null,null,null,null,null,null,null,1000,1000]
["2020-05-10",null,null,null,null,null,null,null,null,null,1000,1000]
["2020-05-11",null,null,null,null,null,null,null,null,null,1000,1000]
["2020-05-12",null,null,null,null,null,null,null,null,null,1000,1000]
["2020-05-13",null,null,null,null,null,null,null,null,null,1000,1000]
["2020-05-14",null,null,null,null,null,null,null,null,null,1000,1000]
["2020-05-15",null,null,null,null,null,null,null,null,null,1000,1000]
["2020-05-16",null,null,null,null,null,null,null,null,null,1000,1000]
["2020-05-17",null,null,null,null,null,null,null,null,null,1000,1000]
["2020-05-18",null,null,null,null,null,null,null,null,null,1000,1000]
["2020-05-19",null,null,null,null,null,null,null,null,null,1000,1000]
["2020-05-20",null,null,null,null,null,null,null,null,null,1000,1000]
["2020-05-21",null,null,null,null,null,null,null,null,null,1000,1000]
["2020-05-22",null,null,null,null,null,null,null,null,null,1000,1000]
["2020-05-23",null,null,null,null,null,null,null,null,null,1000,1000]
["2020-05-24",null,null,null,null,null,null,null,null,null,1000,1000]
["2020-05-25",null,null,null,null,null,null,null,null,null,1000,1000]
["2020-05-26",null,null,null,null,null,null,null,null,null,1000,1000]
["2020-05-27",null,null,null,null,null,null,null,null,null,1000,1000]
["2020-05-28",null,null,null,null,null,null,null,null,null,1000,1000]
["2020-05-29",null,null,null,null,null,null,null,null,null,1000,1000]
["2020-05-30",null,null,null,null,null,null,null,null,null,1000,1000]
["2020-05-31",null,null,null,null,null,null,null,null,null,1000,1000]
["Totaux du mois :",null,{"$f":"SUM(C152:C182)","v":0},{"$f":"SUM(D152:D182)","v":0},null,{"$f":"SUM(F152:F182)","v":0},0,0,null,{"$f":"SUM(J152:J182)","v":0},null,{"$f":"L151+J183-C183","v":1000}]
["Fait à Limeil-Brévannes, le .. ……… 20…"]
["Solde numéraire journalier du mois de juin 20..."]
[]
["Dates","Numéro ticket dépenses","Montant dépenses","Alimentation",null,"Médicales","Horticoles","Non alimentation","Numéro ticket recettes","Montant recettes","Ancien solde","Soldes"]
["Solde du mois précédent : ",null,null,null,null,null,null,null,null,null,{"$f":"$L$183","v":1000},{"$f":"K188","v":1000}]
["2020-06-01",null,null,null,null,null,null,null,null,null,{"$f":"$L$4","v":1000},{"$f":"$K189+$J189-$C189","v":1000}]
["2020-06-02",null,null,null,null,null,null,null,null,null,{"$f":"$L189","v":1000},1000]
["2020-06-03",null,null,null,null,null,null,null,null,null,{"$f":"$L190","v":1000},1000]
["2020-06-04",null,null,null,null,null,null,null,null,null,{"$f":"$L191","v":1000},1000]
["2020-06-05",null,null,null,null,null,null,null,null,null,{"$f":"$L192","v":1000},1000]
["2020-06-06",null,null,null,null,null,null,null,null,null,1000,1000]
["2020-06-07",null,null,null,null,null,null,null,null,null,1000,1000]
["2020-06-08",null,null,null,null,null,null,null,null,null,1000,1000]
["2020-06-09",null,null,null,null,null,null,null,null,null,1000,1000]
["2020-06-10",null,null,null,null,null,null,null,null,null,1000,1000]
["2020-06-11",null,null,null,null,null,null,null,null,null,1000,1000]
["2020-06-12",null,null,null,null,null,null,null,null,null,1000,1000]
["2020-06-13",null,null,null,null,null,null,null,null,null,1000,1000]
["2020-06-14",null,null,null,null,null,null,null,null,null,1000,1000]
["2020-06-15",null,null,null,null,null,null,null,null,null,1000,1000]
["2020-06-16",null,null,null,null,null,null,null,null,null,1000,1000]
["2020-06-17",null,null,null,null,null,null,null,null,null,1000,1000]
["2020-06-18",null,null,null,null,null,null,null,null,null,1000,1000]
["2020-06-19",null,null,null,null,null,null,null,null,null,1000,1000]
["2020-06-20",null,null,null,null,null,null,null,null,null,1000,1000]
["2020-06-21",null,null,null,null,null,null,null,null,null,1000,1000]
["2020-06-22",null,null,null,null,null,null,null,null,null,1000,1000]
["2020-06-23",null,null,null,null,null,null,null,null,null,1000,1000]
["2020-06-24",null,null,null,null,null,null,null,null,null,1000,1000]
["2020-06-25",null,null,null,null,null,null,null,null,null,1000,1000]
["2020-06-26",null,null,null,null,null,null,null,null,null,1000,1000]
["2020-06-27",null,null,null,null,null,null,null,null,null,1000,1000]
["2020-06-28",null,null,null,null,null,null,null,null,null,1000,1000]
["2020-06-29",null,null,null,null,null,null,null,null,null,1000,1000]
["2020-06-30",null,null,null,null,null,null,null,null,null,1000,1000]
[]
["Totaux du mois :",null,{"$f":"SUM(C190:C219)","v":0},{"$f":"SUM(D190:D219)","v":0},null,{"$f":"SUM(F190:F219)","v":0},{"$f":"SUM(G190:G219)","v":0},{"$f":"SUM(H190:H219)","v":0},null,{"$f":"SUM(J190:J219)","v":0},null,{"$f":"L189+J220-C220","v":1000}]
["Solde numéraire journalier du mois de juillet 20..."]
[]
["Dates","Numéro ticket dépenses","Montant dépenses","Alimentation",null,"Médicales","Horticoles","Non alimentation","Numéro ticket recettes","Montant recettes","Ancien solde","Soldes"]
["Solde du mois précédent : ",null,null,null,null,null,null,null,null,null,{"$f":"$L$218","v":1000},{"$f":"K224","v":1000}]
["2020-07-01",null,null,null,null,null,null,null,null,null,{"$f":"$L$4","v":1000},{"$f":"$K225+$J225-$C225","v":1000}]
["2020-07-02",null,null,null,null,null,null,null,null,null,{"$f":"$L225","v":1000},1000]
["2020-07-03",null,null,null,null,null,null,null,null,null,{"$f":"$L226","v":1000},1000]
["2020-07-04",null,null,null,null,null,null,null,null,null,{"$f":"$L227","v":1000},1000]
["2020-07-05",null,null,null,null,null,null,null,null,null,{"$f":"$L228","v":1000},1000]
["2020-07-06",null,null,null,null,null,null,null,null,null,1000,1000]
["2020-07-07",null,null,null,null,null,null,null,null,null,1000,1000]
["2020-07-08",null,null,null,null,null,null,null,null,null,1000,1000]
["2020-07-09",null,null,null,null,null,null,null,null,null,1000,1000]
["2020-07-10",null,null,null,null,null,null,null,null,null,1000,1000]
["2020-07-11",null,null,null,null,null,null,null,null,null,1000,1000]
["2020-07-12",null,null,null,null,null,null,null,null,null,1000,1000]
["2020-07-13",null,null,null,null,null,null,null,null,null,1000,1000]
["2020-07-14",null,null,null,null,null,null,null,null,null,1000,1000]
["2020-07-15",null,null,null,null,null,null,null,null,null,1000,1000]
["2020-07-16",null,null,null,null,null,null,null,null,null,1000,1000]
["2020-07-17",null,null,null,null,null,null,null,null,null,1000,1000]
["2020-07-18",null,null,null,null,null,null,null,null,null,1000,1000]
["2020-07-19",null,null,null,null,null,null,null,null,null,1000,1000]
["2020-07-20",null,null,null,null,null,null,null,null,null,1000,1000]
["2020-07-21",null,null,null,null,null,null,null,null,null,1000,1000]
["2020-07-22",null,null,null,null,null,null,null,null,null,1000,1000]
["2020-07-23",null,null,null,null,null,null,null,null,null,1000,1000]
["2020-07-24",null,null,null,null,null,null,null,null,null,1000,1000]
["2020-07-25",null,null,null,null,null,null,null,null,null,1000,1000]
["2020-07-26",null,null,null,null,null,null,null,null,null,1000,1000]
["2020-07-27",null,null,null,null,null,null,null,null,null,1000,1000]
["2020-07-28",null,null,null,null,null,null,null,null,null,1000,1000]
["2020-07-29",null,null,null,null,null,null,null,null,null,1000,1000]
["2020-07-30",null,null,null,null,null,null,null,null,null,1000,1000]
["2020-07-31",null,null,null,null,null,null,null,null,null,1000,1000]
["Totaux du mois :",null,{"$f":"SUM(C225:C255)","v":0},{"$f":"SUM(D225:D255)","v":0},null,{"$f":"SUM(F225:F255)","v":0},0,0,null,{"$f":"SUM(J225:J255)","v":0},null,{"$f":"L224+J256-C256","v":1000}]
["Fait à Limeil-Brévannes, le .. ……… 20…"]
["Solde numéraire journalier du mois de mai 20..."]
[]
["Dates","Numéro ticket dépenses","Montant dépenses","Alimentation",null,"Médicales","Horticoles","Non alimentation","Numéro ticket recettes","Montant recettes","Ancien solde","Soldes"]
["Solde du mois précédent : ",null,null,null,null,null,null,null,null,null,{"$f":"$L$256","v":1000},{"$f":"K261","v":1000}]
["2020-08-01",null,null,null,null,null,null,null,null,null,{"$f":"$L$4","v":1000},{"$f":"$K262+$J262-$C262","v":1000}]
["2020-08-02",null,null,null,null,null,null,null,null,null,{"$f":"$L262","v":1000},1000]
["2020-08-03",null,null,null,null,null,null,null,null,null,{"$f":"$L263","v":1000},1000]
["2020-08-04",null,null,null,null,null,null,null,null,null,{"$f":"$L264","v":1000},1000]
["2020-08-05",null,null,null,null,null,null,null,null,null,{"$f":"$L265","v":1000},1000]
["2020-08-06",null,null,null,null,null,null,null,null,null,1000,1000]
["2020-08-07",null,null,null,null,null,null,null,null,null,1000,1000]
["2020-08-08",null,null,null,null,null,null,null,null,null,1000,1000]
["2020-08-09",null,null,null,null,null,null,null,null,null,1000,1000]
["2020-08-10",null,null,null,null,null,null,null,null,null,1000,1000]
["2020-08-11",null,null,null,null,null,null,null,null,null,1000,1000]
["2020-08-12",null,null,null,null,null,null,null,null,null,1000,1000]
["2020-08-13",null,null,null,null,null,null,null,null,null,1000,1000]
["2020-08-14",null,null,null,null,null,null,null,null,null,1000,1000]
["2020-08-15",null,null,null,null,null,null,null,null,null,1000,1000]
["2020-08-16",null,null,null,null,null,null,null,null,null,1000,1000]
["2020-08-17",null,null,null,null,null,null,null,null,null,1000,1000]
["2020-08-18",null,null,null,null,null,null,null,null,null,1000,1000]
["2020-08-19",null,null,null,null,null,null,null,null,null,1000,1000]
["2020-08-20",null,null,null,null,null,null,null,null,null,1000,1000]
["2020-08-21",null,null,null,null,null,null,null,null,null,1000,1000]
["2020-08-22",null,null,null,null,null,null,null,null,null,1000,1000]
["2020-08-23",null,null,null,null,null,null,null,null,null,1000,1000]
["2020-08-24",null,null,null,null,null,null,null,null,null,1000,1000]
["2020-08-25",null,null,null,null,null,null,null,null,null,1000,1000]
["2020-08-26",null,null,null,null,null,null,null,null,null,1000,1000]
["2020-08-27",null,null,null,null,null,null,null,null,null,1000,1000]
["2020-08-28",null,null,null,null,null,null,null,null,null,1000,1000]
["2020-08-29",null,null,null,null,null,null,null,null,null,1000,1000]
["2020-08-30",null,null,null,null,null,null,null,null,null,1000,1000]
["2020-08-31",null,null,null,null,null,null,null,null,null,1000,1000]
["Totaux du mois :",null,{"$f":"SUM(C262:C292)","v":0},{"$f":"SUM(D262:D292)","v":0},null,{"$f":"SUM(F262:F292)","v":0},0,0,null,{"$f":"SUM(J262:J292)","v":0},null,{"$f":"L261+J293-C293","v":1000}]
["Fait à Limeil-Brévannes, le .. ……… 20…"]
["Solde numéraire journalier du mois de septembre 20…"]
[]
["Dates","Numéro ticket dépenses","Montant dépenses","Alimentation",null,"Médicales","Horticoles","Non alimentation","Numéro ticket recettes","Montant recettes","Ancien solde","Soldes"]
["Solde du mois précédent : ",null,null,null,null,null,null,null,null,null,{"$f":"$L$293","v":1000},{"$f":"K298","v":1000}]
["2020-09-01",null,null,null,null,null,null,null,null,null,{"$f":"$L$4","v":1000},{"$f":"$K299+$J299-$C299","v":1000}]
["2020-09-02",null,null,null,null,null,null,null,null,null,{"$f":"$L299","v":1000},1000]
["2020-09-03",null,null,null,null,null,null,null,null,null,{"$f":"$L300","v":1000},1000]
["2020-09-04",null,null,null,null,null,null,null,null,null,{"$f":"$L301","v":1000},1000]
["2020-09-05",null,null,null,null,null,null,null,null,null,{"$f":"$L302","v":1000},1000]
["2020-09-06",null,null,null,null,null,null,null,null,null,1000,1000]
["2020-09-07",null,null,null,null,null,null,null,null,null,1000,1000]
["2020-09-08",null,null,null,null,null,null,null,null,null,1000,1000]
["2020-09-09",null,null,null,null,null,null,null,null,null,1000,1000]
["2020-09-10",null,null,null,null,null,null,null,null,null,1000,1000]
["2020-09-11",null,null,null,null,null,null,null,null,null,1000,1000]
["2020-09-12",null,null,null,null,null,null,null,null,null,1000,1000]
["2020-09-13",null,null,null,null,null,null,null,null,null,1000,1000]
["2020-09-14",null,null,null,null,null,null,null,null,null,1000,1000]
["2020-09-15",null,null,null,null,null,null,null,null,null,1000,1000]
["2020-09-16",null,null,null,null,null,null,null,null,null,1000,1000]
["2020-09-17",null,null,null,null,null,null,null,null,null,1000,1000]
["2020-09-18",null,null,null,null,null,null,null,null,null,1000,1000]
["2020-09-19",null,null,null,null,null,null,null,null,null,1000,1000]
["2020-09-20",null,null,null,null,null,null,null,null,null,1000,1000]
["2020-09-21",null,null,null,null,null,null,null,null,null,1000,1000]
["2020-09-22",null,null,null,null,null,null,null,null,null,1000,1000]
["2020-09-23",null,null,null,null,null,null,null,null,null,1000,1000]
["2020-09-24",null,null,null,null,null,null,null,null,null,1000,1000]
["2020-09-25",null,null,null,null,null,null,null,null,null,1000,1000]
["2020-09-26",null,null,null,null,null,null,null,null,null,1000,1000]
["2020-09-27",null,null,null,null,null,null,null,null,null,1000,1000]
["2020-09-28",null,null,null,null,null,null,null,null,null,1000,1000]
["2020-09-29",null,null,null,null,null,null,null,null,null,1000,1000]
["2020-09-30",null,null,null,null,null,null,null,null,null,1000,1000]
[]
["Totaux du mois :",null,{"$f":"SUM(C300:C329)","v":0},{"$f":"SUM(D300:D329)","v":0},null,{"$f":"SUM(F300:F329)","v":0},{"$f":"SUM(G300:G329)","v":0},{"$f":"SUM(H300:H329)","v":0},null,{"$f":"SUM(J300:J329)","v":0},null,{"$f":"L299+J330-C330","v":1000}]
["Fait à Limeil-Brévannes, le .. ……… 20…"]
["Solde numéraire journalier du mois d'octobre 20..."]
[]
["Dates","Numéro ticket dépenses","Montant dépenses","Alimentation",null,"Médicales","Horticoles","Non alimentation","Numéro ticket recettes","Montant recettes","Ancien solde","Soldes"]
["Solde du mois précédent : ",null,null,null,null,null,null,null,null,null,{"$f":"$L$330","v":1000},{"$f":"K335","v":1000}]
["2020-10-01",null,null,null,null,null,null,null,null,null,{"$f":"$L$4","v":1000},{"$f":"$K336+$J336-$C336","v":1000}]
["2020-10-02",null,null,null,null,null,null,null,null,null,{"$f":"$L336","v":1000},1000]
["2020-10-03",null,null,null,null,null,null,null,null,null,{"$f":"$L337","v":1000},1000]
["2020-10-04",null,null,null,null,null,null,null,null,null,{"$f":"$L338","v":1000},1000]
["2020-10-05",null,null,null,null,null,null,null,null,null,{"$f":"$L339","v":1000},1000]
["2020-10-06",null,null,null,null,null,null,null,null,null,1000,1000]
["2020-10-07",null,null,null,null,null,null,null,null,null,1000,1000]
["2020-10-08",null,null,null,null,null,null,null,null,null,1000,1000]
["2020-10-09",null,null,null,null,null,null,null,null,null,1000,1000]
["2020-10-10",null,null,null,null,null,null,null,null,null,1000,1000]
["2020-10-11",null,null,null,null,null,null,null,null,null,1000,1000]
["2020-10-12",null,null,null,null,null,null,null,null,null,1000,1000]
["2020-10-13",null,null,null,null,null,null,null,null,null,1000,1000]
["2020-10-14",null,null,null,null,null,null,null,null,null,1000,1000]
["2020-10-15",null,null,null,null,null,null,null,null,null,1000,1000]
["2020-10-16",null,null,null,null,null,null,null,null,null,1000,1000]
["2020-10-17",null,null,null,null,null,null,null,null,null,1000,1000]
["2020-10-18",null,null,null,null,null,null,null,null,null,1000,1000]
["2020-10-19",null,null,null,null,null,null,null,null,null,1000,1000]
["2020-10-20",null,null,null,null,null,null,null,null,null,1000,1000]
["2020-10-21",null,null,null,null,null,null,null,null,null,1000,1000]
["2020-10-22",null,null,null,null,null,null,null,null,null,1000,1000]
["2020-10-23",null,null,null,null,null,null,null,null,null,1000,1000]
["2020-10-24",null,null,null,null,null,null,null,null,null,1000,1000]
["2020-10-25",null,null,null,null,null,null,null,null,null,1000,1000]
["2020-10-26",null,null,null,null,null,null,null,null,null,1000,1000]
["2020-10-27",null,null,null,null,null,null,null,null,null,1000,1000]
["2020-10-28",null,null,null,null,null,null,null,null,null,1000,1000]
["2020-10-29",null,null,null,null,null,null,null,null,null,1000,1000]
["2020-10-30",null,null,null,null,null,null,null,null,null,1000,1000]
["2020-10-31",null,null,null,null,null,null,null,null,null,1000,1000]
["Totaux du mois :",null,{"$f":"SUM(C336:C366)","v":0},{"$f":"SUM(D336:D366)","v":0},null,{"$f":"SUM(F336:F366)","v":0},0,0,null,{"$f":"SUM(J336:J366)","v":0},null,{"$f":"L335+J367-C367","v":1000}]
["Fait à Limeil-Brévannes, le .. ……… 20…"]
["Solde numéraire journalier du mois de novembre 20…"]
[]
["Dates","Numéro ticket dépenses","Montant dépenses","Alimentation",null,"Médicales","Horticoles","Non alimentation","Numéro ticket recettes","Montant recettes","Ancien solde","Soldes"]
["Solde du mois précédent : ",null,null,null,null,null,null,null,null,null,{"$f":"$L$367","v":1000},{"$f":"K372","v":1000}]
["2020-11-01",null,null,null,null,null,null,null,null,null,{"$f":"$L$4","v":1000},{"$f":"$K373+$J373-$C373","v":1000}]
["2020-11-02",null,null,null,null,null,null,null,null,null,{"$f":"$L373","v":1000},1000]
["2020-11-03",null,null,null,null,null,null,null,null,null,{"$f":"$L374","v":1000},1000]
["2020-11-04",null,null,null,null,null,null,null,null,null,{"$f":"$L375","v":1000},1000]
["2020-11-05",null,null,null,null,null,null,null,null,null,{"$f":"$L376","v":1000},1000]
["2020-11-06",null,null,null,null,null,null,null,null,null,1000,1000]
["2020-11-07",null,null,null,null,null,null,null,null,null,1000,1000]
["2020-11-08",null,null,null,null,null,null,null,null,null,1000,1000]
["2020-11-09",null,null,null,null,null,null,null,null,null,1000,1000]
["2020-11-10",null,null,null,null,null,null,null,null,null,1000,1000]
["2020-11-11",null,null,null,null,null,null,null,null,null,1000,1000]
["2020-11-12",null,null,null,null,null,null,null,null,null,1000,1000]
["2020-11-13",null,null,null,null,null,null,null,null,null,1000,1000]
["2020-11-14",null,null,null,null,null,null,null,null,null,1000,1000]
["2020-11-15",null,null,null,null,null,null,null,null,null,1000,1000]
["2020-11-16",null,null,null,null,null,null,null,null,null,1000,1000]
["2020-11-17",null,null,null,null,null,null,null,null,null,1000,1000]
["2020-11-18",null,null,null,null,null,null,null,null,null,1000,1000]
["2020-11-19",null,null,null,null,null,null,null,null,null,1000,1000]
["2020-11-20",null,null,null,null,null,null,null,null,null,1000,1000]
["2020-11-21",null,null,null,null,null,null,null,null,null,1000,1000]
["2020-11-22",null,null,null,null,null,null,null,null,null,1000,1000]
["2020-11-23",null,null,null,null,null,null,null,null,null,1000,1000]
["2020-11-24",null,null,null,null,null,null,null,null,null,1000,1000]
["2020-11-25",null,null,null,null,null,null,null,null,null,1000,1000]
["2020-11-26",null,null,null,null,null,null,null,null,null,1000,1000]
["2020-11-27",null,null,null,null,null,null,null,null,null,1000,1000]
["2020-11-28",null,null,null,null,null,null,null,null,null,1000,1000]
["2020-11-29",null,null,null,null,null,null,null,null,null,1000,1000]
["2020-11-30",null,null,null,null,null,null,null,null,null,1000,1000]
[]
["Totaux du mois :",null,{"$f":"SUM(C374:C403)","v":0},{"$f":"SUM(D374:D403)","v":0},null,{"$f":"SUM(F374:F403)","v":0},{"$f":"SUM(G374:G403)","v":0},{"$f":"SUM(H374:H403)","v":0},null,{"$f":"SUM(J374:J403)","v":0},null,{"$f":"L373+J404-C404","v":1000}]
["Fait à Limeil-Brévannes, le .. ……… 20…"]
["Solde numéraire journalier du mois de décembre 20..."]
[]
["Dates","Numéro ticket dépenses","Montant dépenses","Alimentation",null,"Médicales","Horticoles","Non alimentation","Numéro ticket recettes","Montant recettes","Ancien solde","Soldes"]
["Solde du mois précédent : ",null,null,null,null,null,null,null,null,null,{"$f":"$L$404","v":1000},{"$f":"K409","v":1000}]
["2020-12-01",null,null,null,null,null,null,null,null,null,{"$f":"$L$4","v":1000},{"$f":"$K410+$J410-$C410","v":1000}]
["2020-12-02",null,null,null,null,null,null,null,null,null,{"$f":"$L410","v":1000},1000]
["2020-12-03",null,null,null,null,null,null,null,null,null,{"$f":"$L411","v":1000},1000]
["2020-12-04",null,null,null,null,null,null,null,null,null,{"$f":"$L412","v":1000},1000]
["2020-12-05",null,null,null,null,null,null,null,null,null,{"$f":"$L413","v":1000},1000]
["2020-12-06",null,null,null,null,null,null,null,null,null,1000,1000]
["2020-12-07",null,null,null,null,null,null,null,null,null,1000,1000]
["2020-12-08",null,null,null,null,null,null,null,null,null,1000,1000]
["2020-12-09",null,null,null,null,null,null,null,null,null,1000,1000]
["2020-12-10",null,null,null,null,null,null,null,null,null,1000,1000]
["2020-12-11",null,null,null,null,null,null,null,null,null,1000,1000]
["2020-12-12",null,null,null,null,null,null,null,null,null,1000,1000]
["2020-12-13",null,null,null,null,null,null,null,null,null,1000,1000]
["2020-12-14",null,null,null,null,null,null,null,null,null,1000,1000]
["2020-12-15",null,null,null,null,null,null,null,null,null,1000,1000]
["2020-12-16",null,null,null,null,null,null,null,null,null,1000,1000]
["2020-12-17",null,null,null,null,null,null,null,null,null,1000,1000]
["2020-12-18",null,null,null,null,null,null,null,null,null,1000,1000]
["2020-12-19",null,null,null,null,null,null,null,null,null,1000,1000]
["2020-12-20",null,null,null,null,null,null,null,null,null,1000,1000]
["2020-12-21",null,null,null,null,null,null,null,null,null,1000,1000]
["2020-12-22",null,null,null,null,null,null,null,null,null,1000,1000]
["2020-12-23",null,null,null,null,null,null,null,null,null,1000,1000]
["2020-12-24",null,null,null,null,null,null,null,null,null,1000,1000]
["2020-12-25",null,null,null,null,null,null,null,null,null,1000,1000]
["2020-12-26",null,null,null,null,null,null,null,null,null,1000,1000]
["2020-12-27",null,null,null,null,null,null,null,null,null,1000,1000]
["2020-12-28",null,null,null,null,null,null,null,null,null,1000,1000]
["2020-12-29",null,null,null,null,null,null,null,null,null,1000,1000]
["2020-12-30",null,null,null,null,null,null,null,null,null,1000,1000]
["2020-12-31",null,null,null,null,null,null,null,null,null,1000,1000]
["Totaux du mois :",null,{"$f":"SUM(C410:C440)","v":0},{"$f":"SUM(D410:D440)","v":0},null,{"$f":"SUM(F410:F440)","v":0},0,0,null,{"$f":"SUM(J410:J440)","v":0},null,{"$f":"L409+J441-C441","v":1000}]
["Fait à Limeil-Brévannes, le .. ……… 20…"]